Workbook

Sheet data
C2: TAB: YIELD DATA (IN %)
P3: Utilities industry, sample of B rated bonds | AA3: Utilities industry, sample of B- rated bonds
C4: Treasury yield rates | P4: 1 | Q4: 2 | R4: 3 | S4: 4 | T4: 5 | U4: 6 | V4: 8 | W4: 9 | X4: 10 | Y4: 11 | AA4: 14 | AB4: 15 | AC4: 16 | AD4: 17 | AE4: 18
B5: # | C5: Date | D5: C0823M | E5: C0826M | F5: C0821Y | G5: C0822Y | H5: C0823Y | I5: C0825Y | J5: C0827Y | K5: C08210Y | L5: C08220Y | M5: C08230Y | P5: EK697585 | Q5: UV308871 | R5: EK697591 | S5: UV309161 | T5: EK376512 | U5: EK129557 | V5: EK726871 | W5: UV309350 | X5: EK376500 | Y5: QZ797088 | AA5: EH258733 | AB5: EK355400 | AC5: EI702963 | AD5: EK408885 | AE5: LW316363
D6: =3/12 -> 0.25 | E6: =6/12 -> 0.5 | F6: 1 | G6: 2 | H6: 3 | I6: 5 | J6: 7 | K6: 10 | L6: 20 | M6: 30 | O6: Date | P6: 1.888 | Q6: 2.186 | R6: 4.145 | S6: 5.192 | T6: 5.397 | U6: 5.773 | V6: 6.444 | W6: 7.195 | X6: 7.4 | Y6: 7.4 | AA6: 0.682 | AB6: 1.888 | AC6: 3.685 | AD6: 4.397 | AE6: 5.811
B7: 1 | C7: 2015-09-30 | D7: 0.1483 | E7: 0.2216 | F7: 0.3427 | G7: 0.666 | H7: 0.9561 | I7: 1.4188 | J7: 1.7693 | K7: 2.1003 | L7: 2.6234 | M7: 2.9022 | O7: 2017-08-29 | P7: 5.906 | Q7: 4.93 | R7: 7.549 | S7: 6.613 | T7: 6.368 | U7: 6.154 | V7: 6.749 | W7: 7.063 | X7: 7.105 | Y7: 7.527 | AA7: 3.988 | AB7: 5.347 | AC7: 7.894 | AD7: 7.635 | AE7: 7.973
B8: =B7+1 -> 2 | C8: 2015-06-30 | D8: 0.1262 | E8: 0.1729 | F8: 0.2767 | G8: 0.6914 | H8: 1.0805 | I8: 1.6668 | J8: 2.0746 | K8: 2.4155 | L8: 2.9403 | M8: 3.1378 | O8: 2017-08-28 | P8: 5.935 | Q8: 4.92 | R8: 7.485 | S8: 6.568 | T8: 6.308 | U8: 6.152 | V8: 6.811 | W8: 7.065 | X8: 7.048 | Y8: 7.51 | AA8: 3.98 | AB8: 5.466 | AC8: 7.736 | AD8: 8.128 | AE8: 7.943
B9: =B8+1 -> 3 | C9: 2015-03-31 | D9: 0.1204 | E9: 0.1589 | F9: 0.2466 | G9: 0.6066 | H9: 0.9389 | I9: 1.4017 | J9: 1.7037 | K9: 1.9812 | L9: 2.3881 | M9: 2.5604 | O9: 2017-08-25 | P9: 5.697 | Q9: 4.927 | R9: 7.392 | S9: 6.598 | T9: 6.263 | U9: 6.135 | V9: 6.792 | W9: 7.064 | X9: 7.044 | Y9: 7.483 | AA9: 3.971 | AB9: 5.263 | AC9: 7.611 | AD9: 8.096 | AE9: 7.943
B10: 4 | C10: 2014-12-31 | D10: 0.1113 | E10: 0.1519 | F10: 0.2514 | G10: 0.7234 | H10: 1.1506 | I10: 1.6681 | J10: 1.9653 | K10: 2.2164 | L10: 2.5394 | M10: 2.786 | O10: 2017-08-24 | P10: 5.779 | Q10: 4.921 | R10: 7.374 | S10: 6.595 | T10: 6.447 | U10: 6.261 | V10: 6.952 | W10: 7.117 | X10: 7.08 | Y10: 7.461 | AA10: 4.115 | AB10: 5.492 | AC10: 7.851 | AD10: 8.056 | AE10: 7.943
B11: 5 | C11: 2014-09-30 | D11: 0.029 | E11: 0.0524 | F11: 0.1414 | G11: 0.6227 | H11: 1.1378 | I11: 1.8096 | J11: 2.2103 | K11: 2.5565 | L11: 3.0433 | M11: 3.237 | O11: 2017-08-23 | P11: 5.883 | Q11: 4.925 | R11: 7.485 | S11: 6.59 | T11: 6.498 | U11: 6.281 | V11: 6.953 | W11: 7.111 | X11: 7.176 | Y11: 7.484 | AA11: 3.891 | AB11: 5.342 | AC11: 7.919 | AD11: 7.984 | AE11: 7.986
B12: 6 | C12: 2014-06-30 | D12: 0.0526 | E12: 0.0679 | F12: 0.1405 | G12: 0.4565 | H12: 0.9035 | I12: 1.6343 | J12: 2.1281 | K12: 2.5663 | L12: 3.1667 | M12: 3.3494 | O12: 2017-08-22 | P12: 6.068 | Q12: 4.924 | R12: 7.626 | S12: 6.558 | T12: 6.452 | U12: 6.063 | V12: 7.042 | W12: 7.089 | X12: 7.187 | Y12: 7.462 | AA12: 3.771 | AB12: 5.362 | AC12: 7.792 | AD12: 8.124 | AE12: 7.963
B13: 7 | C13: 2014-03-31 | D13: 0.0476 | E13: 0.0548 | F13: 0.0964 | G13: 0.3918 | H13: 0.9136 | I13: 1.7519 | J13: 2.3033 | K13: 2.7562 | L13: 3.4119 | M13: 3.5737 | O13: 2017-08-21 | P13: 6.146 | Q13: 4.947 | R13: 7.621 | S13: 6.637 | T13: 6.28 | U13: 6.299 | V13: 6.898 | W13: 7.352 | X13: 7.145 | Y13: 7.639 | AA13: 4.05 | AB13: 5.487 | AC13: 7.83 | AD13: 8.052 | AE13: 7.966
B14: 8 | C14: 2013-12-31 | D14: 0.0655 | E14: 0.0947 | F14: 0.135 | G14: 0.3577 | H14: 0.7991 | I14: 1.7639 | J14: 2.4625 | K14: 3.105 | L14: 3.7611 | M14: 3.9739 | O14: 2017-08-18 | P14: 6.17 | Q14: 4.938 | R14: 7.621 | S14: 6.907 | T14: 6.221 | U14: 6.584 | V14: 6.632 | W14: 7.605 | X14: 6.933 | Y14: 7.885 | AA14: 4.112 | AB14: 5.427 | AC14: 7.72 | AD14: 8.06 | AE14: 7.897
B15: 9 | C15: 2013-09-30 | D15: 0.0285 | E15: 0.0366 | F15: 0.1133 | G15: 0.3184 | H15: 0.6319 | I15: 1.3906 | J15: 2.0069 | K15: 2.6714 | L15: 3.4545 | M15: 3.6792 | O15: 2017-08-17 | P15: 6.195 | Q15: 4.971 | R15: 7.611 | S15: 6.907 | T15: 5.971 | U15: 6.595 | V15: 6.621 | W15: 7.591 | X15: 6.909 | Y15: 8.023 | AA15: 4.106 | AB15: 5.45 | AC15: 7.77 | AD15: 7.701 | AE15: 7.85
B16: 10 | C16: 2013-06-30 | D16: 0.072 | E16: 0.1073 | F16: 0.1659 | G16: 0.3654 | H16: 0.6774 | I16: 1.4043 | J16: 1.9523 | K16: 2.5216 | L16: 3.3078 | M16: 3.4754 | O16: 2017-08-16 | P16: 6.251 | Q16: 4.977 | R16: 7.621 | S16: 6.842 | T16: 5.964 | U16: 6.57 | V16: 6.607 | W16: 7.577 | X16: 6.841 | Y16: 8.012 | AA16: 4.164 | AB16: 5.411 | AC16: 7.645 | AD16: 7.246 | AE16: 7.833
B17: 11 | C17: 2013-03-31 | D17: 0.0651 | E17: 0.0891 | F17: 0.1215 | G17: 0.268 | H17: 0.3755 | I17: 0.7854 | J17: 1.2161 | K17: 1.9225 | L17: 2.8181 | M17: 3.0912 | O17: 2017-08-14 | P17: 6.165 | Q17: 4.933 | R17: 7.787 | S17: 6.813 | T17: 5.962 | U17: 6.542 | V17: 6.561 | W17: 7.502 | X17: 6.879 | Y17: 7.953 | AA17: 4.304 | AB17: 5.44 | AC17: 7.673 | AD17: 7.698 | AE17: 7.858
B18: 12 | C18: 2012-12-31 | D18: 0.0887 | E18: 0.1447 | F18: 0.1407 | G18: 0.2734 | H18: 0.3588 | I18: 0.7389 | J18: 1.1891 | K18: 1.8125 | L18: 2.6457 | M18: 2.9411 | O18: 2017-08-10 | P18: 6.184 | Q18: 4.959 | R18: 7.801 | S18: 6.941 | T18: 6.006 | U18: 6.591 | V18: 6.663 | W18: 7.591 | X18: 6.855 | Y18: 8.112 | AA18: 4.247 | AB18: 5.431 | AC18: 7.678 | AD18: 8.145 | AE18: 7.869
B19: 13 | C19: 2012-09-30 | D19: 0.1162 | E19: 0.135 | F19: 0.1557 | G19: 0.245 | H19: 0.2942 | I19: 0.6333 | J19: 1.0642 | K19: 1.6955 | L19: 2.5374 | M19: 2.8179 | O19: 2017-08-09 | P19: 6.182 | Q19: 4.947 | R19: 7.482 | S19: 6.917 | T19: 5.919 | U19: 6.591 | V19: 6.602 | W19: 7.575 | X19: 6.81 | Y19: 8.094 | AA19: 3.53 | AB19: 5.133 | AC19: 7.661 | AD19: 7.672 | AE19: 7.782
B20: 14 | C20: 2012-06-30 | D20: 0.1113 | E20: 0.1716 | F20: 0.2595 | G20: 0.3214 | H20: 0.4234 | I20: 0.7467 | J20: 1.0986 | K20: 1.7335 | L20: 2.495 | M20: 2.7762 | O20: 2017-08-08 | P20: 6.18 | Q20: 4.937 | R20: 7.458 | S20: 6.759 | T20: 5.953 | U20: 6.5 | V20: 6.543 | W20: 7.592 | X20: 6.827 | Y20: 7.953 | AA20: 3.323 | AB20: 5.078 | AC20: 7.623 | AD20: 7.904 | AE20: 7.781
B21: 15 | C21: 2012-03-31 | D21: 0.1106 | E21: 0.1331 | F21: 0.2184 | G21: 0.3477 | H21: 0.5371 | I21: 1.0714 | J21: 1.5927 | K21: 2.2828 | L21: 3.1123 | M21: 3.3276 | O21: 2017-08-07 | P21: 6.419 | Q21: 4.912 | R21: 7.702 | S21: 6.755 | T21: 5.978 | U21: 6.597 | V21: 6.58 | W21: 7.511 | X21: 6.82 | Y21: 7.908 | AA21: 3.386 | AB21: 5.131 | AC21: 7.654 | AD21: 7.825 | AE21: 7.822
B22: 16 | C22: 2011-12-31 | D22: 0.016 | E22: 0.0381 | F22: 0.1298 | G22: 0.2757 | H22: 0.3805 | I22: 0.8533 | J22: 1.3673 | K22: 1.9567 | L22: 2.6867 | M22: 2.9141 | O22: 2017-08-04 | P22: 6.407 | Q22: 4.896 | R22: 7.654 | S22: 6.848 | T22: 5.955 | U22: 6.543 | V22: 6.573 | W22: 7.426 | X22: 6.859 | Y22: 7.774 | AA22: 3.548 | AB22: 5.127 | AC22: 7.709 | AD22: 8.005 | AE22: 7.824
B23: 17 | C23: 2011-09-30 | D23: 0.0249 | E23: 0.0813 | F23: 0.1725 | G23: 0.2832 | H23: 0.438 | I23: 0.9594 | J23: 1.442 | K23: 2.0062 | L23: 2.7608 | M23: 2.9494 | O23: 2017-08-03 | P23: 6.669 | Q23: 4.907 | R23: 7.707 | S23: 6.996 | T23: 6.009 | U23: 6.587 | V23: 6.574 | W23: 7.572 | X23: 6.862 | Y23: 7.908 | AA23: 3.521 | AB23: 5.132 | AC23: 7.707 | AD23: 8.183 | AE23: 7.855
B24: 18 | C24: 2011-06-30 | D24: 0.0388 | E24: 0.1137 | F24: 0.2482 | G24: 0.4948 | H24: 0.8295 | I24: 1.7542 | J24: 2.5098 | K24: 3.2966 | L24: 4.2234 | M24: 4.3874 | O24: 2017-08-02 | P24: 5.308 | Q24: 4.897 | R24: 6.918 | S24: 6.915 | T24: 6.036 | U24: 6.566 | V24: 6.598 | W24: 7.642 | X24: 6.92 | Y24: 7.942 | AA24: 3.492 | AB24: 5.104 | AC24: 7.779 | AD24: 7.556 | AE24: 7.873
B25: 19 | C25: 2011-03-31 | D25: 0.075 | E25: 0.1812 | F25: 0.3025 | G25: 0.8269 | H25: 1.3423 | I25: 2.3025 | J25: 2.9644 | K25: 3.5668 | L25: 4.3338 | M25: 4.5021 | O25: 2017-08-01 | P25: 5.283 | Q25: 4.909 | R25: 6.99 | S25: 7.002 | T25: 5.981 | U25: 6.682 | V25: 6.567 | W25: 7.695 | X25: 6.905 | Y25: 8.089 | AA25: 3.544 | AB25: 5.124 | AC25: 7.842 | AD25: 7.817 | AE25: 7.902
B26: 20 | C26: 2010-12-31 | D26: 0.1391 | E26: 0.2158 | F26: 0.2709 | G26: 0.5927 | H26: 1.0269 | I26: 2.0154 | J26: 2.7189 | K26: 3.3816 | L26: 4.1835 | M26: 4.3247 | O26: 2017-07-31 | P26: 5.298 | Q26: 4.895 | R26: 6.997 | S26: 7.046 | T26: 5.965 | U26: 6.661 | V26: 6.65 | W26: 7.718 | X26: 6.895 | Y26: 8.044 | AA26: 3.558 | AB26: 5.156 | AC26: 7.8 | AD26: 7.83 | AE26: 7.946
B27: 21 | C27: 2010-09-30 | D27: 0.1382 | E27: 0.2108 | F27: 0.2618 | G27: 0.454 | H27: 0.676 | I27: 1.2643 | J27: 1.9232 | K27: 2.5446 | L27: 3.443 | M27: 3.6981 | O27: 2017-07-28 | P27: 5.311 | Q27: 4.952 | R27: 7.059 | S27: 7.138 | T27: 5.969 | U27: 6.694 | V27: 6.612 | W27: 7.675 | X27: 6.923 | Y27: 8.135 | AA27: 3.573 | AB27: 5.144 | AC27: 7.801 | AD27: 8.039 | AE27: 7.915
B28: 22 | C28: 2010-06-30 | D28: 0.2032 | E28: 0.248 | F28: 0.3377 | G28: 0.6304 | H28: 1.0036 | I28: 1.7968 | J28: 2.4404 | K28: 2.9615 | L28: 3.7799 | M28: 3.9068 | O28: 2017-07-27 | P28: 5.321 | Q28: 4.838 | R28: 7.07 | S28: 7.091 | T28: 5.797 | U28: 6.681 | V28: 6.464 | W28: 7.66 | X28: 6.843 | Y28: 8.135 | AA28: 3.568 | AB28: 5.159 | AC28: 7.859 | AD28: 8 | AE28: 7.911
B29: 23 | C29: 2010-03-31 | D29: 0.1508 | E29: 0.23 | F29: 0.4145 | G29: 1.0128 | H29: 1.5884 | I29: 2.554 | J29: 3.2964 | K29: 3.8449 | L29: 4.6398 | M29: 4.7142 | O29: 2017-07-26 | P29: 5.319 | Q29: 4.91 | R29: 7.063 | S29: 7.128 | T29: 5.703 | U29: 6.796 | V29: 6.342 | W29: 7.685 | X29: 6.651 | Y29: 8.044 | AA29: 3.779 | AB29: 5.228 | AC29: 7.94 | AD29: 8.083 | AE29: 7.902
B30: 24 | C30: 2009-12-31 | D30: 0.0505 | E30: 0.1647 | F30: 0.4928 | G30: 1.1516 | H30: 1.6645 | I30: 2.7085 | J30: 3.4194 | K30: 3.9233 | L30: 4.6097 | M30: 4.6349 | O30: 2017-07-25 | P30: 5.208 | Q30: 4.934 | R30: 7.088 | S30: 6.934 | T30: 5.722 | U30: 6.628 | V30: 6.379 | W30: 7.666 | X30: 6.691 | Y30: 8.09 | AA30: 3.875 | AB30: 5.231 | AC30: 7.984 | AD30: 7.925 | AE30: 8.046
B31: 25 | C31: 2009-09-30 | D31: 0.1265 | E31: 0.1777 | F31: 0.3977 | G31: 0.9427 | H31: 1.4421 | I31: 2.3593 | J31: 2.9802 | K31: 3.3459 | L31: 4.1201 | M31: 4.0923 | O31: 2017-07-24 | P31: 5.276 | Q31: 4.908 | R31: 7.047 | S31: 6.966 | T31: 5.731 | U31: 6.628 | V31: 6.393 | W31: 7.668 | X31: 6.716 | Y31: 7.977 | AA31: 3.702 | AB31: 5.23 | AC31: 7.996 | AD31: 8.299 | AE31: 8.048
B32: 26 | C32: 2009-06-30 | D32: 0.2298 | E32: 0.3644 | F32: 0.5443 | G32: 1.1249 | H32: 1.6457 | I32: 2.5704 | J32: 3.2168 | K32: 3.5626 | L32: 4.351 | M32: 4.3488 | O32: 2017-07-21 | P32: 5.33 | Q32: 4.744 | R32: 7.11 | S32: 6.908 | T32: 5.694 | U32: 6.651 | V32: 6.391 | W32: 7.574 | X32: 6.669 | Y32: 7.999 | AA32: 4.345 | AB32: 5.229 | AC32: 8.068 | AD32: 8.217 | AE32: 8.047
B33: 27 | C33: 2009-03-31 | D33: 0.2252 | E33: 0.4364 | F33: 0.5352 | G33: 0.7873 | H33: 1.1497 | I33: 1.6595 | J33: 2.2035 | K33: 2.7044 | L33: 3.6445 | M33: 3.5446 | O33: 2017-07-20 | P33: 5.428 | Q33: 4.934 | R33: 7.083 | S33: 6.881 | T33: 5.695 | U33: 6.652 | V33: 6.392 | W33: 7.513 | X33: 6.707 | Y33: 7.82 | AA33: 4.423 | AB33: 5.229 | AC33: 8.022 | AD33: 8.585 | AE33: 8.05
B34: 28 | C34: 2008-12-31 | D34: 0.1208 | E34: 0.2305 | F34: 0.343 | G34: 0.7679 | H34: 1.0018 | I34: 1.5385 | J34: 1.6181 | K34: 2.2271 | L34: 3.0843 | M34: 2.6566 | O34: 2017-07-19 | P34: 5.502 | Q34: 4.969 | R34: 7.091 | S34: 6.866 | T34: 5.71 | U34: 6.688 | V34: 6.339 | W34: 7.511 | X34: 6.741 | Y34: 7.932 | AA34: 4.353 | AB34: 5.217 | AC34: 8.014 | AD34: 8.289 | AE34: 8.178
B35: 29 | C35: 2008-09-30 | D35: 0.8728 | E35: 1.6285 | F35: 1.8345 | G35: 1.8371 | H35: 2.2939 | I35: 2.9333 | J35: 3.3657 | K35: 3.8258 | L35: 4.4725 | M35: 4.2914 | O35: 2017-07-18 | P35: 5.087 | Q35: 5.023 | R35: 7.06 | S35: 6.957 | T35: 5.716 | U35: 6.764 | V35: 6.316 | W35: 7.582 | X35: 6.659 | Y35: 7.932 | AA35: 4.37 | AB35: 5.215 | AC35: 8.02 | AD35: 8.256 | AE35: 8.214
B36: 30 | C36: 2008-06-30 | D36: 1.7749 | E36: 2.1525 | F36: 2.3415 | G36: 2.5511 | H36: 2.9202 | I36: 3.3159 | J36: 3.6496 | K36: 4.0196 | L36: 4.6225 | M36: 4.5231 | O36: 2017-07-17 | P36: 5.172 | Q36: 5.057 | R36: 7.183 | S36: 7.006 | T36: 5.702 | U36: 6.969 | V36: 6.307 | W36: 7.783 | X36: 6.637 | Y36: 8.045 | AA36: 4.546 | AB36: 5.659 | AC36: 8.051 | AD36: 8.507 | AE36: 8.218
B37: 31 | C37: 2008-03-31 | D37: 1.2376 | E37: 1.342 | F37: 1.4683 | G37: 1.5616 | H37: 1.7046 | I37: 2.4468 | J37: 2.94 | K37: 3.5989 | L37: 4.3285 | M37: 4.2882 | O37: 2017-07-14 | P37: 5.335 | Q37: 5.127 | R37: 7.203 | S37: 7.138 | T37: 5.855 | U37: 7.08 | V37: 6.387 | W37: 7.869 | X37: 6.717 | Y37: 8.227 | AA37: 4.608 | AB37: 5.689 | AC37: 8.005 | AD37: 8.31 | AE37: 8.297
B38: 32 | C38: 2007-12-31 | D38: 3.2477 | E38: 3.4094 | F38: 3.2858 | G38: 3.0217 | H38: 3.0594 | I38: 3.4568 | J38: 3.7891 | K38: 4.1365 | L38: 4.516 | M38: 4.4596 | O38: 2017-07-13 | P38: 5.334 | Q38: 5.163 | R38: 7.038 | S38: 7.339 | T38: 5.857 | U38: 7.217 | V38: 6.427 | W38: 7.965 | X38: 6.736 | Y38: 8.318 | AA38: 4.563 | AB38: 5.685 | AC38: 8.026 | AD38: 8.461 | AE38: 8.289
B39: 33 | C39: 2007-09-30 | D39: 3.9549 | E39: 4.1399 | F39: 4.0733 | G39: 3.9549 | H39: 4.1125 | I39: 4.2449 | J39: 4.4331 | K39: 4.6602 | L39: 4.9032 | M39: 4.837 | O39: 2017-07-12 | P39: 5.227 | Q39: 5.193 | R39: 7.099 | S39: 7.426 | T39: 5.885 | U39: 7.26 | V39: 6.471 | W39: 8.164 | X39: 6.694 | Y39: 8.55 | AA39: 4.668 | AB39: 5.674 | AC39: 8.174 | AD39: 8.485 | AE39: 8.292
B40: 34 | C40: 2007-06-30 | D40: 4.8622 | E40: 4.9661 | F40: 5.0279 | G40: 4.8682 | H40: 4.8743 | I40: 4.8955 | J40: 4.9723 | K40: 5.072 | L40: 5.2103 | M40: 5.1206 | O40: 2017-07-11 | P40: 5.324 | Q40: 5.324 | R40: 6.998 | S40: 7.65 | T40: 6.14 | U40: 7.348 | V40: 6.526 | W40: 8.334 | X40: 6.916 | Y40: 8.584 | AA40: 5.198 | AB40: 5.763 | AC40: 8.308 | AD40: 8.589 | AE40: 8.346
B41: 35 | C41: 2007-03-31 | D41: 5.0463 | E41: 5.0761 | F41: 4.911 | G41: 4.5622 | H41: 4.5362 | I41: 4.5303 | J41: 4.5927 | K41: 4.6637 | L41: 4.9133 | M41: 4.8316 | O41: 2017-07-10 | P41: 5.219 | Q41: 5.348 | R41: 6.936 | S41: 7.658 | T41: 6.04 | U41: 7.347 | V41: 6.579 | W41: 8.289 | X41: 6.91 | Y41: 8.615 | AA41: 4.596 | AB41: 5.765 | AC41: 8.236 | AD41: 8.28 | AE41: 8.194
B42: 36 | C42: 2006-12-31 | D42: 5.0643 | E42: 5.1035 | F42: 5 | G42: 4.7983 | H42: 4.7344 | I42: 4.6756 | J42: 4.7075 | K42: 4.7183 | L42: 4.9113 | M42: 4.7989 | O42: 2017-07-06 | P42: 5.114 | Q42: 5.329 | R42: 7.019 | S42: 7.647 | T42: 5.945 | U42: 7.333 | V42: 6.566 | W42: 8.301 | X42: 6.832 | Y42: 8.619 | AA42: 4.638 | AB42: 5.765 | AC42: 8.194 | AD42: 8.001 | AE42: 8.042
B43: 37 | C43: 2006-09-30 | D43: 4.9524 | E43: 5.0509 | F43: 4.955 | G43: 4.6501 | H43: 4.6219 | I43: 4.5758 | J43: 4.61 | K43: 4.6471 | L43: 4.8487 | M43: 4.7625 | O43: 2017-07-05 | P43: 5.127 | Q43: 5.232 | R43: 6.943 | S43: 7.555 | T43: 5.916 | U43: 7.298 | V43: 6.537 | W43: 8.152 | X43: 6.785 | Y43: 8.502 | AA43: 4.791 | AB43: 5.844 | AC43: 8.056 | AD43: 8.008 | AE43: 8.028
B44: 38 | C44: 2006-06-30 | D44: 5.0266 | E44: 5.2908 | F44: 5.3262 | G44: 5.1455 | H44: 5.1279 | I44: 5.0888 | J44: 5.1325 | K44: 5.1584 | L44: 5.3263 | M44: 5.1941 | O44: 2017-06-30 | P44: 5.136 | Q44: 5.28 | R44: 6.995 | S44: 7.53 | T44: 5.884 | U44: 7.134 | V44: 6.505 | W44: 8.149 | X44: 6.736 | Y44: 8.454 | AA44: 4.721 | AB44: 5.864 | AC44: 8.133 | AD44: 7.924 | AE44: 8.056
B45: 39 | C45: 2006-03-31 | D45: 4.6204 | E45: 4.8622 | F45: 4.8734 | G45: 4.8398 | H45: 4.8128 | I45: 4.8315 | J45: 4.8689 | K45: 4.8887 | L45: 5.0926 | M45: 4.8969 | O45: 2017-06-29 | P45: 5.137 | Q45: 5.278 | R45: 7.001 | S45: 7.562 | T45: 5.936 | U45: 7.141 | V45: 6.502 | W45: 8.085 | X45: 6.845 | Y45: 8.543 | AA45: 4.725 | AB45: 5.789 | AC45: 8.035 | AD45: 8.246 | AE45: 8.053
B46: 40 | C46: 2005-12-31 | D46: 4.2388 | E46: 4.4779 | F46: 4.4162 | G46: 4.3761 | H46: 4.3762 | I46: 4.3547 | J46: 4.3863 | K46: 4.4029 | L46: 4.6425 | M46: 4.4968 | O46: 2017-06-28 | P46: 5.112 | Q46: 5.177 | R46: 7.008 | S46: 7.541 | T46: 5.939 | U46: 7.081 | V46: 6.544 | W46: 8.086 | X46: 6.84 | Y46: 8.5 | AA46: 4.781 | AB46: 5.786 | AC46: 7.912 | AD46: 7.848 | AE46: 7.888
B47: 41 | C47: 2005-09-30 | D47: 3.5399 | E47: 3.928 | F47: 4.1097 | G47: 4.1778 | H47: 4.1843 | I47: 4.2072 | J47: 4.2844 | K47: 4.3683 | L47: 4.6596 | M47: 4.5224 | O47: 2017-06-27 | P47: 5.112 | Q47: 5.376 | R47: 7.006 | S47: 7.603 | T47: 5.978 | U47: 7.014 | V47: 6.529 | W47: 8.163 | X47: 6.872 | Y47: 8.522 | AA47: 5.031 | AB47: 5.782 | AC47: 7.944 | AD47: 8.127 | AE47: 7.884
B48: 42 | C48: 2005-06-30 | D48: 3.0736 | E48: 3.3727 | F48: 3.5363 | G48: 3.6473 | H48: 3.6511 | I48: 3.7311 | J48: 3.7945 | K48: 3.9724 | L48: 4.3174 | M48: 4.1633 | O48: 2017-06-23 | P48: 5.535 | Q48: 5.409 | R48: 6.815 | S48: 7.79 | T48: 6.047 | U48: 7.307 | V48: 6.604 | W48: 8.288 | X48: 6.929 | Y48: 8.638 | AA48: 5.069 | AB48: 5.792 | AC48: 8.013 | AD48: 8.362 | AE48: 8.059
B49: 43 | C49: 2005-03-31 | D49: 2.7876 | E49: 3.1269 | F49: 3.4648 | G49: 3.8038 | H49: 3.9558 | I49: 4.2097 | J49: 4.3504 | K49: 4.5116 | L49: 4.9676 | M49: 4.7314 | O49: 2017-06-22 | P49: 5.09 | Q49: 5.418 | R49: 6.828 | S49: 7.775 | T49: 6.049 | U49: 7.326 | V49: 6.598 | W49: 8.296 | X49: 6.951 | Y49: 8.732 | AA49: 5.079 | AB49: 5.793 | AC49: 7.913 | AD49: 7.983 | AE49: 7.94
B50: 44 | C50: 2004-12-31 | D50: 2.2158 | E50: 2.5078 | F50: 2.7942 | G50: 3.0931 | H50: 3.2584 | I50: 3.6488 | J50: 3.9768 | K50: 4.257 | L50: 4.9761 | M50: 4.8165 | O50: 2017-06-21 | P50: 5.146 | Q50: 5.424 | R50: 6.834 | S50: 7.841 | T50: 6.105 | U50: 7.311 | V50: 6.591 | W50: 8.366 | X50: 6.932 | Y50: 8.637 | AA50: 5.071 | AB50: 5.801 | AC50: 7.984 | AD50: 8.083 | AE50: 8
B51: 45 | C51: 2004-09-30 | D51: 1.717 | E51: 1.9049 | F51: 2.181 | G51: 2.6301 | H51: 2.8981 | I51: 3.4084 | J51: 3.8078 | K51: 4.1631 | L51: 4.9933 | M51: 4.8977 | O51: 2017-06-20 | P51: 5.064 | Q51: 5.38 | R51: 6.736 | S51: 7.739 | T51: 6.026 | U51: 7.309 | V51: 6.418 | W51: 8.309 | X51: 6.821 | Y51: 8.683 | AA51: 5.066 | AB51: 5.806 | AC51: 7.822 | AD51: 8.08 | AE51: 7.827
B52: 46 | C52: 2004-06-30 | D52: 1.2937 | E52: 1.6659 | F52: 2.0313 | G52: 2.7185 | H52: 3.1474 | I52: 3.8177 | J52: 4.2651 | K52: 4.636 | L52: 5.4038 | M52: 5.1656 | O52: 2017-06-19 | P52: 4.793 | Q52: 5.363 | R52: 6.589 | S52: 7.768 | T52: 6.056 | U52: 7.291 | V52: 6.412 | W52: 8.309 | X52: 6.8 | Y52: 8.613 | AA52: 5.062 | AB52: 5.944 | AC52: 7.842 | AD52: 7.977 | AE52: 7.811
B53: 47 | C53: 2004-03-31 | D53: 0.9511 | E53: 0.9965 | F53: 1.1217 | G53: 1.5661 | H53: 1.9953 | I53: 2.8189 | J53: 3.4021 | K53: 3.874 | L53: 4.876 | M53: 4.6975 | O53: 2017-06-16 | P53: 4.698 | Q53: 5.355 | R53: 6.56 | S53: 7.666 | T53: 6.113 | U53: 7.293 | V53: 6.412 | W53: 8.397 | X53: 6.804 | Y53: 8.773 | AA53: 5.598 | AB53: 5.922 | AC53: 7.904 | AD53: 8.079 | AE53: 7.729
B54: 48 | C54: 2003-12-31 | D54: 0.9141 | E54: 0.9805 | F54: 1.2081 | G54: 1.8116 | H54: 2.3908 | I54: 3.2305 | J54: 3.7895 | K54: 4.2247 | L54: 5.2032 | M54: 5.01 | O54: 2017-06-15 | P54: 4.888 | Q54: 5.362 | R54: 6.552 | S54: 7.764 | T54: 6.097 | U54: 7.217 | V54: 6.488 | W54: 8.346 | X54: 6.843 | Y54: 8.706 | AA54: 5.114 | AB54: 5.927 | AC54: 7.752 | AD54: 7.247 | AE54: 7.724
B55: 49 | C55: 2003-09-30 | D55: 0.9269 | E55: 0.9911 | F55: 1.075 | G55: 1.4099 | H55: 1.9645 | I55: 2.8653 | J55: 3.4676 | K55: 3.9327 | L55: 4.9984 | M55: 4.8579 | O55: 2017-06-14 | P55: 4.516 | Q55: 5.38 | R55: 6.422 | S55: 7.681 | T55: 6.126 | U55: 7.212 | V55: 6.485 | W55: 8.326 | X55: 6.857 | Y55: 8.658 | AA55: 5.134 | AB55: 6.006 | AC55: 7.771 | AD55: 7.895 | AE55: 7.726
B56: 50 | C56: 2003-06-30 | D56: 0.8603 | E56: 0.976 | F56: 1.0266 | G56: 1.2936 | H56: 1.6722 | I56: 2.47 | J56: 3.1116 | K56: 3.5454 | L56: 4.6603 | M56: 4.5486 | O56: 2017-06-13 | P56: 4.505 | Q56: 5.406 | R56: 6.423 | S56: 7.746 | T56: 6.148 | U56: 7.222 | V56: 6.539 | W56: 8.339 | X56: 6.844 | Y56: 8.646 | AA56: 5.069 | AB56: 6 | AC56: 7.726 | AD56: 7.871 | AE56: 7.726
B57: 51 | C57: 2003-03-31 | D57: 1.1357 | E57: 1.1207 | F57: 1.1563 | G57: 1.4506 | H57: 1.9739 | I57: 2.7991 | J57: 3.4151 | K57: 3.8099 | L57: 4.9167 | M57: 4.8271 | O57: 2017-06-12 | P57: 4.503 | Q57: 5.375 | R57: 6.423 | S57: 7.753 | T57: 6.151 | U57: 7.212 | V57: 6.543 | W57: 8.245 | X57: 6.906 | Y57: 8.649 | AA57: 5.032 | AB57: 5.998 | AC57: 7.719 | AD57: 7.802 | AE57: 7.722
B58: 52 | C58: 2002-12-31 | D58: 1.1279 | E58: 1.1791 | F58: 1.1953 | G58: 1.5759 | H58: 2.0327 | I58: 2.8072 | J58: 3.3892 | K58: 3.8455 | L58: 4.9673 | M58: 4.7651 | O58: 2017-06-09 | P58: 4.511 | Q58: 5.327 | R58: 6.424 | S58: 7.735 | T58: 5.967 | U58: 7.144 | V58: 6.39 | W58: 8.241 | X58: 6.697 | Y58: 8.587 | AA58: 5.127 | AB58: 6.002 | AC58: 7.687 | AD58: 7.802 | AE58: 7.726
B59: 53 | C59: 2002-09-30 | D59: 1.5355 | E59: 1.4991 | F59: 1.4391 | G59: 1.7074 | H59: 2.0616 | I59: 2.6464 | J59: 3.2794 | K59: 3.6712 | L59: 4.8109 | M59: 4.6913 | O59: 2017-06-08 | P59: 4.69 | Q59: 5.331 | R59: 6.42 | S59: 7.756 | T59: 6.054 | U59: 7.146 | V59: 6.361 | W59: 8.231 | X59: 6.655 | Y59: 8.54 | AA59: 5.188 | AB59: 5.996 | AC59: 7.59 | AD59: 7.563 | AE59: 7.602
B60: 54 | C60: 2002-06-30 | D60: 1.65 | E60: 1.7 | F60: 1.92 | G60: 2.89 | H60: 3.41 | I60: 4.1 | J60: 4.52 | K60: 4.8 | L60: 5.73 | M60: 5.58 | O60: 2017-06-07 | P60: 4.691 | Q60: 5.405 | R60: 6.409 | S60: 7.721 | T60: 5.991 | U60: 7.136 | V60: 6.326 | W60: 8.061 | X60: 6.697 | Y60: 8.459 | AA60: 5.067 | AB60: 6.013 | AC60: 7.498 | AD60: 7.509 | AE60: 7.591
B61: 55 | C61: 2002-03-31 | D61: 1.77 | E61: 2.11 | F61: 2.71 | G61: 3.77 | H61: 4.31 | I61: 4.97 | J61: 5.26 | K61: 5.4 | L61: 6.12 | M61: 5.8 | O61: 2017-06-06 | P61: 4.687 | Q61: 5.308 | R61: 6.419 | S61: 7.515 | T61: 5.954 | U61: 6.963 | V61: 6.303 | W61: 7.952 | X61: 6.665 | Y61: 8.31 | AA61: 4.879 | AB61: 5.91 | AC61: 7.265 | AD61: 7.399 | AE61: 7.452
B62: 56 | C62: 2001-12-31 | D62: 1.71 | E62: 1.69 | F62: 2.03 | G62: 3.06 | H62: 3.76 | I62: 4.42 | J62: 4.92 | K62: 5.02 | L62: 5.87 | M62: 5.5 | O62: 2017-06-01 | P62: 4.642 | Q62: 5.359 | R62: 6.305 | S62: 7.602 | T62: 5.755 | U62: 7.07 | V62: 6.201 | W62: 8.123 | X62: 6.562 | Y62: 8.538 | AA62: 4.887 | AB62: 5.928 | AC62: 7.255 | AD62: 7.374 | AE62: 7.407
B63: 57 | C63: 2001-09-30 | D63: 2.32 | E63: 2.28 | F63: 2.48 | G63: 2.85 | H63: 3.37 | I63: 3.98 | J63: 4.41 | K63: 4.6 | L63: 5.47 | M63: 5.42 | O63: 2017-05-31 | P63: 4.584 | Q63: 5.405 | R63: 6.317 | S63: 7.658 | T63: 5.754 | U63: 7.071 | V63: 6.114 | W63: 8.152 | X63: 6.529 | Y63: 8.536 | AA63: 5.002 | AB63: 5.844 | AC63: 7.181 | AD63: 7.373 | AE63: 7.399
B64: 58 | C64: 2001-06-30 | D64: 3.72 | E64: 3.7 | F64: 3.89 | G64: 4.33 | H64: 4.68 | I64: 5.03 | J64: 5.28 | K64: 5.37 | L64: 5.91 | M64: 5.77 | O64: 2017-05-30 | P64: 4.632 | Q64: 5.422 | R64: 6.321 | S64: 7.764 | T64: 5.789 | U64: 7.07 | V64: 6.105 | W64: 8.216 | X64: 6.466 | Y64: 8.445 | AA64: 4.937 | AB64: 5.882 | AC64: 7.351 | AD64: 7.528 | AE64: 7.283
B65: 59 | C65: 2001-03-31 | D65: 4.36 | E65: 4.23 | F65: 4.16 | G65: 4.24 | H65: 4.38 | I65: 4.58 | J65: 4.82 | K65: 4.89 | L65: 5.73 | M65: 5.43 | O65: 2017-05-25 | P65: 4.594 | Q65: 5.416 | R65: 6.322 | S65: 7.729 | T65: 5.822 | U65: 7.074 | V65: 6.275 | W65: 8.268 | X65: 6.542 | Y65: 8.612 | AA65: 4.927 | AB65: 5.556 | AC65: 7.115 | AD65: 7.322 | AE65: 7.24
B66: 60 | C66: 2000-12-31 | D66: 5.94 | E66: 5.74 | F66: 5.47 | G66: 5.11 | H66: 5.1 | I66: 5.06 | J66: 5.17 | K66: 5.06 | L66: 5.49 | M66: 5.53 | O66: 2017-05-24 | P66: 4.755 | Q66: 5.516 | R66: 6.392 | S66: 7.763 | T66: 5.823 | U66: 7.182 | V66: 6.342 | W66: 8.349 | X66: 6.512 | Y66: 8.676 | AA66: 4.943 | AB66: 6.728 | AC66: 7.051 | AD66: 7.297 | AE66: 7.234
B67: 61 | C67: 2000-09-30 | D67: 6.34 | E67: 6.45 | F67: 6.29 | G67: 5.98 | H67: 5.93 | I67: 5.89 | J67: 5.94 | K67: 5.79 | L67: 6.08 | M67: 6 | O67: 2017-05-23 | P67: 4.722 | Q67: 5.657 | R67: 6.51 | S67: 7.869 | T67: 5.86 | U67: 7.32 | V67: 6.356 | W67: 8.305 | X67: 6.596 | Y67: 9.039 | AA67: 4.102 | AB67: 5.862 | AC67: 7.117 | AD67: 7.198 | AE67: 7.222
B68: 62 | C68: 2000-06-30 | D68: 5.91 | E68: 6.48 | F68: 6.5 | G68: 6.46 | H68: 6.35 | I68: 6.26 | J68: 6.24 | K68: 6.18 | L68: 6.36 | M68: 6.04 | O68: 2017-05-22 | P68: 4.673 | Q68: 5.428 | R68: 6.506 | S68: 7.477 | T68: 5.949 | U68: 6.865 | V68: 6.354 | W68: 7.891 | X68: 6.572 | Y68: 8.726 | AA68: 4.126 | AB68: 5.855 | AC68: 7.111 | AD68: 7.393 | AE68: 7.234
B69: 63 | C69: 2000-03-31 | D69: 6.22 | E69: 6.34 | F69: 6.41 | G69: 6.49 | H69: 6.43 | I69: 6.3 | J69: 6.29 | K69: 6.21 | L69: 6.19 | M69: 5.98 | O69: 2017-05-19 | P69: 4.7 | Q69: 5.388 | R69: 6.54 | S69: 7.381 | T69: 6.016 | U69: 6.889 | V69: 6.35 | W69: 7.936 | X69: 6.58 | Y69: 8.352 | AA69: 4.149 | AB69: 5.961 | AC69: 7.138 | AD69: 6.798 | AE69: 7.239
B70: 64 | C70: 1999-12-31 | D70: 5.53 | E70: 5.83 | F70: 6.14 | G70: 6.24 | H70: 6.37 | I70: 6.3 | J70: 6.56 | K70: 6.42 | L70: 6.85 | M70: 6.61 | O70: 2017-05-16 | P70: 5.01 | Q70: 5.782 | R70: 6.612 | S70: 8.498 | T70: 6.005 | U70: 8.31 | V70: 6.333 | W70: 9.13 | X70: 6.545 | Y70: 9.533 | AA70: 4.332 | AB70: 6.004 | AC70: 7.304 | AD70: 7.365 | AE70: 7.291
B71: 65 | C71: 1999-09-30 | D71: 5.03 | E71: 5.14 | F71: 5.49 | G71: 5.67 | H71: 5.72 | I71: 5.72 | J71: 6.14 | K71: 5.95 | L71: 6.5 | M71: 6.2 | O71: 2017-05-15 | P71: 4.992 | Q71: 5.777 | R71: 6.663 | S71: 8.545 | T71: 5.97 | U71: 8.21 | V71: 6.266 | W71: 9.246 | X71: 6.533 | Y71: 9.533 | AA71: 4 | AB71: 6.025 | AC71: 7.375 | AD71: 7.729 | AE71: 7.497
B72: 66 | C72: 1999-06-30 | D72: 4.95 | E72: 5.03 | F72: 5.35 | G72: 5.54 | H72: 5.61 | I72: 5.66 | J72: 5.9 | K72: 5.78 | L72: 6.27 | M72: 6.02 | O72: 2017-05-12 | P72: 5.057 | Q72: 5.732 | R72: 6.674 | S72: 8.378 | T72: 5.869 | U72: 8.252 | V72: 6.189 | W72: 9.181 | X72: 6.405 | Y72: 9.532 | AA72: 4.071 | AB72: 6.154 | AC72: 7.341 | AD72: 7.521 | AE72: 7.508
B73: =B72+1 -> 67 | C73: 1999-03-31 | D73: 4.72 | E73: 4.74 | F73: 4.91 | G73: 5.04 | H73: 5.12 | I73: 5.13 | J73: 5.4 | K73: 5.21 | L73: 5.91 | M73: 5.68 | O73: 2017-05-11 | P73: 5.073 | Q73: 5.77 | R73: 6.66 | S73: 8.477 | T73: 5.792 | U73: 8.19 | V73: 6.108 | W73: 9.139 | X73: 6.389 | Y73: 9.463 | AA73: 4.121 | AB73: 6.184 | AC73: 7.399 | AD73: 7.587 | AE73: 7.532
B74: 68 | C74: 1998-12-31 | D74: 4.45 | E74: 4.54 | F74: 4.58 | G74: 4.52 | H74: 4.67 | I74: 4.57 | J74: 4.62 | K74: 4.63 | L74: 5.4 | M74: 5.12 | O74: 2017-05-10 | P74: 5.005 | Q74: 5.837 | R74: 6.66 | S74: 8.649 | T74: 5.819 | U74: 8.4 | V74: 6.235 | W74: 9.433 | X74: 6.492 | Y74: 9.72 | AA74: 5.09 | AB74: 6.27 | AC74: 7.426 | AD74: 6.949 | AE74: 7.458
B75: 69 | C75: 1998-09-30 | D75: 4.48 | E75: 4.6 | F75: 4.55 | G75: 4.33 | H75: 4.36 | I75: 4.27 | J75: 4.34 | K75: 4.37 | L75: 5.18 | M75: 5.03 | O75: 2017-05-08 | P75: 4.915 | Q75: 6.052 | R75: 6.648 | S75: 8.761 | T75: 5.966 | U75: 8.503 | V75: 6.32 | W75: 9.466 | X75: 6.578 | Y75: 9.802 | AA75: 5.069 | AB75: 6.279 | AC75: 7.366 | AD75: 7.388 | AE75: 7.486
B76: 70 | C76: 1998-06-30 | D76: 5.31 | E76: 5.35 | F76: 5.52 | G76: 5.51 | H76: 5.54 | I76: 5.48 | J76: 5.53 | K76: 5.45 | L76: 5.72 | M76: 5.63 | O76: 2017-05-05 | P76: 4.873 | Q76: 6.067 | R76: 6.638 | S76: 8.899 | T76: 5.971 | U76: 8.505 | V76: 6.381 | W76: 9.529 | X76: 6.565 | Y76: 9.827 | AA76: 5.485 | AB76: 6.211 | AC76: 7.302 | AD76: 7.65 | AE76: 7.485
B77: 71 | C77: 1998-03-31 | D77: 5.26 | E77: 5.52 | F77: 5.52 | G77: 5.57 | H77: 5.62 | I77: 5.62 | J77: 5.71 | K77: 5.65 | L77: 5.99 | M77: 5.94 | O77: 2017-05-04 | P77: 4.905 | Q77: 6.391 | R77: 6.642 | S77: 9.064 | T77: 5.954 | U77: 8.707 | V77: 6.389 | W77: 9.672 | X77: 6.569 | Y77: 10.029 | AA77: 5.413 | AB77: 5.97 | AC77: 7.294 | AD77: 7.649 | AE77: 7.516
B78: 72 | C78: 1997-12-31 | D78: 5.42 | E78: 5.58 | F78: 5.62 | G78: 5.67 | H78: 5.69 | I78: 5.71 | J78: 5.75 | K78: 5.74 | L78: 6 | M78: 5.94 | O78: 2017-05-03 | P78: 4.885 | Q78: 6.203 | R78: 6.63 | S78: 8.683 | T78: 5.912 | U78: 8.083 | V78: 6.235 | W78: 9.341 | X78: 6.557 | Y78: 9.577 | AA78: 5.505 | AB78: 5.916 | AC78: 7.224 | AD78: 7.518 | AE78: 7.372
B79: 73 | C79: 1997-09-30 | D79: 5.33 | E79: 5.54 | F79: 5.66 | G79: 5.79 | H79: 5.87 | I79: 6 | J79: 6.08 | K79: 6.2 | L79: 6.47 | M79: 6.42 | O79: 2017-05-02 | P79: 5.031 | Q79: 6.092 | R79: 6.731 | S79: 8.482 | T79: 5.573 | U79: 8.105 | V79: 6.055 | W79: 9.223 | X79: 6.382 | Y79: 9.537 | AA79: 5.536 | AB79: 5.657 | AC79: 7.25 | AD79: 7.386 | AE79: 7.366
B80: 74 | C80: 1997-06-30 | D80: 5.36 | E80: 5.51 | F80: 5.78 | G80: 6.05 | H80: 6.22 | I80: 6.38 | J80: 6.44 | K80: 6.5 | L80: 6.86 | M80: 6.8 | O80: 2017-05-01 | P80: 5.145 | Q80: 6.129 | R80: 6.886 | S80: 8.297 | T80: 5.704 | U80: 8.087 | V80: 6.06 | W80: 9.118 | X80: 6.261 | Y80: 9.5 | AA80: 4.293 | AB80: 5.245 | AC80: 7.258 | AD80: 7.3 | AE80: 7.434
B81: 75 | C81: 1997-03-31 | D81: 5.52 | E81: 5.7 | F81: 6.06 | G81: 6.41 | H81: 6.55 | I81: 6.73 | J81: 6.85 | K81: 6.97 | L81: 7.18 | M81: 7.12 | O81: 2017-04-28 | P81: 5.156 | Q81: 5.984 | R81: 7.021 | S81: 8.266 | T81: 5.675 | U81: 8.17 | V81: 6.109 | W81: 9.141 | X81: 6.314 | Y81: 9.537 | AA81: 4.347 | AB81: 5.259 | AC81: 7.136 | AD81: 6.747 | AE81: 7.444
B82: 76 | C82: 1996-12-31 | D82: 5.29 | E82: 5.4 | F82: 5.62 | G82: 5.88 | H82: 6.02 | I82: 6.19 | J82: 6.29 | K82: 6.41 | L82: 6.73 | M82: 6.65 | O82: 2017-04-27 | P82: 5.184 | Q82: 5.955 | R82: 7.013 | S82: 8.232 | T82: 5.797 | U82: 8.232 | V82: 6.375 | W82: 9.021 | X82: 6.483 | Y82: 9.335 | AA82: 4.619 | AB82: 5.049 | AC82: 7.239 | AD82: 6.757 | AE82: 7.372
B83: 77 | C83: 1996-09-30 | D83: 5.14 | E83: 5.46 | F83: 5.89 | G83: 6.1 | H83: 6.3 | I83: 6.46 | J83: 6.58 | K83: 6.7 | L83: 7.04 | M83: 6.93 | O83: 2017-04-25 | P83: 5.181 | Q83: 5.969 | R83: 6.803 | S83: 8.214 | T83: 5.73 | U83: 8.15 | V83: 6.112 | W83: 8.944 | X83: 6.317 | Y83: 9.255 | AA83: 4.556 | AB83: 5.021 | AC83: 7.159 | AD83: 6.898 | AE83: 7.311
B84: 78 | C84: 1996-06-30 | D84: 5.22 | E84: 5.44 | F84: 5.88 | G84: 6.13 | H84: 6.31 | I84: 6.47 | J84: 6.58 | K84: 6.65 | L84: 7.01 | M84: 6.9 | O84: 2017-04-24 | P84: 4.661 | Q84: 6.023 | R84: 6.264 | S84: 8.268 | T84: 5.79 | U84: 8.164 | V84: 6.071 | W84: 9.003 | X84: 6.331 | Y84: 9.269 | AA84: 4.324 | AB84: 5.016 | AC84: 7.338 | AD84: 6.772 | AE84: 7.413
B85: 79 | C85: 1996-03-31 | D85: 5.29 | E85: 5.31 | F85: 5.53 | G85: 5.79 | H85: 5.93 | I85: 6.08 | J85: 6.31 | K85: 6.39 | L85: 6.94 | M85: 6.69 | O85: 2017-04-21 | P85: 4.667 | Q85: 6.14 | R85: 6.291 | S85: 8.343 | T85: 5.844 | U85: 8.143 | V85: 6.182 | W85: 9.083 | X85: 6.429 | Y85: 9.375 | AA85: 5.057 | AB85: 4.993 | AC85: 7.371 | AD85: 7.492 | AE85: 7.439
B86: 80 | C86: 1995-12-31 | D86: 5.17 | E86: 5.24 | F86: 5.22 | G86: 5.17 | H86: 5.25 | I86: 5.38 | J86: 5.5 | K86: 5.61 | L86: 6.04 | M86: 5.95 | O86: 2017-04-20 | P86: 4.604 | Q86: 6.319 | R86: 6.285 | S86: 8.439 | T86: 5.806 | U86: 8.329 | V86: 6.085 | W86: 9.207 | X86: 6.354 | Y86: 9.423 | AA86: 4.217 | AB86: 4.992 | AC86: 7.481 | AD86: 7.761 | AE86: 7.517
B87: 81 | C87: 1995-09-30 | D87: 5.5 | E87: 5.65 | F87: 5.76 | G87: 5.89 | H87: 5.95 | I87: 6.03 | J87: 6.16 | K87: 6.2 | L87: 6.59 | M87: 6.5 | O87: 2017-04-19 | P87: 4.596 | Q87: 6.256 | R87: 6.285 | S87: 8.709 | T87: 5.784 | U87: 8.333 | V87: 6.146 | W87: 9.435 | X87: 6.388 | Y87: 9.817 | AA87: 3.828 | AB87: 4.991 | AC87: 7.517 | AD87: 7.642 | AE87: 7.598
B88: 82 | C88: 1995-06-30 | D88: 5.62 | E88: 5.65 | F88: 5.69 | G88: 5.82 | H88: 5.9 | I88: 5.97 | J88: 6.12 | K88: 6.29 | L88: 6.73 | M88: 6.67 | O88: 2017-04-18 | P88: 4.585 | Q88: 6.082 | R88: 6.275 | S88: 8.33 | T88: 5.665 | U88: 8.096 | V88: 5.973 | W88: 9.344 | X88: 6.287 | Y88: 9.666 | AA88: 3.516 | AB88: 5.021 | AC88: 7.55 | AD88: 7.176 | AE88: 7.594
B89: 83 | C89: 1995-03-31 | D89: 5.7 | E89: 5.94 | F89: 6.24 | G89: 6.85 | H89: 6.97 | I89: 7.1 | J89: 7.23 | K89: 7.32 | L89: 7.65 | M89: 7.65 | O89: 2017-04-13 | P89: 4.535 | Q89: 5.786 | R89: 6.285 | S89: 8.108 | T89: 5.584 | U89: 7.99 | V89: 5.911 | W89: 9.011 | X89: 6.225 | Y89: 9.275 | AA89: 3.424 | AB89: 4.564 | AC89: 7.501 | AD89: 7.531 | AE89: 7.559
B90: 84 | C90: 1994-12-31 | D90: 5.53 | E90: 6.32 | F90: 6.92 | G90: 7.77 | H90: 7.86 | I90: 7.86 | J90: 7.99 | K90: 7.95 | L90: 8.19 | M90: 8.1 | O90: 2017-04-12 | P90: 4.528 | Q90: 5.813 | R90: 6.284 | S90: 8.114 | T90: 5.584 | U90: 7.802 | V90: 5.912 | W90: 9.011 | X90: 6.227 | Y90: 9.323 | AA90: 3.469 | AB90: 3.486 | AC90: 7.594 | AD90: 7.387 | AE90: 7.556
B91: 85 | C91: 1994-09-30 | D91: 4.62 | E91: 5.25 | F91: 5.69 | G91: 6.66 | H91: 6.95 | I91: 7.31 | J91: 7.46 | K91: 7.73 | L91: 8.05 | M91: 8.04 | O91: 2017-04-11 | P91: 4.709 | Q91: 5.762 | R91: 6.235 | S91: 8.04 | T91: 5.625 | U91: 7.753 | V91: 5.802 | W91: 8.885 | X91: 6.202 | Y91: 9.274 | AA91: 3.471 | AB91: 3.482 | AC91: 7.679 | AD91: 7.445 | AE91: 7.556
B92: 86 | C92: 1994-06-30 | D92: 4.07 | E92: 4.63 | F92: 5.24 | G92: 6.25 | H92: 6.55 | I92: 6.98 | J92: 7.14 | K92: 7.45 | L92: 7.81 | M92: 7.83 | O92: 2017-04-10 | P92: 4.721 | Q92: 5.636 | R92: 6.108 | S92: 7.823 | T92: 5.49 | U92: 7.672 | V92: 5.704 | W92: 8.688 | X92: 6.049 | Y92: 9.035 | AA92: 3.284 | AB92: 3.488 | AC92: 7.657 | AD92: 7.768 | AE92: 7.55
B93: 87 | C93: 1994-03-31 | D93: 3.55 | E93: 3.94 | F93: 4.43 | G93: 5.22 | H93: 5.68 | I93: 6.24 | J93: 6.54 | K93: 6.85 | L93: 7.22 | M93: 7.32 | O93: 2017-04-07 | P93: 4.763 | Q93: 5.646 | R93: 6.335 | S93: 7.807 | T93: 5.44 | U93: 7.674 | V93: 5.701 | W93: 8.703 | X93: 6.039 | Y93: 8.987 | AA93: 3.257 | AB93: 3.485 | AC93: 7.399 | AD93: 7.288 | AE93: 7.558
B94: 88 | C94: 1993-12-31 | D94: 3.06 | E94: 3.27 | F94: 3.59 | G94: 4.23 | H94: 4.58 | I94: 5.19 | J94: 5.54 | K94: 5.89 | L94: 6.41 | M94: 6.61 | O94: 2017-04-06 | P94: 4.889 | Q94: 5.526 | R94: 6.332 | S94: 7.619 | T94: 5.185 | U94: 7.614 | V94: 5.605 | W94: 8.518 | X94: 5.942 | Y94: 8.8 | AA94: 3.061 | AB94: 3.471 | AC94: 7.532 | AD94: 8.039 | AE94: 7.605
B95: 89 | C95: 1993-09-30 | D95: 2.98 | E95: 3.13 | F95: 3.35 | G95: 3.89 | H95: 4.25 | I95: 4.81 | J95: 5.11 | K95: 5.52 | L95: 6.23 | M95: 6.34 | O95: 2017-04-05 | P95: 5.01 | Q95: 5.393 | R95: 6.367 | S95: 7.62 | T95: 5.276 | U95: 7.611 | V95: 5.605 | W95: 8.507 | X95: 5.914 | Y95: 8.728 | AA95: 3.226 | AB95: 3.477 | AC95: 7.55 | AD95: 7.68 | AE95: 7.604
B96: 90 | C96: 1993-06-30 | D96: 3.07 | E96: 3.19 | F96: 3.42 | G96: 4.02 | H96: 4.43 | I96: 5.08 | J96: 5.5 | K96: 5.86 | L96: 6.64 | M96: 6.8 | O96: 2017-04-04 | P96: 4.859 | Q96: 5.458 | R96: 6.346 | S96: 7.617 | T96: 5.187 | U96: 7.605 | V96: 5.567 | W96: 8.517 | X96: 5.833 | Y96: 8.799 | AA96: 2.69 | AB96: 3.533 | AC96: 7.716 | AD96: 7.956 | AE96: 7.596
B97: 91 | C97: 1993-03-31 | D97: 2.94 | E97: 3.07 | F97: 3.27 | G97: 4 | H97: 4.45 | I97: 5.32 | J97: 5.82 | K97: 6.24 | L97: 7 | M97: 7.12 | O97: 2017-04-03 | P97: 4.857 | Q97: 5.377 | R97: 6.343 | S97: 7.667 | T97: 5.086 | U97: 7.575 | V97: 5.543 | W97: 8.405 | X97: 5.842 | Y97: 8.672 | AA97: 3.085 | AB97: 3.556 | AC97: 7.81 | AD97: 8.001 | AE97: 7.647
B98: 92 | C98: 1992-12-31 | D98: 3.13 | E98: 3.36 | F98: 3.56 | G98: 4.73 | H98: 5.23 | I98: 6.16 | J98: 6.64 | K98: 6.8 | L98: 7.43 | M98: 7.51 | O98: 2017-03-31 | P98: 4.945 | Q98: 5.378 | R98: 6.343 | S98: 7.526 | T98: 5.123 | U98: 7.574 | V98: 5.543 | W98: 8.405 | X98: 5.821 | Y98: 8.66 | AA98: 3.093 | AB98: 3.642 | AC98: 7.828 | AD98: 8.021 | AE98: 7.913
B99: 93 | C99: 1992-09-30 | D99: 2.63 | E99: 2.91 | F99: 3.14 | G99: 3.83 | H99: 4.42 | I99: 5.41 | J99: 6.15 | K99: 6.42 | L99: 7.44 | M99: 7.47 | O99: 2017-03-30 | P99: 4.945 | Q99: 5.405 | R99: 6.407 | S99: 7.61 | T99: 5.174 | U99: 7.71 | V99: 5.543 | W99: 8.451 | X99: 5.761 | Y99: 8.798 | AA99: 3.102 | AB99: 3.643 | AC99: 7.864 | AD99: 8.087 | AE99: 7.913
B100: 94 | C100: 1992-06-30 | D100: 3.53 | E100: 3.77 | F100: 4.09 | G100: 4.82 | H100: 5.41 | I100: 6.34 | J100: 6.84 | K100: 7.22 | L100: 7.76 | M100: 7.85 | O100: 2017-03-29 | P100: 4.975 | Q100: 5.795 | R100: 6.455 | S100: 7.794 | T100: 5.249 | U100: 7.902 | V100: 5.599 | W100: 8.698 | X100: 5.842 | Y100: 8.752 | AA100: 3.574 | AB100: 5.358 | AC100: 8.108 | AD100: 7.907 | AE100: 8.074
B101: 95 | C101: 1992-03-31 | D101: 4.01 | E101: 4.28 | F101: 4.66 | G101: 5.6 | H101: 6.26 | I101: 7.04 | J101: 7.39 | K101: 7.68 | L101: 7.88 | M101: 8.07 | O101: 2017-03-28 | P101: 5.004 | Q101: 5.849 | R101: 6.376 | S101: 7.893 | T101: 5.325 | U101: 7.914 | V101: 5.677 | W101: 8.709 | X101: 5.953 | Y101: 8.89 | AA101: 3.705 | AB101: 5.863 | AC101: 8.125 | AD101: 7.473 | AE101: 8.154
B102: 96 | C102: 1991-12-31 | D102: 4.11 | E102: 4.17 | F102: 4.37 | G102: 4.83 | H102: 5.29 | I102: 6.14 | J102: 6.56 | K102: 6.86 | L102: 7.37 | M102: 7.53 | O102: 2017-03-27 | P102: 5.18 | Q102: 5.928 | R102: 6.599 | S102: 8.122 | T102: 5.439 | U102: 8.038 | V102: 5.801 | W102: 8.997 | X102: 6.087 | Y102: 9.077 | AA102: 3.596 | AB102: 6.345 | AC102: 8.219 | AD102: 7.984 | AE102: 8.195
B103: 97 | C103: 1991-09-30 | D103: 5.53 | E103: 5.52 | F103: 5.69 | G103: 6.08 | H103: 6.39 | I103: 7.01 | J103: 7.31 | K103: 7.53 | L103: 7.81 | M103: 7.89 | O103: 2017-03-24 | P103: 5.18 | Q103: 5.903 | R103: 6.551 | S103: 8.122 | T103: 5.414 | U103: 8.037 | V103: 5.778 | W103: 8.84 | X103: 6.025 | Y103: 9.195 | AA103: 3.603 | AB103: 6.222 | AC103: 8.104 | AD103: 7.567 | AE103: 8.194
B104: 98 | C104: 1991-06-30 | D104: 5.98 | E104: 6.18 | F104: 6.61 | G104: 7.01 | H104: 7.45 | I104: 7.95 | J104: 8.2 | K104: 8.34 | L104: 8.47 | M104: 8.48 | O104: 2017-03-23 | P104: 4.976 | Q104: 6.165 | R104: 6.424 | S104: 8.136 | T104: 5.427 | U104: 8.037 | V104: 5.812 | W104: 8.935 | X104: 6.316 | Y104: 9.171 | AA104: 3.956 | AB104: 6.16 | AC104: 8.503 | AD104: 8.387 | AE104: 8.248
B105: 99 | O105: 2017-03-22 | P105: 5.209 | Q105: 6.218 | R105: 6.408 | S105: 8.121 | T105: 5.414 | U105: 8.064 | V105: 5.812 | W105: 9.068 | X105: 6.138 | Y105: 9.254 | AA105: 3.962 | AB105: 6.158 | AC105: 8.502 | AD105: 8.22 | AE105: 8.152
B106: 100 | O106: 2017-03-21 | P106: 5.267 | Q106: 5.958 | R106: 6.472 | S106: 8.019 | T106: 5.363 | U106: 7.785 | V106: 5.699 | W106: 8.934 | X106: 6.086 | Y106: 9.075 | AA106: 3.923 | AB106: 5.854 | AC106: 8.383 | AD106: 8.484 | AE106: 8.191
B107: 101 | O107: 2017-03-17 | P107: 5.267 | Q107: 5.753 | R107: 6.536 | S107: 7.735 | T107: 5.275 | U107: 7.715 | V107: 5.632 | W107: 8.73 | X107: 5.882 | Y107: 8.981 | AA107: 3.878 | AB107: 5.555 | AC107: 8.248 | AD107: 8.15 | AE107: 8.217
B108: 102 | O108: 2017-03-16 | P108: 5.15 | Q108: 5.754 | R108: 6.744 | S108: 7.763 | T108: 5.312 | U108: 7.606 | V108: 5.71 | W108: 8.658 | X108: 5.993 | Y108: 9.055 | AA108: 3.827 | AB108: 5.583 | AC108: 8.418 | AD108: 8.549 | AE108: 8.203
B109: 103 | O109: 2017-03-15 | P109: 5.208 | Q109: 5.755 | R109: 6.632 | S109: 7.99 | T109: 5.452 | U109: 8.141 | V109: 5.993 | W109: 8.8 | X109: 6.137 | Y109: 9.168 | AA109: 4.117 | AB109: 5.818 | AC109: 8.589 | AD109: 8.348 | AE109: 8.257
B110: 104 | O110: 2017-03-14 | P110: 5.064 | Q110: 5.963 | R110: 6.426 | S110: 8.189 | T110: 5.54 | U110: 8.237 | V110: 5.958 | W110: 9.015 | X110: 6.22 | Y110: 9.155 | AA110: 4.758 | AB110: 5.579 | AC110: 8.566 | AD110: 7.885 | AE110: 8.475
B111: 105 | O111: 2017-03-13 | P111: 5.064 | Q111: 5.758 | R111: 6.394 | S111: 8.146 | T111: 5.413 | U111: 8.068 | V111: 5.902 | W111: 8.68 | X111: 6.137 | Y111: 9.131 | AA111: 3.635 | AB111: 5.548 | AC111: 8.622 | AD111: 8.952 | AE111: 8.474
B112: 106 | O112: 2017-03-10 | P112: 4.835 | Q112: 5.862 | R112: 6.206 | S112: 8.031 | T112: 5.413 | U112: 8.068 | V112: 5.867 | W112: 8.68 | X112: 5.962 | Y112: 9.061 | AA112: 3.642 | AB112: 5.606 | AC112: 8.698 | AD112: 8.746 | AE112: 8.474
B113: 107 | O113: 2017-03-09 | P113: 4.836 | Q113: 5.888 | R113: 6.129 | S113: 8.073 | T113: 5.515 | U113: 8.067 | V113: 5.969 | W113: 8.918 | X113: 6.167 | Y113: 9.083 | AA113: 3.648 | AB113: 5.43 | AC113: 8.928 | AD113: 8.813 | AE113: 8.612
B114: 108 | O114: 2017-03-08 | P114: 4.808 | Q114: 5.761 | R114: 6.129 | S114: 7.931 | T114: 5.451 | U114: 8.094 | V114: 5.856 | W114: 8.798 | X114: 6.075 | Y114: 9.071 | AA114: 3.268 | AB114: 5.545 | AC114: 7.315 | AD114: 8.013 | AE114: 8.078
B115: 109 | O115: 2017-03-07 | P115: 4.894 | Q115: 5.561 | R115: 6.099 | S115: 7.803 | T115: 5.25 | U115: 7.816 | V115: 5.754 | W115: 8.655 | X115: 5.992 | Y115: 8.861 | AA115: 3.29 | AB115: 5.484 | AC115: 7.936 | AD115: 8.208 | AE115: 8.063
B116: 110 | O116: 2017-03-06 | P116: 4.724 | Q116: 5.511 | R116: 6.037 | S116: 7.649 | T116: 5.175 | U116: 7.598 | V116: 5.676 | W116: 8.561 | X116: 5.871 | Y116: 8.791 | AA116: 3.298 | AB116: 5.483 | AC116: 7.151 | AD116: 7.734 | AE116: 7.521
B117: 111 | O117: 2017-03-03 | P117: 4.781 | Q117: 5.412 | R117: 6.022 | S117: 7.579 | T117: 5.051 | U117: 7.597 | V117: 5.587 | W117: 8.467 | X117: 5.76 | Y117: 8.791 | AA117: 3.305 | AB117: 5.482 | AC117: 7.169 | AD117: 7.243 | AE117: 7.534
B118: 112 | O118: 2017-03-02 | P118: 4.782 | Q118: 5.438 | R118: 6.038 | S118: 7.565 | T118: 5.039 | U118: 7.597 | V118: 5.532 | W118: 8.444 | X118: 5.75 | Y118: 8.745 | AA118: 3.204 | AB118: 5.481 | AC118: 6.954 | AD118: 6.938 | AE118: 7.43
B119: 113 | O119: 2017-03-01 | P119: 4.782 | Q119: 5.565 | R119: 6.039 | S119: 7.62 | T119: 5.014 | U119: 7.65 | V119: 5.576 | W119: 8.467 | X119: 5.76 | Y119: 8.699 | AA119: 3.265 | AB119: 5.771 | AC119: 6.883 | AD119: 7.559 | AE119: 7.417
B120: 114 | O120: 2017-02-28 | P120: 4.755 | Q120: 5.468 | R120: 6.04 | S120: 7.69 | T120: 5.188 | U120: 7.729 | V120: 5.62 | W120: 8.489 | X120: 5.87 | Y120: 8.79 | AA120: 3.287 | AB120: 5.767 | AC120: 6.829 | AD120: 7.749 | AE120: 7.186
B121: 115 | O121: 2017-02-24 | P121: 4.84 | Q121: 5.471 | R121: 5.933 | S121: 7.703 | T121: 5.225 | U121: 7.741 | V121: 5.643 | W121: 8.442 | X121: 5.85 | Y121: 8.744 | AA121: 3.302 | AB121: 5.765 | AC121: 6.864 | AD121: 7.493 | AE121: 7.147
B122: 116 | O122: 2017-02-23 | P122: 4.841 | Q122: 5.424 | R122: 5.996 | S122: 7.703 | T122: 5.238 | U122: 7.875 | V122: 5.598 | W122: 8.604 | X122: 5.84 | Y122: 8.881 | AA122: 3.377 | AB122: 5.79 | AC122: 6.916 | AD122: 7.171 | AE122: 7.147
B123: 117 | O123: 2017-02-21 | P123: 4.843 | Q123: 5.429 | R123: 6.028 | S123: 7.702 | T123: 5.337 | U123: 7.804 | V123: 5.687 | W123: 8.603 | X123: 5.88 | Y123: 8.88 | AA123: 3.352 | AB123: 5.987 | AC123: 6.531 | AD123: 7.085 | AE123: 6.946
B124: 118 | O124: 2017-02-17 | P124: 4.843 | Q124: 5.554 | R124: 6.059 | S124: 7.814 | T124: 5.4 | U124: 7.844 | V124: 5.72 | W124: 8.487 | X124: 5.961 | Y124: 8.787 | AA124: 3.306 | AB124: 5.957 | AC124: 6.497 | AD124: 6.87 | AE124: 6.921
B125: 119 | O125: 2017-02-16 | P125: 4.983 | Q125: 5.73 | R125: 5.998 | S125: 7.925 | T125: 5.412 | U125: 7.816 | V125: 5.776 | W125: 8.579 | X125: 5.96 | Y125: 8.81 | AA125: 3.313 | AB125: 5.927 | AC125: 6.514 | AD125: 6.76 | AE125: 6.921
B126: 120 | O126: 2017-02-15 | P126: 4.955 | Q126: 5.706 | R126: 6.014 | S126: 7.953 | T126: 5.412 | U126: 7.911 | V126: 5.854 | W126: 8.708 | X126: 5.89 | Y126: 8.833 | AA126: 3.32 | AB126: 5.925 | AC126: 6.514 | AD126: 6.634 | AE126: 6.946
B127: 121 | O127: 2017-02-14 | P127: 4.956 | Q127: 5.884 | R127: 6 | S127: 8.065 | T127: 5.462 | U127: 8.128 | V127: 5.809 | W127: 8.848 | X127: 6.021 | Y127: 9.071 | AA127: 3.452 | AB127: 5.92 | AC127: 6.428 | AD127: 6.627 | AE127: 6.821
B128: 122 | O128: 2017-02-13 | P128: 4.929 | Q128: 5.81 | R128: 5.955 | S128: 8.122 | T128: 5.588 | U128: 8.127 | V128: 5.932 | W128: 8.895 | X128: 6.061 | Y128: 9.016 | AA128: 3.407 | AB128: 5.89 | AC128: 6.411 | AD128: 6.643 | AE128: 6.896
B129: 123 | O129: 2017-02-09 | P129: 4.957 | Q129: 6.086 | R129: 5.956 | S129: 8.121 | T129: 5.715 | U129: 8.098 | V129: 6.034 | W129: 8.907 | X129: 6.246 | Y129: 9.016 | AA129: 3.163 | AB129: 5.859 | AC129: 6.377 | AD129: 6.748 | AE129: 6.809
B130: 124 | O130: 2017-02-08 | P130: 4.847 | Q130: 5.59 | R130: 5.987 | S130: 7.645 | T130: 5.425 | U130: 7.449 | V130: 5.853 | W130: 8.635 | X130: 6.061 | Y130: 8.785 | AA130: 3.17 | AB130: 5.886 | AC130: 6.36 | AD130: 6.211 | AE130: 6.871
B131: 125 | O131: 2017-02-07 | P131: 4.765 | Q131: 5.593 | R131: 6.003 | S131: 7.562 | T131: 5.3 | U131: 7.447 | V131: 5.708 | W131: 8.564 | X131: 6.02 | Y131: 8.722 | AA131: 2.988 | AB131: 5.768 | AC131: 6.258 | AD131: 6.568 | AE131: 6.785
B132: 126 | O132: 2017-02-06 | P132: 4.821 | Q132: 5.619 | R132: 5.988 | S132: 7.535 | T132: 5.412 | U132: 7.446 | V132: 5.708 | W132: 8.576 | X132: 6 | Y132: 8.739 | AA132: 3.046 | AB132: 5.654 | AC132: 6.258 | AD132: 6.628 | AE132: 6.809
B133: 127 | O133: 2017-02-03 | P133: 4.794 | Q133: 5.62 | R133: 5.974 | S133: 7.508 | T133: 5.424 | U133: 7.446 | V133: 5.697 | W133: 8.541 | X133: 5.959 | Y133: 8.738 | AA133: 3.054 | AB133: 5.653 | AC133: 6.241 | AD133: 6.424 | AE133: 6.797
B134: 128 | O134: 2017-02-02 | P134: 4.821 | Q134: 5.572 | R134: 6.005 | S134: 7.48 | T134: 5.462 | U134: 7.485 | V134: 5.808 | W134: 8.506 | X134: 6.03 | Y134: 8.738 | AA134: 3.263 | AB134: 5.878 | AC134: 6.241 | AD134: 6.431 | AE134: 6.809
B135: 129 | O135: 2017-02-01 | P135: 4.849 | Q135: 5.622 | R135: 6.02 | S135: 7.521 | T135: 5.487 | U135: 7.498 | V135: 5.808 | W135: 8.482 | X135: 6.01 | Y135: 8.691 | AA135: 3.169 | AB135: 5.707 | AC135: 6.258 | AD135: 6.658 | AE135: 6.821
B136: 130 | O136: 2017-01-31 | P136: 4.823 | Q136: 5.479 | R136: 5.961 | S136: 7.562 | T136: 5.424 | U136: 7.536 | V136: 5.841 | W136: 8.436 | X136: 6.04 | Y136: 8.692 | AA136: 3.191 | AB136: 5.929 | AC136: 6.259 | AD136: 6.569 | AE136: 6.772
B137: =B136+1 -> 131 | O137: 2017-01-30 | P137: 4.823 | Q137: 5.504 | R137: 6.022 | S137: 7.507 | T137: 5.424 | U137: 7.602 | V137: 5.83 | W137: 8.424 | X137: 6.04 | Y137: 8.602 | AA137: 3.098 | AB137: 5.843 | AC137: 6.225 | AD137: 6.509 | AE137: 6.797
B138: 132 | O138: 2017-01-27 | P138: 4.824 | Q138: 5.505 | R138: 5.992 | S138: 7.466 | T138: 5.375 | U138: 7.628 | V138: 5.697 | W138: 8.367 | X138: 5.989 | Y138: 8.512 | AA138: 3.005 | AB138: 5.983 | AC138: 6.108 | AD138: 6.426 | AE138: 6.772
B139: 133 | O139: 2017-01-26 | P139: 4.824 | Q139: 5.287 | R139: 6.037 | S139: 7.507 | T139: 5.437 | U139: 7.588 | V139: 5.708 | W139: 8.344 | X139: 6.04 | Y139: 8.63 | AA139: 3.055 | AB139: 5.87 | AC139: 6.108 | AD139: 6.809 | AE139: 6.785
B140: 134 | O140: 2017-01-24 | P140: 5.124 | Q140: 5.341 | R140: 6.054 | S140: 7.561 | T140: 5.599 | U140: 7.826 | V140: 5.896 | W140: 8.343 | X140: 6.11 | Y140: 8.601 | AA140: 3.232 | AB140: 6.261 | AC140: 6.31 | AD140: 6.546 | AE140: 6.711
B141: 135 | O141: 2017-01-23 | P141: 5.124 | Q141: 5.318 | R141: 6.054 | S141: 7.643 | T141: 5.611 | U141: 7.826 | V141: 5.93 | W141: 8.469 | X141: 6.171 | Y141: 8.736 | AA141: 3.239 | AB141: 6.544 | AC141: 6.159 | AD141: 6.809 | AE141: 6.687
B142: 136 | O142: 2017-01-19 | P142: 5.043 | Q142: 5.393 | R142: 6.055 | S142: 7.726 | T142: 5.536 | U142: 7.838 | V142: 5.885 | W142: 8.537 | X142: 6.13 | Y142: 8.736 | AA142: 3.253 | AB142: 6.683 | AC142: 6.126 | AD142: 6.858 | AE142: 6.651
B143: 137 | O143: 2017-01-18 | P143: 5.043 | Q143: 5.394 | R143: 6.056 | S143: 7.794 | T143: 5.548 | U143: 7.891 | V143: 5.929 | W143: 8.503 | X143: 6.151 | Y143: 8.735 | AA143: 3.259 | AB143: 6.652 | AC143: 6.126 | AD143: 6.393 | AE143: 6.627
B144: 138 | O144: 2017-01-17 | P144: 4.935 | Q144: 5.35 | R144: 6.042 | S144: 7.808 | T144: 5.648 | U144: 8.011 | V144: 5.94 | W144: 8.629 | X144: 6.181 | Y144: 8.773 | AA144: 3.231 | AB144: 6.731 | AC144: 6.093 | AD144: 5.871 | AE144: 6.591
B145: 139 | O145: 2017-01-13 | P145: 4.963 | Q145: 5.447 | R145: 6.012 | S145: 8.03 | T145: 5.648 | U145: 8.092 | V145: 5.94 | W145: 8.64 | X145: 6.17 | Y145: 8.735 | AA145: 3.238 | AB145: 6.758 | AC145: 6.044 | AD145: 6.991 | AE145: 6.615
B146: 140 | O146: 2017-01-12 | P146: 5.071 | Q146: 5.352 | R146: 6.043 | S146: 8.057 | T146: 5.636 | U146: 8.132 | V146: 5.906 | W146: 8.675 | X146: 6.12 | Y146: 8.863 | AA146: 3.439 | AB146: 6.756 | AC146: 6.044 | AD146: 7.606 | AE146: 6.627
B147: 141 | O147: 2017-01-11 | P147: 5.125 | Q147: 5.449 | R147: 6.103 | S147: 8.141 | T147: 5.636 | U147: 8.132 | V147: 5.973 | W147: 8.64 | X147: 6.079 | Y147: 8.825 | AA147: 3.542 | AB147: 6.583 | AC147: 6.211 | AD147: 6.738 | AE147: 6.615
B148: 142 | O148: 2017-01-10 | P148: 5.152 | Q148: 5.478 | R148: 6.09 | S148: 8.042 | T148: 5.635 | U148: 8.197 | V148: 5.972 | W148: 8.569 | X148: 6.068 | Y148: 8.824 | AA148: 3.422 | AB148: 6.688 | AC148: 6.245 | AD148: 5.989 | AE148: 6.603
B149: 143 | O149: 2017-01-09 | P149: 5.179 | Q149: 5.479 | R149: 6.09 | S149: 8.028 | T149: 5.648 | U149: 8.155 | V149: 5.972 | W149: 8.581 | X149: 6.119 | Y149: 8.824 | AA149: 3.476 | AB149: 6.629 | AC149: 6.245 | AD149: 6.395 | AE149: 6.7
B150: 144 | O150: 2017-01-06 | P150: 5.178 | Q150: 5.385 | R150: 6.076 | S150: 8 | T150: 5.66 | U150: 8.223 | V150: 5.972 | W150: 8.5 | X150: 6.099 | Y150: 8.733 | AA150: 3.434 | AB150: 6.627 | AC150: 6.245 | AD150: 7.02 | AE150: 6.773
B151: 145 | O151: 2017-01-05 | P151: 5.178 | Q151: 5.577 | R151: 6.121 | S151: 8.014 | T151: 5.647 | U151: 8.236 | V151: 5.971 | W151: 8.523 | X151: 6.098 | Y151: 8.778 | AA151: 3.488 | AB151: 6.681 | AC151: 6.346 | AD151: 6.483 | AE151: 6.785
B152: 146 | O152: 2017-01-04 | P152: 5.339 | Q152: 5.602 | R152: 6.151 | S152: 7.972 | T152: 5.66 | U152: 8.29 | V152: 6.038 | W152: 8.545 | X152: 6.129 | Y152: 8.778 | AA152: 3.542 | AB152: 6.735 | AC152: 6.362 | AD152: 6.631 | AE152: 6.7
B153: 147 | O153: 2017-01-03 | P153: 5.258 | Q153: 5.796 | R153: 6.243 | S153: 8.152 | T153: 5.81 | U153: 8.454 | V153: 6.094 | W153: 8.788 | X153: 6.22 | Y153: 8.96 | AA153: 3.418 | AB153: 6.728 | AC153: 6.632 | AD153: 6.982 | AE153: 6.956
B154: 148 | O154: 2016-12-29 | P154: 5.311 | Q154: 5.774 | R154: 6.319 | S154: 8.335 | T154: 5.722 | U154: 8.55 | V154: 6.049 | W154: 8.964 | X154: 6.189 | Y154: 9.005 | AA154: 3.43 | AB154: 6.78 | AC154: 6.682 | AD154: 7.001 | AE154: 7.005
B155: 149 | O155: 2016-12-28 | P155: 5.311 | Q155: 5.751 | R155: 6.244 | S155: 8.433 | T155: 5.747 | U155: 8.493 | V155: 6.06 | W155: 8.881 | X155: 6.291 | Y155: 9.144 | AA155: 3.578 | AB155: 6.778 | AC155: 6.886 | AD155: 7.344 | AE155: 6.981
B156: 150 | O156: 2016-12-27 | P156: 5.337 | Q156: 5.873 | R156: 6.335 | S156: 8.475 | T156: 5.809 | U156: 8.574 | V156: 6.059 | W156: 8.869 | X156: 6.28 | Y156: 9.252 | AA156: 3.642 | AB156: 6.855 | AC156: 6.903 | AD156: 7.597 | AE156: 7.018
B157: 151 | O157: 2016-12-23 | P157: 5.443 | Q157: 5.922 | R157: 6.366 | S157: 8.432 | T157: 5.821 | U157: 8.602 | V157: 6.059 | W157: 8.939 | X157: 6.28 | Y157: 9.178 | AA157: 3.648 | AB157: 6.853 | AC157: 6.886 | AD157: 6.928 | AE157: 7.018
B158: 152 | O158: 2016-12-22 | P158: 5.47 | Q158: 5.994 | R158: 6.215 | S158: 8.474 | T158: 5.809 | U158: 8.629 | V158: 6.059 | W158: 8.939 | X158: 6.28 | Y158: 9.177 | AA158: 3.654 | AB158: 6.85 | AC158: 6.903 | AD158: 7.621 | AE158: 7.017
B159: 153 | O159: 2016-12-20 | P159: 5.335 | Q159: 6.165 | R159: 6.307 | S159: 8.629 | T159: 5.858 | U159: 8.61 | V159: 6.069 | W159: 8.937 | X159: 6.29 | Y159: 9.201 | AA159: 3.728 | AB159: 6.894 | AC159: 6.885 | AD159: 7.052 | AE159: 7.116
B160: 154 | O160: 2016-12-19 | P160: 5.361 | Q160: 6.214 | R160: 6.368 | S160: 8.629 | T160: 5.845 | U160: 8.623 | V160: 6.057 | W160: 8.902 | X160: 6.289 | Y160: 9.262 | AA160: 3.734 | AB160: 6.92 | AC160: 7.021 | AD160: 7.104 | AE160: 7.116
B161: 155 | O161: 2016-12-16 | P161: 5.308 | Q161: 6.286 | R161: 6.278 | S161: 8.628 | T161: 5.82 | U161: 8.608 | V161: 6.091 | W161: 9.079 | X161: 6.289 | Y161: 9.327 | AA161: 4.297 | AB161: 6.918 | AC161: 6.952 | AD161: 7.904 | AE161: 7.264
B162: 156 | O162: 2016-12-15 | P162: 5.308 | Q162: 6.359 | R162: 6.278 | S162: 8.771 | T162: 5.946 | U162: 8.607 | V162: 6.079 | W162: 9.114 | X162: 6.31 | Y162: 9.445 | AA162: 3.791 | AB162: 6.804 | AC162: 7.003 | AD162: 7.589 | AE162: 7.302
B163: 157 | O163: 2016-12-14 | P163: 5.255 | Q163: 6.048 | R163: 6.353 | S163: 8.499 | T163: 5.658 | U163: 8.606 | V163: 5.923 | W163: 8.96 | X163: 6.137 | Y163: 9.186 | AA163: 3.566 | AB163: 6.746 | AC163: 6.935 | AD163: 6.748 | AE163: 7.202
B164: 158 | O164: 2016-12-13 | P164: 5.28 | Q164: 6.098 | R164: 6.535 | S164: 8.484 | T164: 5.67 | U164: 8.604 | V164: 5.934 | W164: 9.03 | X164: 6.086 | Y164: 9.279 | AA164: 3.812 | AB164: 6.464 | AC164: 6.934 | AD164: 7.653 | AE164: 7.214
B165: 159 | O165: 2016-12-12 | P165: 5.28 | Q165: 6.193 | R165: 6.657 | S165: 8.455 | T165: 5.645 | U165: 8.617 | V165: 5.923 | W165: 9.006 | X165: 6.147 | Y165: 9.279 | AA165: 3.817 | AB165: 6.682 | AC165: 6.951 | AD165: 7.201 | AE165: 7.289
B166: 160 | O166: 2016-12-08 | P166: 5.569 | Q166: 6.242 | R166: 6.872 | S166: 8.582 | T166: 5.534 | U166: 8.713 | V166: 5.989 | W166: 9.244 | X166: 6.227 | Y166: 9.466 | AA166: 3.827 | AB166: 6.678 | AC166: 7.43 | AD166: 7.391 | AE166: 7.615
B167: 161 | O167: 2016-12-07 | P167: 5.622 | Q167: 6.433 | R167: 6.887 | S167: 8.61 | T167: 5.719 | U167: 8.698 | V167: 6.055 | W167: 9.147 | X167: 6.187 | Y167: 9.609 | AA167: 3.56 | AB167: 6.703 | AC167: 7.586 | AD167: 7.528 | AE167: 7.691
B168: 162 | O168: 2016-12-06 | P168: 5.594 | Q168: 6.674 | R168: 6.903 | S168: 9.012 | T168: 6.146 | U168: 9.093 | V168: 6.484 | W168: 9.534 | X168: 6.513 | Y168: 9.776 | AA168: 3.848 | AB168: 6.861 | AC168: 7.672 | AD168: 7.773 | AE168: 7.869
B169: 163 | O169: 2016-12-05 | P169: 5.91 | Q169: 7.208 | R169: 6.903 | S169: 9.32 | T169: 6.402 | U169: 9.164 | V169: 6.564 | W169: 9.97 | X169: 6.743 | Y169: 10.294 | AA169: 3.853 | AB169: 6.859 | AC169: 7.724 | AD169: 7.834 | AE169: 7.972
B170: 164 | O170: 2016-12-02 | P170: 5.989 | Q170: 6.65 | R170: 6.934 | S170: 8.722 | T170: 6.248 | U170: 8.863 | V170: 6.437 | W170: 9.805 | X170: 6.722 | Y170: 9.921 | AA170: 3.813 | AB170: 6.61 | AC170: 7.828 | AD170: 7.71 | AE170: 7.972
B171: 165 | O171: 2016-12-01 | P171: 6.095 | Q171: 6.388 | R171: 6.934 | S171: 8.594 | T171: 6.222 | U171: 8.609 | V171: 6.335 | W171: 9.145 | X171: 6.575 | Y171: 9.511 | AA171: 3.818 | AB171: 6.635 | AC171: 7.986 | AD171: 8.463 | AE171: 7.946
B172: 166 | O172: 2016-11-30 | P172: 6.12 | Q172: 6.27 | R172: 6.934 | S172: 8.438 | T172: 6.044 | U172: 8.455 | V172: 6.188 | W172: 9.038 | X172: 6.43 | Y172: 9.322 | AA172: 3.823 | AB172: 6.552 | AC172: 7.968 | AD172: 8.357 | AE172: 8.062
B173: 167 | O173: 2016-11-29 | P173: 6.091 | Q173: 6.318 | R173: 7.026 | S173: 8.408 | T173: 6.043 | U173: 8.467 | V173: 6.187 | W173: 9.002 | X173: 6.389 | Y173: 9.228 | AA173: 3.749 | AB173: 6.546 | AC173: 8.125 | AD173: 8.189 | AE173: 8.073
B174: 168 | O174: 2016-11-28 | P174: 6.063 | Q174: 6.366 | R174: 7.026 | S174: 8.478 | T174: 5.879 | U174: 8.507 | V174: 6.142 | W174: 8.978 | X174: 6.327 | Y174: 9.298 | AA174: 3.754 | AB174: 6.544 | AC174: 8.124 | AD174: 7.511 | AE174: 8.073
B175: 169 | O175: 2016-11-23 | P175: 6.14 | Q175: 6.414 | R175: 6.98 | S175: 8.478 | T175: 6.004 | U175: 8.409 | V175: 6.287 | W175: 9.036 | X175: 6.368 | Y175: 9.33 | AA175: 3.764 | AB175: 6.54 | AC175: 8.39 | AD175: 8.204 | AE175: 8.281
B176: 170 | O176: 2016-11-22 | P176: 6.246 | Q176: 6.58 | R176: 6.949 | S176: 8.449 | T176: 6.054 | U176: 8.298 | V176: 6.276 | W176: 8.977 | X176: 6.368 | Y176: 9.321 | AA176: 3.858 | AB176: 6.484 | AC176: 8.39 | AD176: 8.068 | AE176: 8.281
B177: 171 | O177: 2016-11-21 | P177: 6.455 | Q177: 6.676 | R177: 7.026 | S177: 8.561 | T177: 6.142 | U177: 8.794 | V177: 6.298 | W177: 9.154 | X177: 6.408 | Y177: 9.368 | AA177: 3.829 | AB177: 6.451 | AC177: 8.423 | AD177: 8.454 | AE177: 8.279
B178: 172 | O178: 2016-11-18 | P178: 6.479 | Q178: 6.748 | R178: 7.134 | S178: 8.476 | T178: 6.192 | U178: 8.582 | V178: 6.342 | W178: 9.117 | X178: 6.552 | Y178: 9.507 | AA178: 4.059 | AB178: 6.636 | AC178: 8.421 | AD178: 7.975 | AE178: 8.357
B179: 173 | O179: 2016-11-17 | P179: 6.477 | Q179: 6.487 | R179: 7.103 | S179: 8.377 | T179: 6.053 | U179: 8.526 | V179: 6.23 | W179: 8.893 | X179: 6.397 | Y179: 9.042 | AA179: 4.152 | AB179: 6.366 | AC179: 8.456 | AD179: 8.515 | AE179: 8.357
B180: 174 | O180: 2016-11-16 | P180: 6.476 | Q180: 6.582 | R180: 7.056 | S180: 8.377 | T180: 6.141 | U180: 8.525 | V180: 6.252 | W180: 8.928 | X180: 6.387 | Y180: 9.226 | AA180: 4.156 | AB180: 6.364 | AC180: 8.437 | AD180: 7.52 | AE180: 8.277
B181: 175 | O181: 2016-11-15 | P181: 6.182 | Q181: 6.677 | R181: 7.056 | S181: 8.32 | T181: 5.914 | U181: 8.522 | V181: 6.251 | W181: 8.998 | X181: 6.366 | Y181: 9.271 | AA181: 4.257 | AB181: 6.359 | AC181: 8.362 | AD181: 8.805 | AE181: 8.223
B182: 176 | O182: 2016-11-14 | P182: 5.841 | Q182: 7.034 | R182: 6.964 | S182: 8.785 | T182: 6.305 | U182: 8.673 | V182: 6.273 | W182: 9.258 | X182: 6.499 | Y182: 9.458 | AA182: 3.652 | AB182: 6.704 | AC182: 8.649 | AD182: 7.813 | AE182: 8.46
B183: 177 | O183: 2016-11-10 | P183: 5.841 | Q183: 6.63 | R183: 6.888 | S183: 8.209 | T183: 5.802 | U183: 8.206 | V183: 5.886 | W183: 9.033 | X183: 6.174 | Y183: 9.178 | AA183: 3.96 | AB183: 6.144 | AC183: 8.236 | AD183: 8.732 | AE183: 8.353
B184: 178 | O184: 2016-11-09 | P184: 5.84 | Q184: 6.56 | R184: 6.903 | S184: 8.168 | T184: 5.593 | U184: 8.519 | V184: 5.691 | W184: 8.718 | X184: 5.946 | Y184: 9.041 | AA184: 4.488 | AB184: 6.647 | AC184: 8.235 | AD184: 7.741 | AE184: 8.339
B185: 179 | O185: 2016-11-08 | P185: 5.839 | Q185: 6.654 | R185: 7.026 | S185: 8.445 | T185: 5.581 | U185: 8.546 | V185: 5.766 | W185: 8.926 | X185: 6.005 | Y185: 9.132 | AA185: 4.056 | AB185: 6.671 | AC185: 8.234 | AD185: 8.225 | AE185: 8.299
B186: 180 | O186: 2016-11-07 | P186: 5.785 | Q186: 6.678 | R186: 6.98 | S186: 8.429 | T186: 5.666 | U186: 8.5 | V186: 5.852 | W186: 8.763 | X186: 6.054 | Y186: 9.04 | AA186: 4.247 | AB186: 6.743 | AC186: 8.213 | AD186: 8.253 | AE186: 8.349
B187: 181 | O187: 2016-11-04 | P187: 6.068 | Q187: 7.415 | R187: 7.025 | S187: 8.64 | T187: 5.814 | U187: 8.931 | V187: 6.093 | W187: 9.208 | X187: 6.234 | Y187: 9.409 | AA187: 4.121 | AB187: 7.579 | AC187: 8.407 | AD187: 8.426 | AE187: 8.349
B188: 182 | O188: 2016-11-03 | P188: 5.502 | Q188: 7.414 | R188: 6.98 | S188: 8.838 | T188: 5.938 | U188: 8.93 | V188: 6.226 | W188: 9.184 | X188: 6.355 | Y188: 9.361 | AA188: 3.869 | AB188: 7.713 | AC188: 8.407 | AD188: 8.205 | AE188: 8.296
B189: 183 | O189: 2016-11-02 | P189: 5.502 | Q189: 7.438 | R189: 6.934 | S189: 9.256 | T189: 5.975 | U189: 9.085 | V189: 6.226 | W189: 9.03 | X189: 6.436 | Y189: 9.74 | AA189: 3.916 | AB189: 7.82 | AC189: 8.513 | AD189: 8.377 | AE189: 8.374
B190: 184 | O190: 2016-11-01 | P190: 5.475 | Q190: 6.703 | R190: 6.965 | S190: 8.069 | T190: 5.789 | U190: 8.022 | V190: 6.07 | W190: 8.5 | X190: 6.203 | Y190: 8.635 | AA190: 3.676 | AB190: 7.131 | AC190: 8.545 | AD190: 8.312 | AE190: 8.215
B191: 185 | O191: 2016-10-31 | P191: 5.475 | Q191: 6.056 | R191: 6.813 | S191: 8.083 | T191: 5.544 | U191: 7.823 | V191: 6.015 | W191: 8.376 | X191: 6.143 | Y191: 8.591 | AA191: 3.47 | AB191: 6.649 | AC191: 8.05 | AD191: 8.186 | AE191: 8.228
B192: 186 | O192: 2016-10-28 | P192: 5.474 | Q192: 5.874 | R192: 6.859 | S192: 7.812 | T192: 5.544 | U192: 7.756 | V192: 5.83 | W192: 8.066 | X192: 6.103 | Y192: 8.416 | AA192: 3.434 | AB192: 6.331 | AC192: 7.841 | AD192: 7.774 | AE192: 8.059
B193: 187 | O193: 2016-10-27 | P193: 5.474 | Q193: 5.875 | R193: 6.784 | S193: 7.705 | T193: 5.436 | U193: 7.756 | V193: 5.573 | W193: 8.11 | X193: 5.965 | Y193: 8.286 | AA193: 3.439 | AB193: 6.278 | AC193: 7.771 | AD193: 8.061 | AE193: 8.11
B194: 188 | O194: 2016-10-26 | P194: 5.197 | Q194: 5.604 | R194: 6.784 | S194: 7.323 | T194: 5.173 | U194: 7.407 | V194: 5.446 | W194: 7.86 | X194: 5.683 | Y194: 8.115 | AA194: 3.481 | AB194: 6.017 | AC194: 7.412 | AD194: 8.036 | AE194: 8.11
B195: 189 | O195: 2016-10-25 | P195: 4.997 | Q195: 5.361 | R195: 6.784 | S195: 7.128 | T195: 5.056 | U195: 7.152 | V195: 5.446 | W195: 7.551 | X195: 5.635 | Y195: 7.822 | AA195: 3.538 | AB195: 6.013 | AC195: 7.855 | AD195: 7.936 | AE195: 8.108
B196: 190 | O196: 2016-10-24 | P196: 5.022 | Q196: 5.295 | R196: 6.784 | S196: 7.013 | T196: 4.986 | U196: 7.151 | V196: 5.383 | W196: 7.478 | X196: 5.635 | Y196: 7.698 | AA196: 3.46 | AB196: 6.115 | AC196: 7.854 | AD196: 7.935 | AE196: 8.108
B197: 191 | O197: 2016-10-21 | P197: 5.022 | Q197: 5.385 | R197: 6.784 | S197: 6.987 | T197: 4.986 | U197: 7.201 | V197: 5.372 | W197: 7.384 | X197: 5.654 | Y197: 7.657 | AA197: 3.632 | AB197: 6.011 | AC197: 7.853 | AD197: 7.996 | AE197: 8.302
B198: 192 | O198: 2016-10-20 | P198: 5.047 | Q198: 5.453 | R198: 6.68 | S198: 7.128 | T198: 4.893 | U198: 7.301 | V198: 5.393 | W198: 7.582 | X198: 5.655 | Y198: 7.781 | AA198: 3.595 | AB198: 6.164 | AC198: 8.025 | AD198: 7.996 | AE198: 8.341
B199: 193 | O199: 2016-10-19 | P199: 6.003 | Q199: 5.521 | R199: 7.01 | S199: 7.27 | T199: 4.963 | U199: 7.352 | V199: 5.383 | W199: 7.709 | X199: 5.683 | Y199: 7.864 | AA199: 3.352 | AB199: 6.266 | AC199: 8.025 | AD199: 8.367 | AE199: 8.327
B200: 194 | O200: 2016-10-18 | P200: 6.514 | Q200: 5.612 | R200: 7.485 | S200: 7.27 | T200: 5.116 | U200: 7.375 | V200: 5.467 | W200: 7.752 | X200: 5.789 | Y200: 7.927 | AA200: 3.697 | AB200: 6.262 | AC200: 8.284 | AD200: 8.485 | AE200: 8.365
B201: =B200+1 -> 195 | O201: 2016-10-17 | P201: 6.929 | Q201: 5.613 | R201: 7.797 | S201: 7.374 | T201: 5.104 | U201: 7.4 | V201: 5.509 | W201: 7.858 | X201: 5.78 | Y201: 7.989 | AA201: 3.743 | AB201: 6.415 | AC201: 8.406 | AD201: 8.302 | AE201: 8.535
... 281 more rows

Sheet calc
B2: TAB: NELSON-SIEGEL TERM STRUCTURE CALCULATOR
P3: Total number of observations | T3: =COUNT(data!O7:O1001) -> 476
B4: A. Yield Sample
B5: Maturity | C5: =data!P6 -> 1.888 | D5: =data!Q6 -> 2.186 | E5: =data!R6 -> 4.145 | F5: =data!S6 -> 5.192 | G5: =data!T6 -> 5.397 | H5: =data!U6 -> 5.773 | I5: =data!V6 -> 6.444 | J5: =data!W6 -> 7.195 | K5: =data!X6 -> 7.4 | P5: Date | R5: Row index
B6: Yields actual (end) | C6: =OFFSET(data!P6, $R$6, 0) -> 5.906 | D6: =OFFSET(data!Q6, $R$6, 0) -> 4.93 | E6: =OFFSET(data!R6, $R$6, 0) -> 7.549 | F6: =OFFSET(data!S6, $R$6, 0) -> 6.613 | G6: =OFFSET(data!T6, $R$6, 0) -> 6.368 | H6: =OFFSET(data!U6, $R$6, 0) -> 6.154 | I6: =OFFSET(data!V6, $R$6, 0) -> 6.749 | J6: =OFFSET(data!W6, $R$6, 0) -> 7.063 | K6: =OFFSET(data!X6, $R$6, 0) -> 7.105 | P6: End date | Q6: =data!O7 -> 2017-08-29 | R6: =MATCH(Q6, data!$O$7:$O$501, 0) -> 1 | S6: width | T6: =COUNT(C5:N5) -> 9
B7: Yields actual (start) | C7: =OFFSET(data!P6, $R$7, 0) -> 7.073 | D7: =OFFSET(data!Q6, $R$7, 0) -> 5.686 | E7: =OFFSET(data!R6, $R$7, 0) -> 7.999 | F7: =OFFSET(data!S6, $R$7, 0) -> 7.387 | G7: =OFFSET(data!T6, $R$7, 0) -> 5.199 | H7: =OFFSET(data!U6, $R$7, 0) -> 7.524 | I7: =OFFSET(data!V6, $R$7, 0) -> 5.498 | J7: =OFFSET(data!W6, $R$7, 0) -> 7.74 | K7: =OFFSET(data!X6, $R$7, 0) -> 5.847 | P7: Start date | Q7: =OFFSET(data!O6, MIN(T3, R7), 0) -> 2016-10-07 | R7: 200 | S7: height | T7: =R7-R6+1 -> 200
B9: B. Calculator: | C9: =_xll.AC.data.map(P10, Q10) -> java.util.LinkedHashMap@Sun, 24 Jun 2018 13:35:01:417..2124750325735269764 | L9: Available methods | N9: α | P9: Selected parameters | R9: Parameter description
C10: =_xll.AC.finance.irb.ts.calcTSN("NS", OFFSET(C5, 0, 0, 1, T6), OFFSET(data!$P$6, R6, 0, T7, T6), C9) -> jeconkr.finance.FSTP.lib.model.yts.calculator.CalculatorNelsonSiegelN@Sun, 24 Jun 2018 21:46:26:450..7813956265929901171 | L10: =config!B9 -> Diebold-Li | N10: =1/1.37 -> 0.7299270073 | P10: method | Q10: =L10 -> Diebold-Li | R10: Term structure estimation method
L11: =config!B10 -> Fabozzi | N11: =1/3 -> 0.3333333333
L12: =config!B11 -> Nelson-Siegel | N12: [0, 1]
B13: C. Output | L13: =config!B12 -> Ridge-OLS | N13: [0, 1]
Q14: R2(α)
B15: Coefficients | C15: α | D15: β0 | E15: β1 | F15: β2 | Q15: Date | R15: Row Index | S15: Sample Index | T15: R2(α)
B16: Date (end) | C16: =TS!C5 -> 0.7299270073 | D16: =TS!D5 -> 16.12875523 | E16: =TS!E5 -> 28.53443758 | F16: =TS!F5 -> -77.83349855 | Q16: =IF(R16="", "", OFFSET(data!$C$6, R16, 0)) -> 2015-09-30 | R16: =R6 -> 1 | S16: =_xll.AC.finance.irb.ts._get(C10, config!D11, 0) -> 0.7299270073 | T16: 0.9998079857
B17: Date (start) | C17: =OFFSET(TS!C4, $R$7, 0) -> 0.7299270073 | D17: =OFFSET(TS!D4, $R$7, 0) -> 16.63198324 | E17: =OFFSET(TS!E4, $R$7, 0) -> 38.46462159 | F17: =OFFSET(TS!F4, $R$7, 0) -> -90.70181469 | Q17: =IF(R17="", "", OFFSET(data!$C$6, R17, 0)) -> 2015-06-30 | R17: =IF(R16="", "", IF(R16+1>$R$7, "", R16+1)) -> 2 | S17: 0.7299270073 | T17: 0.9998079857
Q18: =IF(R18="", "", OFFSET(data!$C$6, R18, 0)) -> 2015-03-31 | R18: =IF(R17="", "", IF(R17+1>$R$7, "", R17+1)) -> 3 | S18: 0.7299270073 | T18: 0.9998079857
B19: Fitted yields | Q19: =IF(R19="", "", OFFSET(data!$C$6, R19, 0)) -> 2014-12-31 | R19: 4 | S19: 0.7299270073 | T19: 0.9998079857
B20: =B5 -> Maturity | C20: =C5 -> 1.888 | D20: =D5 -> 2.186 | E20: 4.145 | F20: 5.192 | G20: 5.397 | H20: 5.773 | I20: 6.444 | J20: 7.195 | K20: 7.4 | Q20: =IF(R20="", "", OFFSET(data!$C$6, R20, 0)) -> 2014-09-30 | R20: 5 | S20: 0.7299270073 | T20: 0.9998079857
B21: Yields fitted (end) | C21: =fitted!D6 -> 5.891041651 | D21: =fitted!E6 -> 4.933698764 | E21: =fitted!F6 -> 7.5329585 | F21: =fitted!G6 -> 6.620876356 | G21: =fitted!H6 -> 6.3698133 | H21: =fitted!I6 -> 6.148351946 | I21: =fitted!J6 -> 6.758538934 | J21: =fitted!K6 -> 7.070364413 | K21: =fitted!L6 -> 7.111356135 | Q21: =IF(R21="", "", OFFSET(data!$C$6, R21, 0)) -> 2014-06-30 | R21: 6 | S21: 0.7299270073 | T21: 0.9998079857
B22: Yields fitted (start) | C22: =OFFSET(fitted!D5, $R$7, 0) -> 7.091209044 | D22: =OFFSET(fitted!E5, $R$7, 0) -> 5.673495291 | E22: =OFFSET(fitted!F5, $R$7, 0) -> 7.975488624 | F22: =OFFSET(fitted!G5, $R$7, 0) -> 7.401097827 | G22: =OFFSET(fitted!H5, $R$7, 0) -> 5.215822677 | H22: =OFFSET(fitted!I5, $R$7, 0) -> 7.533277013 | I22: =OFFSET(fitted!J5, $R$7, 0) -> 5.490312129 | J22: =OFFSET(fitted!K5, $R$7, 0) -> 7.737561942 | K22: =OFFSET(fitted!L5, $R$7, 0) -> 5.834735454 | Q22: =IF(R22="", "", OFFSET(data!$C$6, R22, 0)) -> 2014-03-31 | R22: 7 | S22: 0.7299270073 | T22: 0.9998079857
Q23: =IF(R23="", "", OFFSET(data!$C$6, R23, 0)) -> 2013-12-31 | R23: 8 | S23: 0.7299270073 | T23: 0.9998079857
B24: Goodness of fit | Q24: =IF(R24="", "", OFFSET(data!$C$6, R24, 0)) -> 2013-09-30 | R24: 9 | S24: 0.7299270073 | T24: 0.9998079857
B25: =B20 -> Maturity | C25: =C20 -> 1.888 | D25: =D20 -> 2.186 | E25: 4.145 | F25: 5.192 | G25: 5.397 | H25: 5.773 | I25: 6.444 | J25: 7.195 | K25: 7.4 | N25: Total | Q25: =IF(R25="", "", OFFSET(data!$C$6, R25, 0)) -> 2013-06-30 | R25: 10 | S25: 0.7299270073 | T25: 0.9998079857
B26: Δ Yield (end) | C26: =C21-C6 -> -0.01495834883 | D26: 0.003698764451 | E26: -0.01604150037 | F26: 0.007876356362 | G26: 0.001813299947 | H26: -0.005648054045 | I26: 0.009538934258 | J26: 0.007364412534 | K26: 0.006356135496 | N26: =SQRT(SUMPRODUCT(C26:M26, C26:M26)) -> 0.02788574278 | Q26: =IF(R26="", "", OFFSET(data!$C$6, R26, 0)) -> 2013-03-31 | R26: 11 | S26: 0.7299270073 | T26: 0.9998079857
B27: Δ Yield (start) | C27: =C22-C7 -> 0.01820904406 | D27: =D22-D7 -> -0.01250470912 | E27: -0.02351137583 | F27: 0.0140978269 | G27: 0.01682267695 | H27: 0.009277012541 | I27: -0.007687871384 | J27: -0.002438057758 | K27: -0.01226454575 | N27: =SQRT(SUMPRODUCT(C27:M27, C27:M27)) -> 0.04270834285 | Q27: =IF(R27="", "", OFFSET(data!$C$6, R27, 0)) -> 2012-12-31 | R27: 12 | S27: 0.7299270073 | T27: 0.9998079857
Q28: =IF(R28="", "", OFFSET(data!$C$6, R28, 0)) -> 2012-09-30 | R28: 13 | S28: 0.7299270073 | T28: 0.9998079857
B29: Yields and fitted yields | M29: R2(α) | Q29: =IF(R29="", "", OFFSET(data!$C$6, R29, 0)) -> 2012-06-30 | R29: 14 | S29: 0.7299270073 | T29: 0.9998079857
Q30: =IF(R30="", "", OFFSET(data!$C$6, R30, 0)) -> 2012-03-31 | R30: 15 | S30: 0.7299270073 | T30: 0.9998079857
Q31: =IF(R31="", "", OFFSET(data!$C$6, R31, 0)) -> 2011-12-31 | R31: 16 | S31: 0.7299270073 | T31: 0.9998079857
Q32: =IF(R32="", "", OFFSET(data!$C$6, R32, 0)) -> 2011-09-30 | R32: 17 | S32: 0.7299270073 | T32: 0.9998079857
Q33: =IF(R33="", "", OFFSET(data!$C$6, R33, 0)) -> 2011-06-30 | R33: 18 | S33: 0.7299270073 | T33: 0.9998079857
Q34: =IF(R34="", "", OFFSET(data!$C$6, R34, 0)) -> 2011-03-31 | R34: 19 | S34: 0.7299270073 | T34: 0.9998079857
Q35: =IF(R35="", "", OFFSET(data!$C$6, R35, 0)) -> 2010-12-31 | R35: 20 | S35: 0.7299270073 | T35: 0.9998079857
Q36: =IF(R36="", "", OFFSET(data!$C$6, R36, 0)) -> 2010-09-30 | R36: 21 | S36: 0.7299270073 | T36: 0.9998079857
Q37: =IF(R37="", "", OFFSET(data!$C$6, R37, 0)) -> 2010-06-30 | R37: 22 | S37: 0.7299270073 | T37: 0.9998079857
Q38: =IF(R38="", "", OFFSET(data!$C$6, R38, 0)) -> 2010-03-31 | R38: 23 | S38: 0.7299270073 | T38: 0.9998079857
Q39: =IF(R39="", "", OFFSET(data!$C$6, R39, 0)) -> 2009-12-31 | R39: 24 | S39: 0.7299270073 | T39: 0.9998079857
Q40: =IF(R40="", "", OFFSET(data!$C$6, R40, 0)) -> 2009-09-30 | R40: 25 | S40: 0.7299270073 | T40: 0.9998079857
Q41: =IF(R41="", "", OFFSET(data!$C$6, R41, 0)) -> 2009-06-30 | R41: 26 | S41: 0.7299270073 | T41: 0.9998079857
Q42: =IF(R42="", "", OFFSET(data!$C$6, R42, 0)) -> 2009-03-31 | R42: 27 | S42: 0.7299270073 | T42: 0.9998079857
Q43: =IF(R43="", "", OFFSET(data!$C$6, R43, 0)) -> 2008-12-31 | R43: 28 | S43: 0.7299270073 | T43: 0.9998079857
Q44: =IF(R44="", "", OFFSET(data!$C$6, R44, 0)) -> 2008-09-30 | R44: 29 | S44: 0.7299270073 | T44: 0.9998079857
Q45: =IF(R45="", "", OFFSET(data!$C$6, R45, 0)) -> 2008-06-30 | R45: 30 | S45: 0.7299270073 | T45: 0.9998079857
Q46: =IF(R46="", "", OFFSET(data!$C$6, R46, 0)) -> 2008-03-31 | R46: =IF(R45="", "", IF(R45+1>$R$7, "", R45+1)) -> 31 | S46: 0.7299270073 | T46: 0.9998079857
Q47: =IF(R47="", "", OFFSET(data!$C$6, R47, 0)) -> 2007-12-31 | R47: 32 | S47: 0.7299270073 | T47: 0.9998079857
Q48: =IF(R48="", "", OFFSET(data!$C$6, R48, 0)) -> 2007-09-30 | R48: 33 | S48: 0.7299270073 | T48: 0.9998079857
Q49: =IF(R49="", "", OFFSET(data!$C$6, R49, 0)) -> 2007-06-30 | R49: 34 | S49: 0.7299270073 | T49: 0.9998079857
Q50: =IF(R50="", "", OFFSET(data!$C$6, R50, 0)) -> 2007-03-31 | R50: 35 | S50: 0.7299270073 | T50: 0.9998079857
Q51: =IF(R51="", "", OFFSET(data!$C$6, R51, 0)) -> 2006-12-31 | R51: 36 | S51: 0.7299270073 | T51: 0.9998079857
Q52: =IF(R52="", "", OFFSET(data!$C$6, R52, 0)) -> 2006-09-30 | R52: 37 | S52: 0.7299270073 | T52: 0.9998079857
Q53: =IF(R53="", "", OFFSET(data!$C$6, R53, 0)) -> 2006-06-30 | R53: 38 | S53: 0.7299270073 | T53: 0.9998079857
Q54: =IF(R54="", "", OFFSET(data!$C$6, R54, 0)) -> 2006-03-31 | R54: 39 | S54: 0.7299270073 | T54: 0.9998079857
Q55: =IF(R55="", "", OFFSET(data!$C$6, R55, 0)) -> 2005-12-31 | R55: 40 | S55: 0.7299270073 | T55: 0.9998079857
Q56: =IF(R56="", "", OFFSET(data!$C$6, R56, 0)) -> 2005-09-30 | R56: 41 | S56: 0.7299270073 | T56: 0.9998079857
Q57: =IF(R57="", "", OFFSET(data!$C$6, R57, 0)) -> 2005-06-30 | R57: 42 | S57: 0.7299270073 | T57: 0.9998079857
Q58: =IF(R58="", "", OFFSET(data!$C$6, R58, 0)) -> 2005-03-31 | R58: 43 | S58: 0.7299270073 | T58: 0.9998079857
Q59: =IF(R59="", "", OFFSET(data!$C$6, R59, 0)) -> 2004-12-31 | R59: 44 | S59: 0.7299270073 | T59: 0.9998079857
Q60: =IF(R60="", "", OFFSET(data!$C$6, R60, 0)) -> 2004-09-30 | R60: 45 | S60: 0.7299270073 | T60: 0.9998079857
Q61: =IF(R61="", "", OFFSET(data!$C$6, R61, 0)) -> 2004-06-30 | R61: 46 | S61: 0.7299270073 | T61: 0.9998079857
Q62: =IF(R62="", "", OFFSET(data!$C$6, R62, 0)) -> 2004-03-31 | R62: 47 | S62: 0.7299270073 | T62: 0.9998079857
Q63: =IF(R63="", "", OFFSET(data!$C$6, R63, 0)) -> 2003-12-31 | R63: 48 | S63: 0.7299270073 | T63: 0.9998079857
Q64: =IF(R64="", "", OFFSET(data!$C$6, R64, 0)) -> 2003-09-30 | R64: 49 | S64: 0.7299270073 | T64: 0.9998079857
Q65: =IF(R65="", "", OFFSET(data!$C$6, R65, 0)) -> 2003-06-30 | R65: 50 | S65: 0.7299270073 | T65: 0.9998079857
Q66: =IF(R66="", "", OFFSET(data!$C$6, R66, 0)) -> 2003-03-31 | R66: 51 | S66: 0.7299270073 | T66: 0.9998079857
Q67: =IF(R67="", "", OFFSET(data!$C$6, R67, 0)) -> 2002-12-31 | R67: 52 | S67: 0.7299270073 | T67: 0.9998079857
Q68: =IF(R68="", "", OFFSET(data!$C$6, R68, 0)) -> 2002-09-30 | R68: 53 | S68: 0.7299270073 | T68: 0.9998079857
Q69: =IF(R69="", "", OFFSET(data!$C$6, R69, 0)) -> 2002-06-30 | R69: 54 | S69: 0.7299270073 | T69: 0.9998079857
Q70: =IF(R70="", "", OFFSET(data!$C$6, R70, 0)) -> 2002-03-31 | R70: 55 | S70: 0.7299270073 | T70: 0.9998079857
Q71: =IF(R71="", "", OFFSET(data!$C$6, R71, 0)) -> 2001-12-31 | R71: 56 | S71: 0.7299270073 | T71: 0.9998079857
Q72: =IF(R72="", "", OFFSET(data!$C$6, R72, 0)) -> 2001-09-30 | R72: 57 | S72: 0.7299270073 | T72: 0.9998079857
Q73: =IF(R73="", "", OFFSET(data!$C$6, R73, 0)) -> 2001-06-30 | R73: 58 | S73: 0.7299270073 | T73: 0.9998079857
Q74: =IF(R74="", "", OFFSET(data!$C$6, R74, 0)) -> 2001-03-31 | R74: 59 | S74: 0.7299270073 | T74: 0.9998079857
Q75: =IF(R75="", "", OFFSET(data!$C$6, R75, 0)) -> 2000-12-31 | R75: 60 | S75: 0.7299270073 | T75: 0.9998079857
Q76: =IF(R76="", "", OFFSET(data!$C$6, R76, 0)) -> 2000-09-30 | R76: 61 | S76: 0.7299270073 | T76: 0.9998079857
Q77: =IF(R77="", "", OFFSET(data!$C$6, R77, 0)) -> 2000-06-30 | R77: 62 | S77: 0.7299270073 | T77: 0.9998079857
Q78: =IF(R78="", "", OFFSET(data!$C$6, R78, 0)) -> 2000-03-31 | R78: 63 | S78: 0.7299270073 | T78: 0.9998079857
Q79: =IF(R79="", "", OFFSET(data!$C$6, R79, 0)) -> 1999-12-31 | R79: 64 | S79: 0.7299270073 | T79: 0.9998079857
Q80: =IF(R80="", "", OFFSET(data!$C$6, R80, 0)) -> 1999-09-30 | R80: 65 | S80: 0.7299270073 | T80: 0.9998079857
Q81: =IF(R81="", "", OFFSET(data!$C$6, R81, 0)) -> 1999-06-30 | R81: 66 | S81: 0.7299270073 | T81: 0.9998079857
Q82: =IF(R82="", "", OFFSET(data!$C$6, R82, 0)) -> 1999-03-31 | R82: 67 | S82: 0.7299270073 | T82: 0.9998079857
Q83: =IF(R83="", "", OFFSET(data!$C$6, R83, 0)) -> 1998-12-31 | R83: 68 | S83: 0.7299270073 | T83: 0.9998079857
Q84: =IF(R84="", "", OFFSET(data!$C$6, R84, 0)) -> 1998-09-30 | R84: 69 | S84: 0.7299270073 | T84: 0.9998079857
Q85: =IF(R85="", "", OFFSET(data!$C$6, R85, 0)) -> 1998-06-30 | R85: 70 | S85: 0.7299270073 | T85: 0.9998079857
Q86: =IF(R86="", "", OFFSET(data!$C$6, R86, 0)) -> 1998-03-31 | R86: 71 | S86: 0.7299270073 | T86: 0.9998079857
Q87: =IF(R87="", "", OFFSET(data!$C$6, R87, 0)) -> 1997-12-31 | R87: 72 | S87: 0.7299270073 | T87: 0.9998079857
Q88: =IF(R88="", "", OFFSET(data!$C$6, R88, 0)) -> 1997-09-30 | R88: 73 | S88: 0.7299270073 | T88: 0.9998079857
Q89: =IF(R89="", "", OFFSET(data!$C$6, R89, 0)) -> 1997-06-30 | R89: 74 | S89: 0.7299270073 | T89: 0.9998079857
Q90: =IF(R90="", "", OFFSET(data!$C$6, R90, 0)) -> 1997-03-31 | R90: 75 | S90: 0.7299270073 | T90: 0.9998079857
Q91: =IF(R91="", "", OFFSET(data!$C$6, R91, 0)) -> 1996-12-31 | R91: 76 | S91: 0.7299270073 | T91: 0.9998079857
Q92: =IF(R92="", "", OFFSET(data!$C$6, R92, 0)) -> 1996-09-30 | R92: 77 | S92: 0.7299270073 | T92: 0.9998079857
Q93: =IF(R93="", "", OFFSET(data!$C$6, R93, 0)) -> 1996-06-30 | R93: 78 | S93: 0.7299270073 | T93: 0.9998079857
Q94: =IF(R94="", "", OFFSET(data!$C$6, R94, 0)) -> 1996-03-31 | R94: 79 | S94: 0.7299270073 | T94: 0.9998079857
Q95: =IF(R95="", "", OFFSET(data!$C$6, R95, 0)) -> 1995-12-31 | R95: 80 | S95: 0.7299270073 | T95: 0.9998079857
Q96: =IF(R96="", "", OFFSET(data!$C$6, R96, 0)) -> 1995-09-30 | R96: 81 | S96: 0.7299270073 | T96: 0.9998079857
Q97: =IF(R97="", "", OFFSET(data!$C$6, R97, 0)) -> 1995-06-30 | R97: 82 | S97: 0.7299270073 | T97: 0.9998079857
Q98: =IF(R98="", "", OFFSET(data!$C$6, R98, 0)) -> 1995-03-31 | R98: 83 | S98: 0.7299270073 | T98: 0.9998079857
Q99: =IF(R99="", "", OFFSET(data!$C$6, R99, 0)) -> 1994-12-31 | R99: 84 | S99: 0.7299270073 | T99: 0.9998079857
Q100: =IF(R100="", "", OFFSET(data!$C$6, R100, 0)) -> 1994-09-30 | R100: 85 | S100: 0.7299270073 | T100: 0.9998079857
Q101: =IF(R101="", "", OFFSET(data!$C$6, R101, 0)) -> 1994-06-30 | R101: 86 | S101: 0.7299270073 | T101: 0.9998079857
Q102: =IF(R102="", "", OFFSET(data!$C$6, R102, 0)) -> 1994-03-31 | R102: 87 | S102: 0.7299270073 | T102: 0.9998079857
Q103: =IF(R103="", "", OFFSET(data!$C$6, R103, 0)) -> 1993-12-31 | R103: 88 | S103: 0.7299270073 | T103: 0.9998079857
Q104: =IF(R104="", "", OFFSET(data!$C$6, R104, 0)) -> 1993-09-30 | R104: 89 | S104: 0.7299270073 | T104: 0.9998079857
Q105: =IF(R105="", "", OFFSET(data!$C$6, R105, 0)) -> 1993-06-30 | R105: 90 | S105: 0.7299270073 | T105: 0.9998079857
Q106: =IF(R106="", "", OFFSET(data!$C$6, R106, 0)) -> 1993-03-31 | R106: 91 | S106: 0.7299270073 | T106: 0.9998079857
Q107: =IF(R107="", "", OFFSET(data!$C$6, R107, 0)) -> 1992-12-31 | R107: 92 | S107: 0.7299270073 | T107: 0.9998079857
Q108: =IF(R108="", "", OFFSET(data!$C$6, R108, 0)) -> 1992-09-30 | R108: 93 | S108: 0.7299270073 | T108: 0.9998079857
Q109: =IF(R109="", "", OFFSET(data!$C$6, R109, 0)) -> 1992-06-30 | R109: 94 | S109: 0.7299270073 | T109: 0.9998079857
Q110: =IF(R110="", "", OFFSET(data!$C$6, R110, 0)) -> 1992-03-31 | R110: =IF(R109="", "", IF(R109+1>$R$7, "", R109+1)) -> 95 | S110: 0.7299270073 | T110: 0.9998079857
Q111: =IF(R111="", "", OFFSET(data!$C$6, R111, 0)) -> 1991-12-31 | R111: 96 | S111: 0.7299270073 | T111: 0.9998079857
Q112: =IF(R112="", "", OFFSET(data!$C$6, R112, 0)) -> 1991-09-30 | R112: 97 | S112: 0.7299270073 | T112: 0.9998079857
Q113: =IF(R113="", "", OFFSET(data!$C$6, R113, 0)) -> 1991-06-30 | R113: 98 | S113: 0.7299270073 | T113: 0.9998079857
Q114: =IF(R114="", "", OFFSET(data!$C$6, R114, 0)) -> 00:00:00 | R114: 99 | S114: 0.7299270073 | T114: 0.9998079857
Q115: =IF(R115="", "", OFFSET(data!$C$6, R115, 0)) -> 00:00:00 | R115: 100 | S115: 0.7299270073 | T115: 0.9998079857
Q116: =IF(R116="", "", OFFSET(data!$C$6, R116, 0)) -> 00:00:00 | R116: 101 | S116: 0.7299270073 | T116: 0.9998079857
Q117: =IF(R117="", "", OFFSET(data!$C$6, R117, 0)) -> 00:00:00 | R117: 102 | S117: 0.7299270073 | T117: 0.9998079857
Q118: =IF(R118="", "", OFFSET(data!$C$6, R118, 0)) -> 00:00:00 | R118: 103 | S118: 0.7299270073 | T118: 0.9998079857
Q119: =IF(R119="", "", OFFSET(data!$C$6, R119, 0)) -> 00:00:00 | R119: 104 | S119: 0.7299270073 | T119: 0.9998079857
Q120: =IF(R120="", "", OFFSET(data!$C$6, R120, 0)) -> 00:00:00 | R120: 105 | S120: 0.7299270073 | T120: 0.9998079857
Q121: =IF(R121="", "", OFFSET(data!$C$6, R121, 0)) -> 00:00:00 | R121: 106 | S121: 0.7299270073 | T121: 0.9998079857
Q122: =IF(R122="", "", OFFSET(data!$C$6, R122, 0)) -> 00:00:00 | R122: 107 | S122: 0.7299270073 | T122: 0.9998079857
Q123: =IF(R123="", "", OFFSET(data!$C$6, R123, 0)) -> 00:00:00 | R123: 108 | S123: 0.7299270073 | T123: 0.9998079857
Q124: =IF(R124="", "", OFFSET(data!$C$6, R124, 0)) -> 00:00:00 | R124: 109 | S124: 0.7299270073 | T124: 0.9998079857
Q125: =IF(R125="", "", OFFSET(data!$C$6, R125, 0)) -> 00:00:00 | R125: 110 | S125: 0.7299270073 | T125: 0.9998079857
Q126: =IF(R126="", "", OFFSET(data!$C$6, R126, 0)) -> 00:00:00 | R126: 111 | S126: 0.7299270073 | T126: 0.9998079857
Q127: =IF(R127="", "", OFFSET(data!$C$6, R127, 0)) -> 00:00:00 | R127: 112 | S127: 0.7299270073 | T127: 0.9998079857
Q128: =IF(R128="", "", OFFSET(data!$C$6, R128, 0)) -> 00:00:00 | R128: 113 | S128: 0.7299270073 | T128: 0.9998079857
Q129: =IF(R129="", "", OFFSET(data!$C$6, R129, 0)) -> 00:00:00 | R129: 114 | S129: 0.7299270073 | T129: 0.9998079857
Q130: =IF(R130="", "", OFFSET(data!$C$6, R130, 0)) -> 00:00:00 | R130: 115 | S130: 0.7299270073 | T130: 0.9998079857
Q131: =IF(R131="", "", OFFSET(data!$C$6, R131, 0)) -> 00:00:00 | R131: 116 | S131: 0.7299270073 | T131: 0.9998079857
Q132: =IF(R132="", "", OFFSET(data!$C$6, R132, 0)) -> 00:00:00 | R132: 117 | S132: 0.7299270073 | T132: 0.9998079857
Q133: =IF(R133="", "", OFFSET(data!$C$6, R133, 0)) -> 00:00:00 | R133: 118 | S133: 0.7299270073 | T133: 0.9998079857
Q134: =IF(R134="", "", OFFSET(data!$C$6, R134, 0)) -> 00:00:00 | R134: 119 | S134: 0.7299270073 | T134: 0.9998079857
Q135: =IF(R135="", "", OFFSET(data!$C$6, R135, 0)) -> 00:00:00 | R135: 120 | S135: 0.7299270073 | T135: 0.9998079857
Q136: =IF(R136="", "", OFFSET(data!$C$6, R136, 0)) -> 00:00:00 | R136: 121 | S136: 0.7299270073 | T136: 0.9998079857
Q137: =IF(R137="", "", OFFSET(data!$C$6, R137, 0)) -> 00:00:00 | R137: 122 | S137: 0.7299270073 | T137: 0.9998079857
Q138: =IF(R138="", "", OFFSET(data!$C$6, R138, 0)) -> 00:00:00 | R138: 123 | S138: 0.7299270073 | T138: 0.9998079857
Q139: =IF(R139="", "", OFFSET(data!$C$6, R139, 0)) -> 00:00:00 | R139: 124 | S139: 0.7299270073 | T139: 0.9998079857
Q140: =IF(R140="", "", OFFSET(data!$C$6, R140, 0)) -> 00:00:00 | R140: 125 | S140: 0.7299270073 | T140: 0.9998079857
Q141: =IF(R141="", "", OFFSET(data!$C$6, R141, 0)) -> 00:00:00 | R141: 126 | S141: 0.7299270073 | T141: 0.9998079857
Q142: =IF(R142="", "", OFFSET(data!$C$6, R142, 0)) -> 00:00:00 | R142: 127 | S142: 0.7299270073 | T142: 0.9998079857
Q143: =IF(R143="", "", OFFSET(data!$C$6, R143, 0)) -> 00:00:00 | R143: 128 | S143: 0.7299270073 | T143: 0.9998079857
Q144: =IF(R144="", "", OFFSET(data!$C$6, R144, 0)) -> 00:00:00 | R144: 129 | S144: 0.7299270073 | T144: 0.9998079857
Q145: =IF(R145="", "", OFFSET(data!$C$6, R145, 0)) -> 00:00:00 | R145: 130 | S145: 0.7299270073 | T145: 0.9998079857
Q146: =IF(R146="", "", OFFSET(data!$C$6, R146, 0)) -> 00:00:00 | R146: 131 | S146: 0.7299270073 | T146: 0.9998079857
Q147: =IF(R147="", "", OFFSET(data!$C$6, R147, 0)) -> 00:00:00 | R147: 132 | S147: 0.7299270073 | T147: 0.9998079857
Q148: =IF(R148="", "", OFFSET(data!$C$6, R148, 0)) -> 00:00:00 | R148: 133 | S148: 0.7299270073 | T148: 0.9998079857
Q149: =IF(R149="", "", OFFSET(data!$C$6, R149, 0)) -> 00:00:00 | R149: 134 | S149: 0.7299270073 | T149: 0.9998079857
Q150: =IF(R150="", "", OFFSET(data!$C$6, R150, 0)) -> 00:00:00 | R150: 135 | S150: 0.7299270073 | T150: 0.9998079857
Q151: =IF(R151="", "", OFFSET(data!$C$6, R151, 0)) -> 00:00:00 | R151: 136 | S151: 0.7299270073 | T151: 0.9998079857
Q152: =IF(R152="", "", OFFSET(data!$C$6, R152, 0)) -> 00:00:00 | R152: 137 | S152: 0.7299270073 | T152: 0.9998079857
Q153: =IF(R153="", "", OFFSET(data!$C$6, R153, 0)) -> 00:00:00 | R153: 138 | S153: 0.7299270073 | T153: 0.9998079857
Q154: =IF(R154="", "", OFFSET(data!$C$6, R154, 0)) -> 00:00:00 | R154: 139 | S154: 0.7299270073 | T154: 0.9998079857
Q155: =IF(R155="", "", OFFSET(data!$C$6, R155, 0)) -> 00:00:00 | R155: 140 | S155: 0.7299270073 | T155: 0.9998079857
Q156: =IF(R156="", "", OFFSET(data!$C$6, R156, 0)) -> 00:00:00 | R156: 141 | S156: 0.7299270073 | T156: 0.9998079857
Q157: =IF(R157="", "", OFFSET(data!$C$6, R157, 0)) -> 00:00:00 | R157: 142 | S157: 0.7299270073 | T157: 0.9998079857
Q158: =IF(R158="", "", OFFSET(data!$C$6, R158, 0)) -> 00:00:00 | R158: 143 | S158: 0.7299270073 | T158: 0.9998079857
Q159: =IF(R159="", "", OFFSET(data!$C$6, R159, 0)) -> 00:00:00 | R159: 144 | S159: 0.7299270073 | T159: 0.9998079857
Q160: =IF(R160="", "", OFFSET(data!$C$6, R160, 0)) -> 00:00:00 | R160: 145 | S160: 0.7299270073 | T160: 0.9998079857
Q161: =IF(R161="", "", OFFSET(data!$C$6, R161, 0)) -> 00:00:00 | R161: 146 | S161: 0.7299270073 | T161: 0.9998079857
Q162: =IF(R162="", "", OFFSET(data!$C$6, R162, 0)) -> 00:00:00 | R162: 147 | S162: 0.7299270073 | T162: 0.9998079857
Q163: =IF(R163="", "", OFFSET(data!$C$6, R163, 0)) -> 00:00:00 | R163: 148 | S163: 0.7299270073 | T163: 0.9998079857
Q164: =IF(R164="", "", OFFSET(data!$C$6, R164, 0)) -> 00:00:00 | R164: 149 | S164: 0.7299270073 | T164: 0.9998079857
Q165: =IF(R165="", "", OFFSET(data!$C$6, R165, 0)) -> 00:00:00 | R165: 150 | S165: 0.7299270073 | T165: 0.9998079857
Q166: =IF(R166="", "", OFFSET(data!$C$6, R166, 0)) -> 00:00:00 | R166: 151 | S166: 0.7299270073 | T166: 0.9998079857
Q167: =IF(R167="", "", OFFSET(data!$C$6, R167, 0)) -> 00:00:00 | R167: 152 | S167: 0.7299270073 | T167: 0.9998079857
Q168: =IF(R168="", "", OFFSET(data!$C$6, R168, 0)) -> 00:00:00 | R168: 153 | S168: 0.7299270073 | T168: 0.9998079857
Q169: =IF(R169="", "", OFFSET(data!$C$6, R169, 0)) -> 00:00:00 | R169: 154 | S169: 0.7299270073 | T169: 0.9998079857
Q170: =IF(R170="", "", OFFSET(data!$C$6, R170, 0)) -> 00:00:00 | R170: 155 | S170: 0.7299270073 | T170: 0.9998079857
Q171: =IF(R171="", "", OFFSET(data!$C$6, R171, 0)) -> 00:00:00 | R171: 156 | S171: 0.7299270073 | T171: 0.9998079857
S172: 0.7299270073 | T172: 0.9998079857
S173: 0.7299270073 | T173: 0.9998079857
S174: 0.7299270073 | T174: 0.9998079857
S175: 0.7299270073 | T175: 0.9998079857
S176: 0.7299270073 | T176: 0.9998079857
S177: 0.7299270073 | T177: 0.9998079857
S178: 0.7299270073 | T178: 0.9998079857
S179: 0.7299270073 | T179: 0.9998079857
S180: 0.7299270073 | T180: 0.9998079857
S181: 0.7299270073 | T181: 0.9998079857
S182: 0.7299270073 | T182: 0.9998079857
S183: 0.7299270073 | T183: 0.9998079857
S184: 0.7299270073 | T184: 0.9998079857
S185: 0.7299270073 | T185: 0.9998079857
S186: 0.7299270073 | T186: 0.9998079857
S187: 0.7299270073 | T187: 0.9998079857
S188: 0.7299270073 | T188: 0.9998079857
S189: 0.7299270073 | T189: 0.9998079857
S190: 0.7299270073 | T190: 0.9998079857
S191: 0.7299270073 | T191: 0.9998079857
S192: 0.7299270073 | T192: 0.9998079857
S193: 0.7299270073 | T193: 0.9998079857
S194: 0.7299270073 | T194: 0.9998079857
S195: 0.7299270073 | T195: 0.9998079857
S196: 0.7299270073 | T196: 0.9998079857
S197: 0.7299270073 | T197: 0.9998079857
S198: 0.7299270073 | T198: 0.9998079857
S199: 0.7299270073 | T199: 0.9998079857
S200: 0.7299270073 | T200: 0.9998079857
S201: 0.7299270073 | T201: 0.9998079857
S202: 0.7299270073 | T202: 0.9998079857
... 13 more rows

Sheet TS
B2: TAB: COEFFICIENTS
B4: Date | C4: α | D4: β0 | E4: β1 | F4: β2 | G4: β0 + β1 | I4: α | L4: β0 (long-term rate)
B5: =data!O7 -> 2017-08-29 | C5: =_xll.AC.finance.irb.ts._get(calc!C10, config!D9, 0) -> 0.7299270073 | D5: 16.12875523 | E5: 28.53443758 | F5: -77.83349855 | G5: =IF(B5="", "", D5+E5) -> 44.66319282
B6: =data!O8 -> 2017-08-28 | C6: 0.7299270073 | D6: 16.06465282 | E6: 27.5725923 | F6: -76.50776868 | G6: =IF(B6="", "", D6+E6) -> 43.63724512
B7: =data!O9 -> 2017-08-25 | C7: 0.7299270073 | D7: 15.94859922 | E7: 26.13601042 | F7: -74.42138859 | G7: 42.08460963
B8: =data!O10 -> 2017-08-24 | C8: 0.7299270073 | D8: 15.97384889 | E8: 26.42968422 | F8: -74.85905147 | G8: 42.40353311
B9: =data!O11 -> 2017-08-23 | C9: 0.7299270073 | D9: 16.09045487 | E9: 28.00297145 | F9: -77.08902537 | G9: 44.09342631
B10: =data!O12 -> 2017-08-22 | C10: 0.7299270073 | D10: 16.18488292 | E10: 29.18007276 | F10: -78.78845012 | G10: 45.36495568
B11: =data!O13 -> 2017-08-21 | C11: 0.7299270073 | D11: 16.26394233 | E11: 30.41932544 | F11: -80.48452724 | G11: 46.68326777
B12: =data!O14 -> 2017-08-18 | C12: 0.7299270073 | D12: 16.37970399 | E12: 32.00911306 | F12: -82.73246919 | G12: 48.38881706
B13: =data!O15 -> 2017-08-17 | C13: 0.7299270073 | D13: 16.34117361 | E13: 31.7691135 | F13: -82.27966367 | G13: 48.11028711
B14: =data!O16 -> 2017-08-16 | C14: 0.7299270073 | D14: 16.36384087 | E14: 32.13630617 | F14: -82.77806282 | G14: 48.50014704
B15: =data!O17 -> 2017-08-14 | C15: 0.7299270073 | D15: 16.39323261 | E15: 32.11262502 | F15: -82.89598924 | G15: 48.50585763
B16: =data!O18 -> 2017-08-10 | C16: 0.7299270073 | D16: 16.44927447 | E16: 33.17039789 | F16: -84.28673335 | G16: 49.61967236
B17: =data!O19 -> 2017-08-09 | C17: 0.7299270073 | D17: 16.25549464 | E17: 30.39994453 | F17: -80.41861153 | G17: 46.65543917
B18: =data!O20 -> 2017-08-08 | C18: 0.7299270073 | D18: 16.26434402 | E18: 30.37301394 | F18: -80.43320635 | G18: 46.63735796
B19: =data!O21 -> 2017-08-07 | C19: 0.7299270073 | D19: 16.38599299 | E19: 31.91467929 | F19: -82.66433816 | G19: 48.30067228
B20: =data!O22 -> 2017-08-04 | C20: 0.7299270073 | D20: 16.30455888 | E20: 30.69493861 | F20: -80.98114979 | G20: 46.99949749 | I20: β1 (term premium) | L20: β2 (curvature)
B21: =data!O23 -> 2017-08-03 | C21: 0.7299270073 | D21: 16.41312527 | E21: 32.34488109 | F21: -83.25828813 | G21: 48.75800636
B22: =data!O24 -> 2017-08-02 | C22: 0.7299270073 | D22: 16.21455093 | E22: 30.08310802 | F22: -79.88602156 | G22: 46.29765895
B23: =data!O25 -> 2017-08-01 | C23: 0.7299270073 | D23: 16.26617658 | E23: 30.92349976 | F23: -81.02305288 | G23: 47.18967635
B24: =data!O26 -> 2017-07-31 | C24: 0.7299270073 | D24: 16.26219084 | E24: 30.75543848 | F24: -80.82618577 | G24: 47.01762931
B25: =data!O27 -> 2017-07-28 | C25: 0.7299270073 | D25: 16.26516568 | E25: 31.20780967 | F25: -81.31328519 | G25: 47.47297535
B26: =data!O28 -> 2017-07-27 | C26: 0.7299270073 | D26: 16.08103081 | E26: 27.66132984 | F26: -76.6698985 | G26: 43.74236065
B27: =data!O29 -> 2017-07-26 | C27: 0.7299270073 | D27: 16.1776734 | E27: 29.56688654 | F27: -79.14563991 | G27: 45.74455994
B28: =data!O30 -> 2017-07-25 | C28: 0.7299270073 | D28: 16.24943438 | E28: 30.83149297 | F28: -80.83605232 | G28: 47.08092734
B29: =data!O31 -> 2017-07-24 | C29: 0.7299270073 | D29: 16.19978666 | E29: 29.938035 | F29: -79.65015887 | G29: 46.13782166
B30: =data!O32 -> 2017-07-21 | C30: 0.7299270073 | D30: 15.8985058 | E30: 24.5363485 | F30: -72.48403421 | G30: 40.4348543
B31: =data!O33 -> 2017-07-20 | C31: 0.7299270073 | D31: 16.0298034 | E31: 27.65282431 | F31: -76.40863417 | G31: 43.68262771
B32: =data!O34 -> 2017-07-19 | C32: 0.7299270073 | D32: 16.04534674 | E32: 28.04123078 | F32: -76.89179728 | G32: 44.08657752
B33: =data!O35 -> 2017-07-18 | C33: 0.7299270073 | D33: 16.24195853 | E33: 31.07975438 | F33: -81.06428709 | G33: 47.32171291
B34: =data!O36 -> 2017-07-17 | C34: 0.7299270073 | D34: 16.45012457 | E34: 34.57504367 | F34: -85.75934881 | G34: 51.02516824
B35: =data!O37 -> 2017-07-14 | C35: 0.7299270073 | D35: 16.58574471 | E35: 37.46150291 | F35: -89.45806401 | G35: 54.04724762
B36: =data!O38 -> 2017-07-13 | C36: 0.7299270073 | D36: 16.71331695 | E36: 39.82242899 | F36: -92.56943794 | G36: 56.53574594 | I36: β0 + β1 (short-term rate)
B37: =data!O39 -> 2017-07-12 | C37: 0.7299270073 | D37: 16.90467763 | E37: 42.83923065 | F37: -96.69334159 | G37: 59.74390828
B38: =data!O40 -> 2017-07-11 | C38: 0.7299270073 | D38: 17.1746814 | E38: 48.78724816 | F38: -104.277614 | G38: 65.96192956
B39: =data!O41 -> 2017-07-10 | C39: 0.7299270073 | D39: 17.08080589 | E39: 46.49985327 | F39: -101.41174 | G39: 63.58065916
B40: =data!O42 -> 2017-07-06 | C40: 0.7299270073 | D40: 16.99498567 | E40: 44.0603857 | F40: -98.42686563 | G40: 61.05537137
B41: =data!O43 -> 2017-07-05 | C41: 0.7299270073 | D41: 16.86836731 | E41: 41.76804478 | F41: -95.39173527 | G41: 58.63641209
B42: =data!O44 -> 2017-06-30 | C42: 0.7299270073 | D42: 16.88361113 | E42: 42.25704027 | F42: -95.97674097 | G42: 59.14065139
B43: =data!O45 -> 2017-06-29 | C43: 0.7299270073 | D43: 16.82948336 | E43: 41.36713407 | F43: -94.77535595 | G43: 58.19661743
B44: =data!O46 -> 2017-06-28 | C44: 0.7299270073 | D44: 16.81623491 | E44: 40.64269132 | F44: -93.95745103 | G44: 57.45892623
B45: =data!O47 -> 2017-06-27 | C45: 0.7299270073 | D45: 16.88447737 | E45: 42.19953275 | F45: -95.91916616 | G45: 59.08401012
B46: =data!O48 -> 2017-06-23 | C46: 0.7299270073 | D46: 17.23233549 | E46: 51.44296306 | F46: -107.3267498 | G46: 68.67529854
B47: =data!O49 -> 2017-06-22 | C47: 0.7299270073 | D47: 16.9627451 | E47: 43.19860507 | F47: -97.35613227 | G47: 60.16135017
B48: =data!O50 -> 2017-06-21 | C48: 0.7299270073 | D48: 17.08465343 | E48: 45.81437953 | F48: -100.7071173 | G48: 62.89903296
B49: =data!O51 -> 2017-06-20 | C49: 0.7299270073 | D49: 16.91728493 | E49: 41.91670152 | F49: -95.77451124 | G49: 58.83398645
B50: =data!O52 -> 2017-06-19 | C50: 0.7299270073 | D50: 16.65734544 | E50: 34.78077106 | F50: -86.98785993 | G50: 51.4381165
B51: =data!O53 -> 2017-06-16 | C51: 0.7299270073 | D51: 16.64700773 | E51: 33.59669863 | F51: -85.69812894 | G51: 50.24370637
B52: =data!O54 -> 2017-06-15 | C52: 0.7299270073 | D52: 16.79998706 | E52: 38.01426724 | F52: -91.09767644 | G52: 54.8142543
B53: =data!O55 -> 2017-06-14 | C53: 0.7299270073 | D53: 16.42748748 | E53: 28.65604663 | F53: -79.41704821 | G53: 45.08353411
B54: =data!O56 -> 2017-06-13 | C54: 0.7299270073 | D54: 16.44107828 | E54: 28.66451992 | F54: -79.49486893 | G54: 45.1055982
B55: =data!O57 -> 2017-06-12 | C55: 0.7299270073 | D55: 16.3643211 | E55: 27.78229942 | F55: -78.18777286 | G55: 44.14662052
B56: =data!O58 -> 2017-06-09 | C56: 0.7299270073 | D56: 16.3433473 | E56: 27.49395314 | F56: -77.76228432 | G56: 43.83730044
B57: =data!O59 -> 2017-06-08 | C57: 0.7299270073 | D57: 16.50454798 | E57: 31.40969891 | F57: -82.67885823 | G57: 47.91424689
B58: =data!O60 -> 2017-06-07 | C58: 0.7299270073 | D58: 16.34999577 | E58: 29.32182668 | F58: -79.71809883 | G58: 45.67182246
B59: =data!O61 -> 2017-06-06 | C59: 0.7299270073 | D59: 16.25440645 | E59: 28.30313189 | F59: -78.18335075 | G59: 44.55753834
B60: =data!O62 -> 2017-06-01 | C60: 0.7299270073 | D60: 16.29181891 | E60: 28.01812624 | F60: -78.04139836 | G60: 44.30994514
B61: =data!O63 -> 2017-05-31 | C61: 0.7299270073 | D61: 16.26032762 | E61: 26.89481051 | F61: -76.69631736 | G61: 43.15513813
B62: =data!O64 -> 2017-05-30 | C62: 0.7299270073 | D62: 16.36313676 | E62: 28.49727169 | F62: -78.88247541 | G62: 44.86040844
B63: =data!O65 -> 2017-05-25 | C63: 0.7299270073 | D63: 16.39285015 | E63: 28.63706063 | F63: -79.18798399 | G63: 45.02991078
B64: =data!O66 -> 2017-05-24 | C64: 0.7299270073 | D64: 16.58424788 | E64: 32.78187721 | F64: -84.49359026 | G64: 49.36612509
B65: =data!O67 -> 2017-05-23 | C65: 0.7299270073 | D65: 16.53896558 | E65: 31.68197915 | F65: -83.12077141 | G65: 48.22094473
B66: =data!O68 -> 2017-05-22 | C66: 0.7299270073 | D66: 16.19502093 | E66: 27.33405445 | F66: -76.87522836 | G66: 43.52907539
B67: =data!O69 -> 2017-05-19 | C67: 0.7299270073 | D67: 16.26040663 | E67: 28.53094769 | F67: -78.46116934 | G67: 44.79135433
B68: =data!O70 -> 2017-05-16 | C68: 0.7299270073 | D68: 17.35851358 | E68: 46.09126653 | F68: -102.2726839 | G68: 63.44978011
B69: =data!O71 -> 2017-05-15 | C69: 0.7299270073 | D69: 17.43003545 | E69: 47.17576609 | F69: -103.7682592 | G69: 64.60580154
B70: =data!O72 -> 2017-05-12 | C70: 0.7299270073 | D70: 17.40257755 | E70: 47.89589041 | F70: -104.3765919 | G70: =IF(B70="", "", D70+E70) -> 65.29846795
B71: =data!O73 -> 2017-05-11 | C71: 0.7299270073 | D71: 17.38166889 | E71: 47.67327509 | F71: -104.0300859 | G71: 65.05494398
B72: =data!O74 -> 2017-05-10 | C72: 0.7299270073 | D72: 17.56342833 | E72: 49.30600194 | F72: -106.649969 | G72: 66.86943027
B73: =data!O75 -> 2017-05-08 | C73: 0.7299270073 | D73: 17.55282771 | E73: 47.07524957 | F73: -104.2734967 | G73: 64.62807728
B74: =data!O76 -> 2017-05-05 | C74: 0.7299270073 | D74: 17.59269533 | E74: 46.86770348 | F74: -104.2562715 | G74: 64.46039881
B75: =data!O77 -> 2017-05-04 | C75: 0.7299270073 | D75: 17.76269923 | E75: 49.79779886 | F75: -108.1909429 | G75: 67.56049809
B76: =data!O78 -> 2017-05-03 | C76: 0.7299270073 | D76: 17.46074026 | E76: 45.66058744 | F76: -102.3498027 | G76: 63.12132769
B77: =data!O79 -> 2017-05-02 | C77: 0.7299270073 | D77: 17.44470635 | E77: 48.46966303 | F77: -105.197438 | G77: 65.91436938
B78: =data!O80 -> 2017-05-01 | C78: 0.7299270073 | D78: 17.44792705 | E78: 50.61559141 | F78: -107.4723244 | G78: 68.06351847
B79: =data!O81 -> 2017-04-28 | C79: 0.7299270073 | D79: 17.49062193 | E79: 51.90810981 | F79: -109.0472887 | G79: 69.39873174
B80: =data!O82 -> 2017-04-27 | C80: 0.7299270073 | D80: 17.44676976 | E80: 51.44566005 | F80: -108.3560596 | G80: 68.89242981
B81: =data!O83 -> 2017-04-25 | C81: 0.7299270073 | D81: 17.32712945 | E81: 48.78597686 | F81: -104.944259 | G81: 66.11310631
B82: =data!O84 -> 2017-04-24 | C82: 0.7299270073 | D82: 16.93056611 | E82: 34.41632491 | F82: -87.84900126 | G82: 51.34689102
B83: =data!O85 -> 2017-04-21 | C83: 0.7299270073 | D83: 17.03906101 | E83: 36.12800735 | F83: -90.2126304 | G83: 53.16706835
B84: =data!O86 -> 2017-04-20 | C84: 0.7299270073 | D84: 17.09308255 | E84: 35.74818359 | F84: -90.06706835 | G84: 52.84126614
B85: =data!O87 -> 2017-04-19 | C85: 0.7299270073 | D85: 17.2670018 | E85: 37.65897096 | F85: -92.92655859 | G85: 54.92597276
B86: =data!O88 -> 2017-04-18 | C86: 0.7299270073 | D86: 17.11241899 | E86: 35.8646774 | F86: -90.25880511 | G86: 52.97709639
B87: =data!O89 -> 2017-04-13 | C87: 0.7299270073 | D87: 16.78182884 | E87: 31.19987965 | F87: -83.70173602 | G87: 47.98170849
B88: =data!O90 -> 2017-04-12 | C88: 0.7299270073 | D88: 16.79007964 | E88: 31.37829497 | F88: -83.94066063 | G88: 48.16837461
B89: =data!O91 -> 2017-04-11 | C89: 0.7299270073 | D89: 16.80188069 | E89: 33.82284533 | F89: -86.57257155 | G89: 50.62472602
B90: =data!O92 -> 2017-04-10 | C90: 0.7299270073 | D90: 16.61476825 | E90: 31.62891439 | F90: -83.33274723 | G90: 48.24368264
B91: =data!O93 -> 2017-04-07 | C91: 0.7299270073 | D91: 16.69576083 | E91: 33.61560929 | F91: -85.84037895 | G91: 50.31137011
B92: =data!O94 -> 2017-04-06 | C92: 0.7299270073 | D92: 16.70368556 | E92: 35.76014396 | F92: -88.16426998 | G92: 52.46382952
B93: =data!O95 -> 2017-04-05 | C93: 0.7299270073 | D93: 16.85354239 | E93: 39.7414725 | F93: -93.10929207 | G93: 56.59501489
B94: =data!O96 -> 2017-04-04 | C94: 0.7299270073 | D94: 16.67000808 | E94: 35.00912435 | F94: -87.20308069 | G94: 51.67913243
B95: =data!O97 -> 2017-04-03 | C95: 0.7299270073 | D95: 16.57749371 | E95: 33.54188719 | F95: -85.20751409 | G95: 50.11938089
B96: =data!O98 -> 2017-03-31 | C96: 0.7299270073 | D96: 16.68676905 | E96: 36.27451 | F96: -88.63792312 | G96: 52.96127905
B97: =data!O99 -> 2017-03-30 | C97: 0.7299270073 | D97: 16.71343053 | E97: 36.62712567 | F97: -89.13096 | G97: 53.3405562
B98: =data!O100 -> 2017-03-29 | C98: 0.7299270073 | D98: 16.9115708 | E98: 39.52398485 | F98: -93.13974319 | G98: 56.43555565
B99: =data!O101 -> 2017-03-28 | C99: 0.7299270073 | D99: 16.92619182 | E99: 39.77974483 | F99: -93.47348559 | G99: 56.70593665
B100: =data!O102 -> 2017-03-27 | C100: 0.7299270073 | D100: 17.36998091 | E100: 49.85949526 | F100: -106.281846 | G100: 67.22947617
B101: =data!O103 -> 2017-03-24 | C101: 0.7299270073 | D101: 17.21623078 | E101: 46.76906611 | F101: -102.2642069 | G101: 63.98529689
B102: =data!O104 -> 2017-03-23 | C102: 0.7299270073 | D102: 17.13772511 | E102: 42.73176887 | F102: -97.63776357 | G102: 59.86949398
B103: =data!O105 -> 2017-03-22 | C103: 0.7299270073 | D103: 17.44030094 | E103: 51.13839636 | F103: -107.9747193 | G103: 68.5786973
B104: =data!O106 -> 2017-03-21 | C104: 0.7299270073 | D104: 17.42208485 | E104: 52.04350191 | F104: -108.850677 | G104: 69.46558677
B105: =data!O107 -> 2017-03-17 | C105: 0.7299270073 | D105: 17.28141625 | E105: 49.68313089 | F105: -105.6910131 | G105: 66.96454715
B106: =data!O108 -> 2017-03-16 | C106: 0.7299270073 | D106: 17.14430376 | E106: 46.38127385 | F106: -101.5438729 | G106: 63.52557761
B107: =data!O109 -> 2017-03-15 | C107: 0.7299270073 | D107: 17.23939629 | E107: 47.77856036 | F107: -103.4503531 | G107: 65.01795665
B108: =data!O110 -> 2017-03-14 | C108: 0.7299270073 | D108: 17.22490039 | E108: 44.68687779 | F108: -100.1003457 | G108: 61.91177818
B109: =data!O111 -> 2017-03-13 | C109: 0.7299270073 | D109: 16.96374282 | E109: 40.48839929 | F109: -94.39494417 | G109: 57.45214211
B110: =data!O112 -> 2017-03-10 | C110: 0.7299270073 | D110: 16.72292375 | E110: 33.7733906 | F110: -86.11469181 | G110: 50.49631434
B111: =data!O113 -> 2017-03-09 | C111: 0.7299270073 | D111: 16.91612327 | E111: 36.63160796 | F111: -90.0833782 | G111: 53.54773123
B112: =data!O114 -> 2017-03-08 | C112: 0.7299270073 | D112: 16.78106571 | E112: 34.38776613 | F112: -87.04521278 | G112: 51.16883184
B113: =data!O115 -> 2017-03-07 | C113: 0.7299270073 | D113: 16.75419988 | E113: 35.76969331 | F113: -88.39082434 | G113: 52.52389319
B114: =data!O116 -> 2017-03-06 | C114: 0.7299270073 | D114: 16.51962949 | E114: 30.8269842 | F114: -82.02497005 | G114: 47.34661369
B115: =data!O117 -> 2017-03-03 | C115: 0.7299270073 | D115: 16.49356577 | E115: 31.14816041 | F115: -82.24427744 | G115: 47.64172618
B116: =data!O118 -> 2017-03-02 | C116: 0.7299270073 | D116: 16.47475814 | E116: 30.90851633 | F116: -81.90063852 | G116: 47.38327447
B117: =data!O119 -> 2017-03-01 | C117: 0.7299270073 | D117: 16.48257979 | E117: 30.7624061 | F117: -81.78053671 | G117: 47.24498589
B118: =data!O120 -> 2017-02-28 | C118: 0.7299270073 | D118: 16.47143438 | E118: 30.2870135 | F118: -81.21268186 | G118: 46.75844788
B119: =data!O121 -> 2017-02-24 | C119: 0.7299270073 | D119: 16.48673757 | E119: 31.15847776 | F119: -82.20627705 | G119: 47.64521533
B120: =data!O122 -> 2017-02-23 | C120: 0.7299270073 | D120: 16.63374935 | E120: 33.31940072 | F120: -85.19888167 | G120: 49.95315007
B121: =data!O123 -> 2017-02-21 | C121: 0.7299270073 | D121: 16.63911912 | E121: 33.49952458 | F121: -85.42164084 | G121: 50.13864369
B122: =data!O124 -> 2017-02-17 | C122: 0.7299270073 | D122: 16.53657985 | E122: 31.6210007 | F122: -82.93622938 | G122: 48.15758055
B123: =data!O125 -> 2017-02-16 | C123: 0.7299270073 | D123: 16.72487346 | E123: 35.72774578 | F123: -88.19206333 | G123: 52.45261924
B124: =data!O126 -> 2017-02-15 | C124: 0.7299270073 | D124: 16.79803238 | E124: 36.4135506 | F124: -89.26417364 | G124: 53.21158298
B125: =data!O127 -> 2017-02-14 | C125: 0.7299270073 | D125: 16.91184355 | E125: 37.69978415 | F125: -91.16707739 | G125: 54.6116277
B126: =data!O128 -> 2017-02-13 | C126: 0.7299270073 | D126: 16.91798222 | E126: 37.24040754 | F126: -90.70915366 | G126: 54.15838977
B127: =data!O129 -> 2017-02-09 | C127: 0.7299270073 | D127: 17.00419641 | E127: 39.22021764 | F127: -93.25046089 | G127: 56.22441404
B128: =data!O130 -> 2017-02-08 | C128: 0.7299270073 | D128: 16.7273086 | E128: 35.21253671 | F128: -87.68562029 | G128: 51.93984531
B129: =data!O131 -> 2017-02-07 | C129: 0.7299270073 | D129: 16.58957633 | E129: 32.42550496 | F129: -84.06975828 | G129: 49.01508129
B130: =data!O132 -> 2017-02-06 | C130: 0.7299270073 | D130: 16.64309354 | E130: 33.73139518 | F130: -85.70909235 | G130: 50.37448873
B131: =data!O133 -> 2017-02-03 | C131: 0.7299270073 | D131: 16.57756445 | E131: 32.43630054 | F131: -84.01997028 | G131: 49.013865
B132: =data!O134 -> 2017-02-02 | C132: 0.7299270073 | D132: 16.58689288 | E132: 32.92727568 | F132: -84.59240152 | G132: 49.51416856
B133: =data!O135 -> 2017-02-01 | C133: 0.7299270073 | D133: 16.5813098 | E133: 33.04532966 | F133: -84.68951589 | G133: 49.62663946
B134: =data!O136 -> 2017-01-31 | C134: 0.7299270073 | D134: 16.51732063 | E134: 31.91713875 | F134: -83.18397722 | G134: =IF(B134="", "", D134+E134) -> 48.43445939
B135: =data!O137 -> 2017-01-30 | C135: 0.7299270073 | D135: 16.51204399 | E135: 31.84409505 | F135: -83.08321112 | G135: 48.35613904
B136: =data!O138 -> 2017-01-27 | C136: 0.7299270073 | D136: 16.44961679 | E136: 30.93925499 | F136: -81.81837658 | G136: 47.38887178
B137: =data!O139 -> 2017-01-26 | C137: 0.7299270073 | D137: 16.45751372 | E137: 31.28218801 | F137: -82.22683475 | G137: 47.73970173
B138: =data!O140 -> 2017-01-24 | C138: 0.7299270073 | D138: 16.73574587 | E138: 38.10842824 | F138: -90.79321687 | G138: 54.84417411
B139: =data!O141 -> 2017-01-23 | C139: 0.7299270073 | D139: 16.84389157 | E139: 39.88854059 | F139: -93.19951757 | G139: 56.73243216
B140: =data!O142 -> 2017-01-19 | C140: 0.7299270073 | D140: 16.81381341 | E140: 38.5210346 | F140: -91.59947287 | G140: 55.33484802
B141: =data!O143 -> 2017-01-18 | C141: 0.7299270073 | D141: 16.78069433 | E141: 37.78005608 | F141: -90.65261639 | G141: 54.56075041
B142: =data!O144 -> 2017-01-17 | C142: 0.7299270073 | D142: 16.7851674 | E142: 36.45002971 | F142: -89.26242454 | G142: 53.23519711
B143: =data!O145 -> 2017-01-13 | C143: 0.7299270073 | D143: 16.79229773 | E143: 36.23987822 | F143: -89.05650257 | G143: 53.03217595
B144: =data!O146 -> 2017-01-12 | C144: 0.7299270073 | D144: 16.91112295 | E144: 39.2719811 | F144: -92.83714653 | G144: 56.18310404
B145: =data!O147 -> 2017-01-11 | C145: 0.7299270073 | D145: 16.93154973 | E145: 40.04103326 | F145: -93.74619246 | G145: 56.97258299
B146: =data!O148 -> 2017-01-10 | C146: 0.7299270073 | D146: 16.90151494 | E146: 39.80135208 | F146: -93.34758712 | G146: 56.70286702
B147: =data!O149 -> 2017-01-09 | C147: 0.7299270073 | D147: 16.93758631 | E147: 40.89217611 | F147: -94.68012345 | G147: 57.82976242
B148: =data!O150 -> 2017-01-06 | C148: 0.7299270073 | D148: 16.88658139 | E148: 39.79578422 | F148: -93.27417801 | G148: 56.68236561
B149: =data!O151 -> 2017-01-05 | C149: 0.7299270073 | D149: 16.89876718 | E149: 39.99262907 | F149: -93.5373347 | G149: 56.89139625
B150: =data!O152 -> 2017-01-04 | C150: 0.7299270073 | D150: 17.08137497 | E150: 45.19012314 | F150: -99.91690763 | G150: 62.27149811
B151: =data!O153 -> 2017-01-03 | C151: 0.7299270073 | D151: 17.19091458 | E151: 45.65396114 | F151: -100.9317582 | G151: 62.84487572
B152: =data!O154 -> 2016-12-29 | C152: 0.7299270073 | D152: 17.37601072 | E152: 49.62271414 | F152: -106.0094859 | G152: 66.99872485
B153: =data!O155 -> 2016-12-28 | C153: 0.7299270073 | D153: 17.31106129 | E153: 48.1209284 | F153: -104.107598 | G153: 65.43198968
B154: =data!O156 -> 2016-12-27 | C154: 0.7299270073 | D154: 17.33469866 | E154: 48.53099304 | F154: -104.6536422 | G154: 65.8656917
B155: =data!O157 -> 2016-12-23 | C155: 0.7299270073 | D155: 17.47560284 | E155: 52.95806785 | F155: -110.0066558 | G155: 70.43367069
B156: =data!O158 -> 2016-12-22 | C156: 0.7299270073 | D156: 17.46622407 | E156: 52.52090152 | F156: -109.4910725 | G156: 69.98712559
B157: =data!O159 -> 2016-12-20 | C157: 0.7299270073 | D157: 17.38929661 | E157: 48.92760796 | F157: -105.3385454 | G157: 66.31690457
B158: =data!O160 -> 2016-12-19 | C158: 0.7299270073 | D158: 17.40745789 | E158: 49.77081172 | F158: -106.3190905 | G158: 67.17826961
B159: =data!O161 -> 2016-12-16 | C159: 0.7299270073 | D159: 17.46967312 | E159: 50.40527043 | F159: -107.2938634 | G159: 67.87494355
B160: =data!O162 -> 2016-12-15 | C160: 0.7299270073 | D160: 17.51396308 | E160: 50.92715538 | F160: -108.0615131 | G160: 68.44111846
B161: =data!O163 -> 2016-12-14 | C161: 0.7299270073 | D161: 17.32580374 | E161: 47.21906934 | F161: -103.2219073 | G161: 64.54487308
B162: =data!O164 -> 2016-12-13 | C162: 0.7299270073 | D162: 17.42952612 | E162: 50.13466005 | F162: -106.8139754 | G162: 67.56418617
B163: =data!O165 -> 2016-12-12 | C163: 0.7299270073 | D163: 17.45754968 | E163: 51.15815378 | F163: -108.0441311 | G163: 68.61570346
B164: =data!O166 -> 2016-12-08 | C164: 0.7299270073 | D164: 17.87006641 | E164: 63.21229312 | F164: -122.7649359 | G164: 81.08235953
B165: =data!O167 -> 2016-12-07 | C165: 0.7299270073 | D165: 17.90944332 | E165: 65.95688625 | F165: -125.8327798 | G165: 83.86632957
B166: =data!O168 -> 2016-12-06 | C166: 0.7299270073 | D166: 18.20690914 | E166: 70.84477803 | F166: -132.4352865 | G166: 89.05168716
B167: =data!O169 -> 2016-12-05 | C167: 0.7299270073 | D167: 18.87051038 | E167: 96.39359723 | F167: -162.4565763 | G167: 115.2641076
B168: =data!O170 -> 2016-12-02 | C168: 0.7299270073 | D168: 18.87322467 | E168: 101.3925295 | F168: -167.6736505 | G168: 120.2657542
B169: =data!O171 -> 2016-12-01 | C169: 0.7299270073 | D169: 18.40852245 | E169: 88.68774324 | F169: -152.0596659 | G169: 107.0962657
B170: =data!O172 -> 2016-11-30 | C170: 0.7299270073 | D170: 18.33201481 | E170: 86.22665609 | F170: -149.1303175 | G170: 104.5586709
B171: =data!O173 -> 2016-11-29 | C171: 0.7299270073 | D171: 18.31216706 | E171: 85.66456593 | F171: -148.4466302 | G171: 103.976733
B172: =data!O174 -> 2016-11-28 | C172: 0.7299270073 | D172: 18.09080983 | E172: 76.43984578 | F172: -137.6999441 | G172: 94.53065562
B173: =data!O175 -> 2016-11-23 | C173: 0.7299270073 | D173: 18.27755248 | E173: 84.1617568 | F173: -146.6941197 | G173: 102.4393093
B174: =data!O176 -> 2016-11-22 | C174: 0.7299270073 | D174: 18.28225405 | E174: 85.32762047 | F174: -147.926438 | G174: 103.6098745
B175: =data!O177 -> 2016-11-21 | C175: 0.7299270073 | D175: 18.46913213 | E175: 91.12846927 | F175: -154.9010605 | G175: 109.5976014
B176: =data!O178 -> 2016-11-18 | C176: 0.7299270073 | D176: 18.52472262 | E176: 94.90923252 | F176: -159.1189617 | G176: 113.4339551
B177: =data!O179 -> 2016-11-17 | C177: 0.7299270073 | D177: 18.18896724 | E177: 82.08462319 | F177: -144.0670237 | G177: 100.2735904
B178: =data!O180 -> 2016-11-16 | C178: 0.7299270073 | D178: 18.3009886 | E178: 86.72323779 | F178: -149.4640354 | G178: 105.0242264
B179: =data!O181 -> 2016-11-15 | C179: 0.7299270073 | D179: 18.15136868 | E179: 79.06377409 | F179: -140.7426694 | G179: 97.21514277
B180: =data!O182 -> 2016-11-14 | C180: 0.7299270073 | D180: 18.26642853 | E180: 79.71624703 | F180: -142.0067275 | G180: 97.98267556
B181: =data!O183 -> 2016-11-10 | C181: 0.7299270073 | D181: 18.09169743 | E181: 75.26869354 | F181: -136.5254632 | G181: 93.36039097
B182: =data!O184 -> 2016-11-09 | C182: 0.7299270073 | D182: 17.68076017 | E182: 62.02247556 | F182: -120.60207 | G182: 79.70323574
B183: =data!O185 -> 2016-11-08 | C183: 0.7299270073 | D183: 17.84296829 | E183: 65.76110256 | F183: -125.3298021 | G183: 83.60407085
B184: =data!O186 -> 2016-11-07 | C184: 0.7299270073 | D184: 17.78559748 | E184: 65.28698152 | F184: -124.5388739 | G184: 83.072579
B185: =data!O187 -> 2016-11-04 | C185: 0.7299270073 | D185: 18.40356758 | E185: 84.82228114 | F185: -148.0698944 | G185: 103.2258487
B186: =data!O188 -> 2016-11-03 | C186: 0.7299270073 | D186: 18.02230187 | E186: 68.0628922 | F186: -128.6377177 | G186: 86.08519407
B187: =data!O189 -> 2016-11-02 | C187: 0.7299270073 | D187: 18.11577828 | E187: 69.5889294 | F187: -130.6989491 | G187: 87.70470768
B188: =data!O190 -> 2016-11-01 | C188: 0.7299270073 | D188: 17.33554499 | E188: 53.73331229 | F188: -110.1984599 | G188: 71.06885729
B189: =data!O191 -> 2016-10-31 | C189: 0.7299270073 | D189: 17.1491163 | E189: 49.1101933 | F189: -104.4117695 | G189: 66.2593096
B190: =data!O192 -> 2016-10-28 | C190: 0.7299270073 | D190: 16.92707162 | E190: 45.36213707 | F190: -99.3872169 | G190: 62.28920869
B191: =data!O193 -> 2016-10-27 | C191: 0.7299270073 | D191: 16.93249828 | E191: 45.1450503 | F191: -99.19473331 | G191: 62.07754857
B192: =data!O194 -> 2016-10-26 | C192: 0.7299270073 | D192: 16.46003609 | E192: 35.12413275 | F192: -86.34770685 | G192: 51.58416885
B193: =data!O195 -> 2016-10-25 | C193: 0.7299270073 | D193: 15.95198783 | E193: 26.27301985 | F193: -74.54105571 | G193: 42.22500768
B194: =data!O196 -> 2016-10-24 | C194: 0.7299270073 | D194: 15.8833595 | E194: 25.29054555 | F194: -73.17597807 | G194: 41.17390506
B195: =data!O197 -> 2016-10-21 | C195: 0.7299270073 | D195: 15.78671621 | E195: 23.82869584 | F195: -71.16176303 | G195: 39.61541204
B196: =data!O198 -> 2016-10-20 | C196: 0.7299270073 | D196: 15.90432393 | E196: 24.94811717 | F196: -72.90127373 | G196: 40.8524411
B197: =data!O199 -> 2016-10-19 | C197: 0.7299270073 | D197: 16.05352274 | E197: 27.32411839 | F197: -76.12857979 | G197: 43.37764113
B198: =data!O200 -> 2016-10-18 | C198: 0.7299270073 | D198: 16.30512124 | E198: 32.29670397 | F198: -82.60498463 | G198: =IF(B198="", "", D198+E198) -> 48.60182521
B199: =data!O201 -> 2016-10-17 | C199: 0.7299270073 | D199: 16.44268016 | E199: 34.39206957 | F199: -85.48060783 | G199: 50.83474973
B200: =data!O202 -> 2016-10-14 | C200: 0.7299270073 | D200: 16.39708947 | E200: 33.41759 | F200: -84.22436888 | G200: 49.81467947
B201: =data!O203 -> 2016-10-13 | C201: 0.7299270073 | D201: 16.44074556 | E201: 34.19086987 | F201: -85.25079422 | G201: 50.63161544
B202: =data!O204 -> 2016-10-12 | C202: 0.7299270073 | D202: 16.62402192 | E202: 38.76331687 | F202: -90.97905575 | G202: 55.38733879
... 112 more rows

Sheet charts
B2: TAB: CHARTS

Sheet fitted
C2: TAB: FITTED YIELD TERM STRUCTURE | L2: Mean (in bps) | O2: =100*AVERAGE(O6:O1000) -> -1.059744941 | P2: =100*AVERAGE(P6:P1000) -> 1.377981962 | Q2: -0.8534716306 | R2: -2.070225926 | S2: 2.141852385 | T2: -2.804457103 | U2: 0.4097746368 | V2: 3.690877335 | W2: -0.8325867178
L3: StDev (in bps) | O3: =100*STDEV(O6:O1000) -> 1.721931126 | P3: =100*STDEV(P6:P1000) -> 2.080196969 | Q3: 1.128860117 | R3: 1.36239747 | S3: 1.254899546 | T3: 2.187494052 | U3: 1.136141747 | V3: 2.602007632 | W3: 1.066283048
C4: Fitted yields (in %) | O4: Term structure residuals (in %) | Z4: Test
B5: # | C5: =TS!B4 -> Date | D5: =calc!C5 -> 1.888 | E5: =calc!D5 -> 2.186 | F5: =calc!E5 -> 4.145 | G5: =calc!F5 -> 5.192 | H5: =calc!G5 -> 5.397 | I5: =calc!H5 -> 5.773 | J5: =calc!I5 -> 6.444 | K5: =calc!J5 -> 7.195 | L5: =calc!K5 -> 7.4 | M5: =calc!L5 -> 0 | O5: =D5 -> 1.888 | P5: 2.186 | Q5: 4.145 | R5: 5.192 | S5: 5.397 | T5: 5.773 | U5: 6.444 | V5: 7.195 | W5: 7.4 | Z5: SUM
B6: 1 | C6: =IF(TS!B5="", "", TS!B5) -> 2017-08-29 | D6: =_xll.AC.finance.irb.ts._get(calc!C10, config!D10, 0) -> 5.891041651 | E6: 4.933698764 | F6: 7.5329585 | G6: 6.620876356 | H6: 6.3698133 | I6: 6.148351946 | J6: 6.758538934 | K6: 7.070364413 | L6: 7.111356135 | O6: =IF($C6="", "", data!P7-D6) -> 0.01495834883 | P6: =IF($C6="", "", data!Q7-E6) -> -0.003698764451 | Q6: =IF($C6="", "", data!R7-F6) -> 0.01604150037 | R6: =IF($C6="", "", data!S7-G6) -> -0.007876356362 | S6: =IF($C6="", "", data!T7-H6) -> -0.001813299947 | T6: =IF($C6="", "", data!U7-I6) -> 0.005648054045 | U6: =IF($C6="", "", data!V7-J6) -> -0.009538934258 | V6: =IF($C6="", "", data!W7-K6) -> -0.007364412534 | W6: =IF($C6="", "", data!X7-L6) -> -0.006356135496 | Z6: =SUM(O6:X6) -> 1.952544793e-10
B7: =B6+1 -> 2 | C7: =IF(TS!B6="", "", TS!B6) -> 2017-08-28 | D7: 5.922462862 | E7: 4.922858196 | F7: 7.470170392 | G7: 6.575228917 | H7: 6.308736163 | I7: 6.147431929 | J7: 6.820205063 | K7: 7.07073855 | L7: 7.054167927 | O7: =IF($C7="", "", data!P8-D7) -> 0.01253713766 | P7: =IF($C7="", "", data!Q8-E7) -> -0.002858196202 | Q7: =IF($C7="", "", data!R8-F7) -> 0.01482960798 | R7: =IF($C7="", "", data!S8-G7) -> -0.007228917326 | S7: =IF($C7="", "", data!T8-H7) -> -0.0007361633252 | T7: =IF($C7="", "", data!U8-I7) -> 0.004568070703 | U7: =IF($C7="", "", data!V8-J7) -> -0.009205062636 | V7: =IF($C7="", "", data!W8-K7) -> -0.005738550086 | W7: =IF($C7="", "", data!X8-L7) -> -0.006167926825 | Z7: =SUM(O7:X7) -> -4.967404266e-11
B8: =B7+1 -> 3 | C8: =IF(TS!B7="", "", TS!B7) -> 2017-08-25 | D8: 5.681976856 | E8: 4.931482723 | F8: 7.377806434 | G8: 6.606595899 | H8: 6.265321839 | I8: 6.133531174 | J8: 6.800652133 | K8: 7.066982349 | L8: 7.047650592 | O8: =IF($C8="", "", data!P9-D8) -> 0.01502314397 | P8: =IF($C8="", "", data!Q9-E8) -> -0.004482722937 | Q8: =IF($C8="", "", data!R9-F8) -> 0.01419356577 | R8: =IF($C8="", "", data!S9-G8) -> -0.00859589862 | S8: =IF($C8="", "", data!T9-H8) -> -0.002321838893 | T8: =IF($C8="", "", data!U9-I8) -> 0.001468825771 | U8: =IF($C8="", "", data!V9-J8) -> -0.008652133294 | V8: =IF($C8="", "", data!W9-K8) -> -0.002982349341 | W8: =IF($C8="", "", data!X9-L8) -> -0.003650592272 | Z8: 1.550084505e-10
B9: 4 | C9: =IF(TS!B8="", "", TS!B8) -> 2017-08-24 | D9: 5.764235194 | E9: 4.924459876 | F9: 7.361697003 | G9: 6.602704867 | H9: 6.45247155 | I9: 6.261868843 | J9: 6.957985128 | K9: 7.118120633 | L9: 7.082456908 | O9: =IF($C9="", "", data!P10-D9) -> 0.01476480599 | P9: =IF($C9="", "", data!Q10-E9) -> -0.003459875588 | Q9: =IF($C9="", "", data!R10-F9) -> 0.01230299653 | R9: =IF($C9="", "", data!S10-G9) -> -0.007704866961 | S9: =IF($C9="", "", data!T10-H9) -> -0.005471549535 | T9: =IF($C9="", "", data!U10-I9) -> -0.0008688425266 | U9: =IF($C9="", "", data!V10-J9) -> -0.005985127527 | V9: =IF($C9="", "", data!W10-K9) -> -0.00112063316 | W9: =IF($C9="", "", data!X10-L9) -> -0.002456907865 | Z9: -6.446470024e-10
B10: 5 | C10: =IF(TS!B9="", "", TS!B9) -> 2017-08-23 | D10: 5.867692096 | E10: 4.928209329 | F10: 7.470937724 | G10: 6.59701858 | H10: 6.50319194 | I10: 6.280034852 | J10: 6.960924125 | K10: 7.115560084 | L10: 7.17843127 | O10: =IF($C10="", "", data!P11-D10) -> 0.01530790387 | P10: =IF($C10="", "", data!Q11-E10) -> -0.003209329288 | Q10: =IF($C10="", "", data!R11-F10) -> 0.01406227605 | R10: =IF($C10="", "", data!S11-G10) -> -0.007018579917 | S10: =IF($C10="", "", data!T11-H10) -> -0.005191940278 | T10: =IF($C10="", "", data!U11-I10) -> 0.0009651481703 | U10: =IF($C10="", "", data!V11-J10) -> -0.007924124989 | V10: =IF($C10="", "", data!W11-K10) -> -0.004560083981 | W10: =IF($C10="", "", data!X11-L10) -> -0.002431269823 | Z10: -1.84580351e-10
B11: 6 | C11: =IF(TS!B10="", "", TS!B10) -> 2017-08-22 | D11: 6.057604953 | E11: 4.927135392 | F11: 7.608187352 | G11: 6.564838187 | H11: 6.455913242 | I11: 6.052402214 | J11: 7.051697926 | K11: 7.097854278 | L11: 7.193366458 | O11: =IF($C11="", "", data!P12-D11) -> 0.01039504738 | P11: =IF($C11="", "", data!Q12-E11) -> -0.003135391565 | Q11: =IF($C11="", "", data!R12-F11) -> 0.01781264833 | R11: =IF($C11="", "", data!S12-G11) -> -0.006838186654 | S11: =IF($C11="", "", data!T12-H11) -> -0.003913242031 | T11: =IF($C11="", "", data!U12-I11) -> 0.01059778573 | U11: =IF($C11="", "", data!V12-J11) -> -0.009697925669 | V11: =IF($C11="", "", data!W12-K11) -> -0.008854277742 | W11: =IF($C11="", "", data!X12-L11) -> -0.006366457824 | Z11: -4.771827378e-11
B12: 7 | C12: =IF(TS!B11="", "", TS!B11) -> 2017-08-21 | D12: 6.136244159 | E12: 4.949013475 | F12: 7.607351626 | G12: 6.644422899 | H12: 6.275750707 | I12: 6.295503616 | J12: 6.9088984 | K12: 7.354103048 | L12: 7.153712069 | O12: =IF($C12="", "", data!P13-D12) -> 0.009755841164 | P12: =IF($C12="", "", data!Q13-E12) -> -0.002013475288 | Q12: =IF($C12="", "", data!R13-F12) -> 0.01364837372 | R12: =IF($C12="", "", data!S13-G12) -> -0.007422899193 | S12: =IF($C12="", "", data!T13-H12) -> 0.004249292914 | T12: =IF($C12="", "", data!U13-I12) -> 0.003496383681 | U12: =IF($C12="", "", data!V13-J12) -> -0.01089840024 | V12: =IF($C12="", "", data!W13-K12) -> -0.002103047512 | W12: =IF($C12="", "", data!X13-L12) -> -0.008712068877 | Z12: 3.673017446e-10
B13: 8 | C13: =IF(TS!B12="", "", TS!B12) -> 2017-08-18 | D13: 6.157369768 | E13: 4.940521575 | F13: 7.613881202 | G13: 6.918509011 | H13: 6.210699605 | I13: 6.58843654 | J13: 6.637944013 | K13: 7.5989131 | L13: 6.944725186 | O13: =IF($C13="", "", data!P14-D13) -> 0.01263023245 | P13: =IF($C13="", "", data!Q14-E13) -> -0.002521574804 | Q13: =IF($C13="", "", data!R14-F13) -> 0.007118798107 | R13: =IF($C13="", "", data!S14-G13) -> -0.01150901137 | S13: =IF($C13="", "", data!T14-H13) -> 0.01030039451 | T13: =IF($C13="", "", data!U14-I13) -> -0.004436540494 | U13: =IF($C13="", "", data!V14-J13) -> -0.005944012962 | V13: =IF($C13="", "", data!W14-K13) -> 0.006086900446 | W13: =IF($C13="", "", data!X14-L13) -> -0.01172518616 | Z13: -2.863336235e-10
B14: 9 | C14: =IF(TS!B13="", "", TS!B13) -> 2017-08-17 | D14: 6.186611713 | E14: 4.975321027 | F14: 7.602406175 | G14: 6.918989118 | H14: 5.953337776 | I14: 6.601436567 | J14: 6.628156919 | K14: 7.583740356 | L14: 6.921000348 | O14: =IF($C14="", "", data!P15-D14) -> 0.008388287373 | P14: =IF($C14="", "", data!Q15-E14) -> -0.004321027157 | Q14: =IF($C14="", "", data!R15-F14) -> 0.008593824837 | R14: =IF($C14="", "", data!S15-G14) -> -0.01198911777 | S14: =IF($C14="", "", data!T15-H14) -> 0.01766222374 | T14: =IF($C14="", "", data!U15-I14) -> -0.006436567479 | U14: =IF($C14="", "", data!V15-J14) -> -0.007156919243 | V14: =IF($C14="", "", data!W15-K14) -> 0.007259644314 | W14: =IF($C14="", "", data!X15-L14) -> -0.01200034842 | Z14: 2.020250633e-10
B15: 10 | C15: =IF(TS!B14="", "", TS!B14) -> 2017-08-16 | D15: 6.244369499 | E15: 4.98117849 | F15: 7.612805619 | G15: 6.853391894 | H15: 5.945391699 | I15: 6.575360052 | J15: 6.613463719 | K15: 7.571659512 | L15: 6.852379515 | O15: =IF($C15="", "", data!P16-D15) -> 0.006630500559 | P15: =IF($C15="", "", data!Q16-E15) -> -0.004178489659 | Q15: =IF($C15="", "", data!R16-F15) -> 0.008194381334 | R15: =IF($C15="", "", data!S16-G15) -> -0.01139189435 | S15: =IF($C15="", "", data!T16-H15) -> 0.01860830052 | T15: =IF($C15="", "", data!U16-I15) -> -0.005360052268 | U15: =IF($C15="", "", data!V16-J15) -> -0.006463719145 | V15: =IF($C15="", "", data!W16-K15) -> 0.005340488455 | W15: =IF($C15="", "", data!X16-L15) -> -0.01137951546 | Z15: -3.300471008e-12
B16: 11 | C16: =IF(TS!B15="", "", TS!B15) -> 2017-08-14 | D16: 6.154298977 | E16: 4.938058964 | F16: 7.77093526 | G16: 6.825930577 | H16: 5.942104377 | I16: 6.547456616 | J16: 6.567129972 | K16: 7.505138707 | L16: 6.892946551 | O16: =IF($C16="", "", data!P17-D16) -> 0.01070102306 | P16: =IF($C16="", "", data!Q17-E16) -> -0.005058964168 | Q16: =IF($C16="", "", data!R17-F16) -> 0.01606474025 | R16: =IF($C16="", "", data!S17-G16) -> -0.01293057662 | S16: =IF($C16="", "", data!T17-H16) -> 0.01989562313 | T16: =IF($C16="", "", data!U17-I16) -> -0.005456615972 | U16: =IF($C16="", "", data!V17-J16) -> -0.006129971725 | V16: =IF($C16="", "", data!W17-K16) -> -0.003138707164 | W16: =IF($C16="", "", data!X17-L16) -> -0.01394655107 | Z16: -2.838742574e-10
B17: 12 | C17: =IF(TS!B16="", "", TS!B16) -> 2017-08-10 | D17: 6.172502994 | E17: 4.964011004 | F17: 7.786184488 | G17: 6.955073459 | H17: 5.986409581 | I17: 6.596867804 | J17: 6.671239237 | K17: 7.590813806 | L17: 6.867897626 | O17: =IF($C17="", "", data!P18-D17) -> 0.01149700573 | P17: =IF($C17="", "", data!Q18-E17) -> -0.005011003903 | Q17: =IF($C17="", "", data!R18-F17) -> 0.01481551208 | R17: =IF($C17="", "", data!S18-G17) -> -0.01407345889 | S17: =IF($C17="", "", data!T18-H17) -> 0.01959041858 | T17: =IF($C17="", "", data!U18-I17) -> -0.005867804397 | U17: =IF($C17="", "", data!V18-J17) -> -0.008239236935 | V17: =IF($C17="", "", data!W18-K17) -> 0.0001861942359 | W17: =IF($C17="", "", data!X18-L17) -> -0.01289762628 | Z17: 2.218136785e-10
B18: 13 | C18: =IF(TS!B17="", "", TS!B17) -> 2017-08-09 | D18: 6.174775575 | E18: 4.951323185 | F18: 7.477292434 | G18: 6.928220311 | H18: 5.901271311 | I18: 6.597904181 | J18: 6.6091753 | K18: 7.564316058 | L18: 6.820721646 | O18: =IF($C18="", "", data!P19-D18) -> 0.007224424921 | P18: =IF($C18="", "", data!Q19-E18) -> -0.004323185126 | Q18: =IF($C18="", "", data!R19-F18) -> 0.004707566435 | R18: =IF($C18="", "", data!S19-G18) -> -0.01122031131 | S18: =IF($C18="", "", data!T19-H18) -> 0.017728689 | T18: =IF($C18="", "", data!U19-I18) -> -0.006904180842 | U18: =IF($C18="", "", data!V19-J18) -> -0.007175299564 | V18: =IF($C18="", "", data!W19-K18) -> 0.01068394223 | W18: =IF($C18="", "", data!X19-L18) -> -0.01072164587 | Z18: -1.239897074e-10
B19: 14 | C19: =IF(TS!B18="", "", TS!B18) -> 2017-08-08 | D19: 6.172599869 | E19: 4.940731807 | F19: 7.455989118 | G19: 6.769748123 | H19: 5.936163878 | I19: 6.504685814 | J19: 6.548985853 | K19: 7.581556509 | L19: 6.838539029 | O19: =IF($C19="", "", data!P20-D19) -> 0.007400131265 | P19: =IF($C19="", "", data!Q20-E19) -> -0.003731806907 | Q19: =IF($C19="", "", data!R20-F19) -> 0.002010882399 | R19: =IF($C19="", "", data!S20-G19) -> -0.010748123 | S19: =IF($C19="", "", data!T20-H19) -> 0.01683612235 | T19: =IF($C19="", "", data!U20-I19) -> -0.004685813885 | U19: =IF($C19="", "", data!V20-J19) -> -0.005985853055 | V19: =IF($C19="", "", data!W20-K19) -> 0.01044349053 | W19: =IF($C19="", "", data!X20-L19) -> -0.0115390294 | Z19: 2.888587147e-10
B20: 15 | C20: =IF(TS!B19="", "", TS!B19) -> 2017-08-07 | D20: 6.417425242 | E20: 4.915821584 | F20: 7.690571508 | G20: 6.764629084 | H20: 5.956230613 | I20: 6.602177105 | J20: 6.584603275 | K20: 7.511597598 | L20: 6.83094399 | O20: =IF($C20="", "", data!P21-D20) -> 0.00157475803 | P20: =IF($C20="", "", data!Q21-E20) -> -0.003821584388 | Q20: =IF($C20="", "", data!R21-F20) -> 0.01142849184 | R20: =IF($C20="", "", data!S21-G20) -> -0.00962908449 | S20: =IF($C20="", "", data!T21-H20) -> 0.02176938744 | T20: =IF($C20="", "", data!U21-I20) -> -0.005177105 | U20: =IF($C20="", "", data!V21-J20) -> -0.004603274659 | V20: =IF($C20="", "", data!W21-K20) -> -0.0005975984991 | W20: =IF($C20="", "", data!X21-L20) -> -0.01094399028 | Z20: -1.220623602e-11
B21: 16 | C21: =IF(TS!B20="", "", TS!B20) -> 2017-08-04 | D21: 6.405989366 | E21: 4.899791119 | F21: 7.640902303 | G21: 6.858707194 | H21: 5.934229506 | I21: 6.546894327 | J21: 6.577844431 | K21: 7.426821532 | L21: 6.869820223 | O21: =IF($C21="", "", data!P22-D21) -> 0.001010633758 | P21: =IF($C21="", "", data!Q22-E21) -> -0.003791118798 | Q21: =IF($C21="", "", data!R22-F21) -> 0.01309769737 | R21: =IF($C21="", "", data!S22-G21) -> -0.01070719441 | S21: =IF($C21="", "", data!T22-H21) -> 0.02077049431 | T21: =IF($C21="", "", data!U22-I21) -> -0.003894326773 | U21: =IF($C21="", "", data!V22-J21) -> -0.004844431412 | V21: =IF($C21="", "", data!W22-K21) -> -0.0008215317398 | W21: =IF($C21="", "", data!X22-L21) -> -0.01082022251 | Z21: -2.009459266e-10
B22: 17 | C22: =IF(TS!B21="", "", TS!B21) -> 2017-08-03 | D22: 6.674731965 | E22: 4.910829848 | F22: 7.695468598 | G22: 7.00761555 | H22: 5.986277808 | I22: 6.590043642 | J22: 6.57658091 | K22: 7.569210043 | L22: 6.872241636 | O22: =IF($C22="", "", data!P23-D22) -> -0.005731965327 | P22: =IF($C22="", "", data!Q23-E22) -> -0.003829847566 | Q22: =IF($C22="", "", data!R23-F22) -> 0.01153140171 | R22: =IF($C22="", "", data!S23-G22) -> -0.01161554973 | S22: =IF($C22="", "", data!T23-H22) -> 0.02272219202 | T22: =IF($C22="", "", data!U23-I22) -> -0.003043642459 | U22: =IF($C22="", "", data!V23-J22) -> -0.002580909542 | V22: =IF($C22="", "", data!W23-K22) -> 0.002789956852 | W22: =IF($C22="", "", data!X23-L22) -> -0.01024163623 | Z22: -2.735260907e-10
B23: 18 | C23: =IF(TS!B22="", "", TS!B22) -> 2017-08-02 | D23: 5.286185637 | E23: 4.911352077 | F23: 6.927314379 | G23: 6.924324522 | H23: 6.023759097 | I23: 6.571545246 | J23: 6.604256576 | K23: 7.621955299 | L23: 6.929307169 | O23: =IF($C23="", "", data!P24-D23) -> 0.02181436341 | P23: =IF($C23="", "", data!Q24-E23) -> -0.01435207724 | Q23: =IF($C23="", "", data!R24-F23) -> -0.009314378503 | R23: =IF($C23="", "", data!S24-G23) -> -0.009324521601 | S23: =IF($C23="", "", data!T24-H23) -> 0.01224090281 | T23: =IF($C23="", "", data!U24-I23) -> -0.005545245718 | U23: =IF($C23="", "", data!V24-J23) -> -0.006256575688 | V23: =IF($C23="", "", data!W24-K23) -> 0.02004470133 | W23: =IF($C23="", "", data!X24-L23) -> -0.009307168646 | Z23: 1.573576824e-10
B24: 19 | C24: =IF(TS!B23="", "", TS!B23) -> 2017-08-01 | D24: 5.262482502 | E24: 4.924264428 | F24: 6.999581751 | G24: 7.011488997 | H24: 5.965713761 | I24: 6.689737076 | J24: 6.572241281 | K24: 7.673626628 | L24: 6.914863576 | O24: =IF($C24="", "", data!P25-D24) -> 0.02051749828 | P24: =IF($C24="", "", data!Q25-E24) -> -0.0152644285 | Q24: =IF($C24="", "", data!R25-F24) -> -0.00958175068 | R24: =IF($C24="", "", data!S25-G24) -> -0.009488996539 | S24: =IF($C24="", "", data!T25-H24) -> 0.01528623931 | T24: =IF($C24="", "", data!U25-I24) -> -0.007737076451 | U24: =IF($C24="", "", data!V25-J24) -> -0.005241281379 | V24: =IF($C24="", "", data!W25-K24) -> 0.02137337157 | W24: =IF($C24="", "", data!X25-L24) -> -0.009863575636 | Z24: -2.687450262e-11
B25: 20 | C25: =IF(TS!B24="", "", TS!B24) -> 2017-07-31 | D25: 5.276035512 | E25: 4.910836668 | F25: 7.006957994 | G25: 7.055465927 | H25: 5.949148615 | I25: 6.668715542 | J25: 6.657495487 | K25: 7.695072755 | L25: 6.9052715 | O25: =IF($C25="", "", data!P26-D25) -> 0.02196448757 | P25: =IF($C25="", "", data!Q26-E25) -> -0.01583666842 | Q25: =IF($C25="", "", data!R26-F25) -> -0.009957993571 | R25: =IF($C25="", "", data!S26-G25) -> -0.009465927056 | S25: =IF($C25="", "", data!T26-H25) -> 0.01585138524 | T25: =IF($C25="", "", data!U26-I25) -> -0.007715541991 | U25: =IF($C25="", "", data!V26-J25) -> -0.007495486561 | V25: =IF($C25="", "", data!W26-K25) -> 0.02292724451 | W25: =IF($C25="", "", data!X26-L25) -> -0.0102714999 | Z25: -1.771143232e-10
B26: 21 | C26: =IF(TS!B25="", "", TS!B25) -> 2017-07-28 | D26: 5.292841355 | E26: 4.966044466 | F26: 7.067388337 | G26: 7.144917617 | H26: 5.954645691 | I26: 6.701924985 | J26: 6.618415697 | K26: 7.654285435 | L26: 6.932536417 | O26: =IF($C26="", "", data!P27-D26) -> 0.01815864529 | P26: =IF($C26="", "", data!Q27-E26) -> -0.0140444661 | Q26: =IF($C26="", "", data!R27-F26) -> -0.008388336966 | R26: =IF($C26="", "", data!S27-G26) -> -0.006917616736 | S26: =IF($C26="", "", data!T27-H26) -> 0.01435430899 | T26: =IF($C26="", "", data!U27-I26) -> -0.007924985097 | U26: =IF($C26="", "", data!V27-J26) -> -0.006415696768 | V26: =IF($C26="", "", data!W27-K26) -> 0.02071456459 | W26: =IF($C26="", "", data!X27-L26) -> -0.009536416992 | Z26: 2.163638158e-10
B27: 22 | C27: =IF(TS!B26="", "", TS!B26) -> 2017-07-27 | D27: 5.299395562 | E27: 4.852856875 | F27: 7.078774869 | G27: 7.099219019 | H27: 5.781376565 | I27: 6.692402141 | J27: 6.471493205 | K27: 7.634497623 | L27: 6.854984141 | O27: =IF($C27="", "", data!P28-D27) -> 0.02160443829 | P27: =IF($C27="", "", data!Q28-E27) -> -0.014856875 | Q27: =IF($C27="", "", data!R28-F27) -> -0.008774869141 | R27: =IF($C27="", "", data!S28-G27) -> -0.008219018752 | S27: =IF($C27="", "", data!T28-H27) -> 0.01562343455 | T27: =IF($C27="", "", data!U28-I27) -> -0.01140214119 | U27: =IF($C27="", "", data!V28-J27) -> -0.00749320526 | V27: =IF($C27="", "", data!W28-K27) -> 0.02550237742 | W27: =IF($C27="", "", data!X28-L27) -> -0.01198414131 | Z27: -3.989999442e-10
B28: 23 | C28: =IF(TS!B27="", "", TS!B27) -> 2017-07-26 | D28: 5.30123822 | E28: 4.925755255 | F28: 7.072912044 | G28: 7.136401453 | H28: 5.684865156 | I28: 6.807902363 | J28: 6.344886317 | K28: 7.661581167 | L28: 6.661458024 | O28: =IF($C28="", "", data!P29-D28) -> 0.01776177955 | P28: =IF($C28="", "", data!Q29-E28) -> -0.01575525503 | Q28: =IF($C28="", "", data!R29-F28) -> -0.00991204437 | R28: =IF($C28="", "", data!S29-G28) -> -0.008401453474 | S28: =IF($C28="", "", data!T29-H28) -> 0.01813484399 | T28: =IF($C28="", "", data!U29-I28) -> -0.01190236318 | U28: =IF($C28="", "", data!V29-J28) -> -0.002886316549 | V28: =IF($C28="", "", data!W29-K28) -> 0.023418833 | W28: =IF($C28="", "", data!X29-L28) -> -0.01045802361 | Z28: 3.260414161e-10
B29: 24 | C29: =IF(TS!B28="", "", TS!B28) -> 2017-07-25 | D29: 5.194956871 | E29: 4.949252631 | F29: 7.096880367 | G29: 6.944562508 | H29: 5.701610658 | I29: 6.635925617 | J29: 6.380286594 | K29: 7.646483212 | L29: 6.700041542 | O29: =IF($C29="", "", data!P30-D29) -> 0.01304312946 | P29: =IF($C29="", "", data!Q30-E29) -> -0.01525263121 | Q29: =IF($C29="", "", data!R30-F29) -> -0.008880367426 | R29: =IF($C29="", "", data!S30-G29) -> -0.01056250753 | S29: =IF($C29="", "", data!T30-H29) -> 0.02038934232 | T29: =IF($C29="", "", data!U30-I29) -> -0.007925616958 | U29: =IF($C29="", "", data!V30-J29) -> -0.001286594422 | V29: =IF($C29="", "", data!W30-K29) -> 0.01951678813 | W29: =IF($C29="", "", data!X30-L29) -> -0.009041542111 | Z29: 2.544000566e-10
B30: 25 | C30: =IF(TS!B29="", "", TS!B29) -> 2017-07-24 | D30: 5.258687715 | E30: 4.923995354 | F30: 7.056499383 | G30: 6.976561785 | H30: 5.711906415 | I30: 6.636848943 | J30: 6.396012741 | K30: 7.646327276 | L30: 6.726160389 | O30: =IF($C30="", "", data!P31-D30) -> 0.01731228484 | P30: =IF($C30="", "", data!Q31-E30) -> -0.01599535418 | Q30: =IF($C30="", "", data!R31-F30) -> -0.009499382764 | R30: =IF($C30="", "", data!S31-G30) -> -0.01056178513 | S30: =IF($C30="", "", data!T31-H30) -> 0.01909358546 | T30: =IF($C30="", "", data!U31-I30) -> -0.008848942507 | U30: =IF($C30="", "", data!V31-J30) -> -0.00301274079 | V30: =IF($C30="", "", data!W31-K30) -> 0.02167272408 | W30: =IF($C30="", "", data!X31-L30) -> -0.01016038906 | Z30: -4.356159877e-11
B31: 26 | C31: =IF(TS!B30="", "", TS!B30) -> 2017-07-21 | D31: 5.307290653 | E31: 4.757729379 | F31: 7.115101176 | G31: 6.919047041 | H31: 5.678434726 | I31: 6.66374396 | J31: 6.399837529 | K31: 7.547995363 | L31: 6.681820172 | O31: =IF($C31="", "", data!P32-D31) -> 0.02270934714 | P31: =IF($C31="", "", data!Q32-E31) -> -0.01372937869 | Q31: =IF($C31="", "", data!R32-F31) -> -0.0051011764 | R31: =IF($C31="", "", data!S32-G31) -> -0.01104704119 | S31: =IF($C31="", "", data!T32-H31) -> 0.01556527364 | T31: =IF($C31="", "", data!U32-I31) -> -0.01274395989 | U31: =IF($C31="", "", data!V32-J31) -> -0.008837529275 | V31: =IF($C31="", "", data!W32-K31) -> 0.02600463689 | W31: =IF($C31="", "", data!X32-L31) -> -0.0128201722 | Z31: 3.048228336e-12
B32: 27 | C32: =IF(TS!B31="", "", TS!B31) -> 2017-07-20 | D32: 5.411800343 | E32: 4.946098587 | F32: 7.087334623 | G32: 6.889833924 | H32: 5.680846943 | I32: 6.66146217 | J32: 6.397525058 | K32: 7.493394399 | L32: 6.716703953 | O32: =IF($C32="", "", data!P33-D32) -> 0.01619965732 | P32: =IF($C32="", "", data!Q33-E32) -> -0.0120985872 | Q32: =IF($C32="", "", data!R33-F32) -> -0.004334622742 | R32: =IF($C32="", "", data!S33-G32) -> -0.008833923966 | S32: =IF($C32="", "", data!T33-H32) -> 0.01415305653 | T32: =IF($C32="", "", data!U33-I32) -> -0.009462170022 | U32: =IF($C32="", "", data!V33-J32) -> -0.00552505825 | V32: =IF($C32="", "", data!W33-K32) -> 0.01960560071 | W32: =IF($C32="", "", data!X33-L32) -> -0.009703952521 | Z32: -1.419406814e-10
B33: 28 | C33: =IF(TS!B32="", "", TS!B32) -> 2017-07-19 | D33: 5.486664421 | E33: 4.979979636 | F33: 7.095142843 | G33: 6.874992822 | H33: 5.696797969 | I33: 6.69759113 | J33: 6.343249793 | K33: 7.49189556 | L33: 6.750685827 | O33: =IF($C33="", "", data!P34-D33) -> 0.01533557942 | P33: =IF($C33="", "", data!Q34-E33) -> -0.01097963577 | Q33: =IF($C33="", "", data!R34-F33) -> -0.004142843162 | R33: =IF($C33="", "", data!S34-G33) -> -0.008992822029 | S33: =IF($C33="", "", data!T34-H33) -> 0.01320203142 | T33: =IF($C33="", "", data!U34-I33) -> -0.009591130234 | U33: =IF($C33="", "", data!V34-J33) -> -0.004249793426 | V33: =IF($C33="", "", data!W34-K33) -> 0.01910444041 | W33: =IF($C33="", "", data!X34-L33) -> -0.009685826576 | Z33: 5.65165692e-11
B34: 29 | C34: =IF(TS!B33="", "", TS!B33) -> 2017-07-18 | D34: 5.086934353 | E34: 5.030106746 | F34: 7.067060473 | G34: 6.965316443 | H34: 5.69625883 | I34: 6.772175394 | J34: 6.314277279 | K34: 7.56598223 | L34: 6.665888252 | O34: =IF($C34="", "", data!P35-D34) -> 6.564663414e-05 | P34: =IF($C34="", "", data!Q35-E34) -> -0.007106745796 | Q34: =IF($C34="", "", data!R35-F34) -> -0.007060472569 | R34: =IF($C34="", "", data!S35-G34) -> -0.008316442666 | S34: =IF($C34="", "", data!T35-H34) -> 0.01974116984 | T34: =IF($C34="", "", data!U35-I34) -> -0.008175394122 | U34: =IF($C34="", "", data!V35-J34) -> 0.001722720572 | V34: =IF($C34="", "", data!W35-K34) -> 0.01601776997 | W34: =IF($C34="", "", data!X35-L34) -> -0.006888251735 | Z34: 1.365831892e-10
B35: 30 | C35: =IF(TS!B34="", "", TS!B34) -> 2017-07-17 | D35: 5.169661314 | E35: 5.068471932 | F35: 7.192578333 | G35: 7.017037148 | H35: 5.679556115 | I35: 6.979989393 | J35: 6.302172579 | K35: 7.763593464 | L35: 6.642939723 | O35: =IF($C35="", "", data!P36-D35) -> 0.002338686207 | P35: =IF($C35="", "", data!Q36-E35) -> -0.01147193216 | Q35: =IF($C35="", "", data!R36-F35) -> -0.009578333415 | R35: =IF($C35="", "", data!S36-G35) -> -0.01103714818 | S35: =IF($C35="", "", data!T36-H35) -> 0.02244388522 | T35: =IF($C35="", "", data!U36-I35) -> -0.01098939263 | U35: =IF($C35="", "", data!V36-J35) -> 0.004827421111 | V35: =IF($C35="", "", data!W36-K35) -> 0.01940653639 | W35: =IF($C35="", "", data!X36-L35) -> -0.005939722619 | Z35: -7.428369031e-11
B36: 31 | C36: =IF(TS!B35="", "", TS!B35) -> 2017-07-14 | D36: 5.326569767 | E36: 5.140909651 | F36: 7.213424055 | G36: 7.148995932 | H36: 5.834785087 | I36: 7.091187752 | J36: 6.383063841 | K36: 7.84858587 | L36: 6.723478045 | O36: =IF($C36="", "", data!P37-D36) -> 0.008430232512 | P36: =IF($C36="", "", data!Q37-E36) -> -0.01390965055 | Q36: =IF($C36="", "", data!R37-F36) -> -0.01042405454 | R36: =IF($C36="", "", data!S37-G36) -> -0.01099593165 | S36: =IF($C36="", "", data!T37-H36) -> 0.02021491255 | T36: =IF($C36="", "", data!U37-I36) -> -0.01118775249 | U36: =IF($C36="", "", data!V37-J36) -> 0.003936158612 | V36: =IF($C36="", "", data!W37-K36) -> 0.02041413031 | W36: =IF($C36="", "", data!X37-L36) -> -0.006478045043 | Z36: -2.831717083e-10
B37: 32 | C37: =IF(TS!B36="", "", TS!B36) -> 2017-07-13 | D37: 5.327793577 | E37: 5.176890737 | F37: 7.049772861 | G37: 7.349751202 | H37: 5.83457244 | I37: 7.229136881 | J37: 6.422111035 | K37: 7.944187567 | L37: 6.741783701 | O37: =IF($C37="", "", data!P38-D37) -> 0.006206422881 | P37: =IF($C37="", "", data!Q38-E37) -> -0.01389073746 | Q37: =IF($C37="", "", data!R38-F37) -> -0.01177286054 | R37: =IF($C37="", "", data!S38-G37) -> -0.01075120156 | S37: =IF($C37="", "", data!T38-H37) -> 0.02242756036 | T37: =IF($C37="", "", data!U38-I37) -> -0.01213688095 | U37: =IF($C37="", "", data!V38-J37) -> 0.004888965446 | V37: =IF($C37="", "", data!W38-K37) -> 0.02081243257 | W37: =IF($C37="", "", data!X38-L37) -> -0.005783700757 | Z37: -2.466205018e-11
B38: 33 | C38: =IF(TS!B37="", "", TS!B37) -> 2017-07-12 | D38: 5.230646098 | E38: 5.201658834 | F38: 7.113273861 | G38: 7.441151905 | H38: 5.856300082 | I38: 7.275895716 | J38: 6.463475072 | K38: 8.140439472 | L38: 6.69615896 | O38: =IF($C38="", "", data!P39-D38) -> -0.003646097975 | P38: =IF($C38="", "", data!Q39-E38) -> -0.008658833979 | Q38: =IF($C38="", "", data!R39-F38) -> -0.01427386145 | R38: =IF($C38="", "", data!S39-G38) -> -0.01515190521 | S38: =IF($C38="", "", data!T39-H38) -> 0.02869991752 | T38: =IF($C38="", "", data!U39-I38) -> -0.01589571558 | U38: =IF($C38="", "", data!V39-J38) -> 0.007524928277 | V38: =IF($C38="", "", data!W39-K38) -> 0.02356052804 | W38: =IF($C38="", "", data!X39-L38) -> -0.002158959515 | Z38: 1.309361508e-10
B39: 34 | C39: =IF(TS!B38="", "", TS!B38) -> 2017-07-11 | D39: 5.328933257 | E39: 5.328933257 | F39: 7.007691795 | G39: 7.666379974 | H39: 6.113111221 | I39: 7.365713849 | J39: 6.515125611 | K39: 8.311441067 | L39: 6.922669969 | O39: =IF($C39="", "", data!P40-D39) -> -0.004933256953 | P39: =IF($C39="", "", data!Q40-E39) -> -0.004933256953 | Q39: =IF($C39="", "", data!R40-F39) -> -0.009691795041 | R39: =IF($C39="", "", data!S40-G39) -> -0.01637997352 | S39: =IF($C39="", "", data!T40-H39) -> 0.02688877943 | T39: =IF($C39="", "", data!U40-I39) -> -0.01771384922 | U39: =IF($C39="", "", data!V40-J39) -> 0.01087438899 | V39: =IF($C39="", "", data!W40-K39) -> 0.02255893271 | W39: =IF($C39="", "", data!X40-L39) -> -0.006669969074 | Z39: 3.701901008e-10
B40: 35 | C40: =IF(TS!B39="", "", TS!B39) -> 2017-07-10 | D40: 5.232955531 | E40: 5.342989738 | F40: 6.944966275 | G40: 7.672743678 | H40: 6.011417529 | I40: 7.364757663 | J40: 6.572712807 | K40: 8.265427778 | L40: 6.918029001 | O40: =IF($C40="", "", data!P41-D40) -> -0.01395553125 | P40: =IF($C40="", "", data!Q41-E40) -> 0.005010261784 | Q40: =IF($C40="", "", data!R41-F40) -> -0.008966275051 | R40: =IF($C40="", "", data!S41-G40) -> -0.01474367805 | S40: =IF($C40="", "", data!T41-H40) -> 0.02858247065 | T40: =IF($C40="", "", data!U41-I40) -> -0.01775766307 | U40: =IF($C40="", "", data!V41-J40) -> 0.006287193303 | V40: =IF($C40="", "", data!W41-K40) -> 0.02357222218 | W40: =IF($C40="", "", data!X41-L40) -> -0.008029000566 | Z40: -7.691980386e-11
B41: 36 | C41: =IF(TS!B40="", "", TS!B40) -> 2017-07-06 | D41: 5.13391055 | E41: 5.316874059 | F41: 7.032923011 | G41: 7.662299267 | H41: 5.913779256 | I41: 7.352134684 | J41: 6.561387016 | K41: 8.273255694 | L41: 6.839436463 | O41: =IF($C41="", "", data!P42-D41) -> -0.01991054994 | P41: =IF($C41="", "", data!Q42-E41) -> 0.012125941 | Q41: =IF($C41="", "", data!R42-F41) -> -0.01392301076 | R41: =IF($C41="", "", data!S42-G41) -> -0.01529926739 | S41: =IF($C41="", "", data!T42-H41) -> 0.0312207439 | T41: =IF($C41="", "", data!U42-I41) -> -0.01913468359 | U41: =IF($C41="", "", data!V42-J41) -> 0.004612984429 | V41: =IF($C41="", "", data!W42-K41) -> 0.02774430558 | W41: =IF($C41="", "", data!X42-L41) -> -0.007436463057 | Z41: 1.811883976e-10
B42: 37 | C42: =IF(TS!B41="", "", TS!B41) -> 2017-07-05 | D42: 5.139666601 | E42: 5.229076561 | F42: 6.954461328 | G42: 7.56777354 | H42: 5.886810356 | I42: 7.314362896 | J42: 6.532992703 | K42: 8.128494898 | L42: 6.791361116 | O42: =IF($C42="", "", data!P43-D42) -> -0.01266660068 | P42: =IF($C42="", "", data!Q43-E42) -> 0.002923438626 | Q42: =IF($C42="", "", data!R43-F42) -> -0.01146132817 | R42: =IF($C42="", "", data!S43-G42) -> -0.01277353977 | S42: =IF($C42="", "", data!T43-H42) -> 0.02918964385 | T42: =IF($C42="", "", data!U43-I42) -> -0.01636289606 | U42: =IF($C42="", "", data!V43-J42) -> 0.004007297061 | V42: =IF($C42="", "", data!W43-K42) -> 0.02350510162 | W42: =IF($C42="", "", data!X43-L42) -> -0.006361116367 | Z42: 1.005355799e-10
B43: 38 | C43: =IF(TS!B42="", "", TS!B42) -> 2017-06-30 | D43: 5.151168364 | E43: 5.27457568 | F43: 7.007893805 | G43: 7.54366535 | H43: 5.855314444 | I43: 7.149487926 | J43: 6.499794133 | K43: 8.126454147 | L43: 6.74064615 | O43: =IF($C43="", "", data!P44-D43) -> -0.01516836363 | P43: =IF($C43="", "", data!Q44-E43) -> 0.00542431977 | Q43: =IF($C43="", "", data!R44-F43) -> -0.01289380539 | R43: =IF($C43="", "", data!S44-G43) -> -0.01366535045 | S43: =IF($C43="", "", data!T44-H43) -> 0.02868555615 | T43: =IF($C43="", "", data!U44-I43) -> -0.01548792592 | U43: =IF($C43="", "", data!V44-J43) -> 0.005205867027 | V43: =IF($C43="", "", data!W44-K43) -> 0.02254585285 | W43: =IF($C43="", "", data!X44-L43) -> -0.004646150439 | Z43: -2.864730675e-11
B44: 39 | C44: =IF(TS!B43="", "", TS!B43) -> 2017-06-29 | D44: 5.150720116 | E44: 5.272315533 | F44: 7.013241905 | G44: 7.572107145 | H44: 5.909382866 | I44: 7.155336711 | J44: 6.497154216 | K44: 8.063490557 | L44: 6.85325095 | O44: =IF($C44="", "", data!P45-D44) -> -0.01372011619 | P44: =IF($C44="", "", data!Q45-E44) -> 0.005684467352 | Q44: =IF($C44="", "", data!R45-F44) -> -0.01224190516 | R44: =IF($C44="", "", data!S45-G44) -> -0.01010714544 | S44: =IF($C44="", "", data!T45-H44) -> 0.02661713363 | T44: =IF($C44="", "", data!U45-I44) -> -0.01433671127 | U44: =IF($C44="", "", data!V45-J44) -> 0.004845783599 | V44: =IF($C44="", "", data!W45-K44) -> 0.0215094432 | W44: =IF($C44="", "", data!X45-L44) -> -0.008250949664 | Z44: 7.078959641e-11
B45: 40 | C45: =IF(TS!B44="", "", TS!B44) -> 2017-06-28 | D45: 5.121566694 | E45: 5.176686663 | F45: 7.020384361 | G45: 7.552070572 | H45: 5.909764854 | I45: 7.09470235 | J45: 6.540226621 | K45: 8.064707214 | L45: 6.847890671 | O45: =IF($C45="", "", data!P46-D45) -> -0.009566693647 | P45: =IF($C45="", "", data!Q46-E45) -> 0.0003133373038 | Q45: =IF($C45="", "", data!R46-F45) -> -0.01238436057 | R45: =IF($C45="", "", data!S46-G45) -> -0.01107057196 | S45: =IF($C45="", "", data!T46-H45) -> 0.02923514564 | T45: =IF($C45="", "", data!U46-I45) -> -0.0137023499 | U45: =IF($C45="", "", data!V46-J45) -> 0.003773378644 | V45: =IF($C45="", "", data!W46-K45) -> 0.02129278577 | W45: =IF($C45="", "", data!X46-L45) -> -0.007890671034 | Z45: 2.488524942e-10
B46: 41 | C46: =IF(TS!B45="", "", TS!B45) -> 2017-06-27 | D46: 5.130905877 | E46: 5.360653012 | F46: 7.019684633 | G46: 7.615289109 | H46: 5.951525119 | I46: 7.027868644 | J46: 6.525269071 | K46: 8.139844914 | L46: 6.881959621 | O46: =IF($C46="", "", data!P47-D46) -> -0.01890587657 | P46: =IF($C46="", "", data!Q47-E46) -> 0.01534698844 | Q46: =IF($C46="", "", data!R47-F46) -> -0.01368463342 | R46: =IF($C46="", "", data!S47-G46) -> -0.0122891091 | S46: =IF($C46="", "", data!T47-H46) -> 0.02647488119 | T46: =IF($C46="", "", data!U47-I46) -> -0.01386864437 | U46: =IF($C46="", "", data!V47-J46) -> 0.003730929323 | V46: =IF($C46="", "", data!W47-K46) -> 0.02315508576 | W46: =IF($C46="", "", data!X47-L46) -> -0.009959621244 | Z46: -2.088995643e-12
B47: 42 | C47: =IF(TS!B46="", "", TS!B46) -> 2017-06-23 | D47: 5.531993473 | E47: 5.42135668 | F47: 6.817706128 | G47: 7.8017201 | H47: 6.024222218 | I47: 7.323219248 | J47: 6.59812325 | K47: 8.26973154 | L47: 6.935927362 | O47: =IF($C47="", "", data!P48-D47) -> 0.003006526588 | P47: =IF($C47="", "", data!Q48-E47) -> -0.01235668027 | Q47: =IF($C47="", "", data!R48-F47) -> -0.002706127899 | R47: =IF($C47="", "", data!S48-G47) -> -0.0117200996 | S47: =IF($C47="", "", data!T48-H47) -> 0.02277778185 | T47: =IF($C47="", "", data!U48-I47) -> -0.01621924794 | U47: =IF($C47="", "", data!V48-J47) -> 0.005876749621 | V47: =IF($C47="", "", data!W48-K47) -> 0.01826846005 | W47: =IF($C47="", "", data!X48-L47) -> -0.006927361868 | Z47: 5.279092719e-10
B48: 43 | C48: =IF(TS!B47="", "", TS!B47) -> 2017-06-22 | D48: 5.111244845 | E48: 5.396549961 | F48: 6.837342245 | G48: 7.786543528 | H48: 6.022340022 | I48: 7.346661725 | J48: 6.597071448 | K48: 8.268452106 | L48: 6.96479412 | O48: =IF($C48="", "", data!P49-D48) -> -0.02124484469 | P48: =IF($C48="", "", data!Q49-E48) -> 0.02145003923 | Q48: =IF($C48="", "", data!R49-F48) -> -0.009342245099 | R48: =IF($C48="", "", data!S49-G48) -> -0.01154352772 | S48: =IF($C48="", "", data!T49-H48) -> 0.02665997829 | T48: =IF($C48="", "", data!U49-I48) -> -0.02066172532 | U48: =IF($C48="", "", data!V49-J48) -> 0.0009285519367 | V48: =IF($C48="", "", data!W49-K48) -> 0.02754789371 | W48: =IF($C48="", "", data!X49-L48) -> -0.0137941203 | Z48: 4.047073787e-11
B49: 44 | C49: =IF(TS!B48="", "", TS!B48) -> 2017-06-21 | D49: 5.166083999 | E49: 5.405796994 | F49: 6.841950055 | G49: 7.854184282 | H49: 6.078191718 | I49: 7.332543871 | J49: 6.587340568 | K49: 8.339947917 | L49: 6.943960597 | O49: =IF($C49="", "", data!P50-D49) -> -0.02008399866 | P49: =IF($C49="", "", data!Q50-E49) -> 0.01820300615 | Q49: =IF($C49="", "", data!R50-F49) -> -0.007950055156 | R49: =IF($C49="", "", data!S50-G49) -> -0.01318428182 | S49: =IF($C49="", "", data!T50-H49) -> 0.02680828205 | T49: =IF($C49="", "", data!U50-I49) -> -0.02154387116 | U49: =IF($C49="", "", data!V50-J49) -> 0.003659432242 | V49: =IF($C49="", "", data!W50-K49) -> 0.02605208308 | W49: =IF($C49="", "", data!X50-L49) -> -0.01196059688 | Z49: -1.457856058e-10
B50: 45 | C50: =IF(TS!B49="", "", TS!B49) -> 2017-06-20 | D50: 5.084841491 | E50: 5.35978075 | F50: 6.744955519 | G50: 7.753912602 | H50: 6.000934346 | I50: 7.332432876 | J50: 6.411412835 | K50: 8.280227299 | L50: 6.833502281 | O50: =IF($C50="", "", data!P51-D50) -> -0.02084149129 | P50: =IF($C50="", "", data!Q51-E50) -> 0.02021924966 | Q50: =IF($C50="", "", data!R51-F50) -> -0.008955518869 | R50: =IF($C50="", "", data!S51-G50) -> -0.0149126019 | S50: =IF($C50="", "", data!T51-H50) -> 0.02506565386 | T50: =IF($C50="", "", data!U51-I50) -> -0.02343287605 | U50: =IF($C50="", "", data!V51-J50) -> 0.006587164587 | V50: =IF($C50="", "", data!W51-K50) -> 0.02877270117 | W50: =IF($C50="", "", data!X51-L50) -> -0.01250228143 | Z50: -2.784732445e-10
B51: 46 | C51: =IF(TS!B50="", "", TS!B50) -> 2017-06-19 | D51: 4.816733279 | E51: 5.32216013 | F51: 6.599945194 | G51: 7.781508887 | H51: 6.035397572 | I51: 7.320191806 | J51: 6.413080474 | K51: 8.271418831 | L51: 6.820563829 | O51: =IF($C51="", "", data!P52-D51) -> -0.02373327875 | P51: =IF($C51="", "", data!Q52-E51) -> 0.04083987005 | Q51: =IF($C51="", "", data!R52-F51) -> -0.0109451936 | R51: =IF($C51="", "", data!S52-G51) -> -0.01350888698 | S51: =IF($C51="", "", data!T52-H51) -> 0.02060242847 | T51: =IF($C51="", "", data!U52-I51) -> -0.02919180595 | U51: =IF($C51="", "", data!V52-J51) -> -0.001080473594 | V51: =IF($C51="", "", data!W52-K51) -> 0.03758116931 | W51: =IF($C51="", "", data!X52-L51) -> -0.02056382901 | Z51: -5.731415342e-11
B52: 47 | C52: =IF(TS!B51="", "", TS!B51) -> 2017-06-16 | D52: 4.723724908 | E52: 5.304629034 | F52: 6.570227082 | G52: 7.688772268 | H52: 6.09400657 | I52: 7.325303751 | J52: 6.413144627 | K52: 8.351672348 | L52: 6.826519412 | O52: =IF($C52="", "", data!P53-D52) -> -0.02572490759 | P52: =IF($C52="", "", data!Q53-E52) -> 0.05037096595 | Q52: =IF($C52="", "", data!R53-F52) -> -0.01022708231 | R52: =IF($C52="", "", data!S53-G52) -> -0.02277226802 | S52: =IF($C52="", "", data!T53-H52) -> 0.01899343001 | T52: =IF($C52="", "", data!U53-I52) -> -0.03230375084 | U52: =IF($C52="", "", data!V53-J52) -> -0.001144626543 | V52: =IF($C52="", "", data!W53-K52) -> 0.04532765175 | W52: =IF($C52="", "", data!X53-L52) -> -0.02251941243 | Z52: -2.983213676e-11
B53: 48 | C53: =IF(TS!B52="", "", TS!B52) -> 2017-06-15 | D53: 4.912024941 | E53: 5.326438759 | F53: 6.556355172 | G53: 7.780506629 | H53: 6.074861112 | I53: 7.244691227 | J53: 6.488759278 | K53: 8.311987687 | L53: 6.861375195 | O53: =IF($C53="", "", data!P54-D53) -> -0.02402494054 | P53: =IF($C53="", "", data!Q54-E53) -> 0.03556124065 | Q53: =IF($C53="", "", data!R54-F53) -> -0.004355172047 | R53: =IF($C53="", "", data!S54-G53) -> -0.01650662881 | S53: =IF($C53="", "", data!T54-H53) -> 0.02213888818 | T53: =IF($C53="", "", data!U54-I53) -> -0.02769122689 | U53: =IF($C53="", "", data!V54-J53) -> -0.0007592784852 | V53: =IF($C53="", "", data!W54-K53) -> 0.03401231295 | W53: =IF($C53="", "", data!X54-L53) -> -0.01837519497 | Z53: 3.875832988e-11
B54: 49 | C54: =IF(TS!B53="", "", TS!B53) -> 2017-06-14 | D54: 4.538243437 | E54: 5.320754726 | F54: 6.429744318 | G54: 7.698655115 | H54: 6.112922417 | I54: 7.245605349 | J54: 6.496666727 | K54: 8.276389226 | L54: 6.886018685 | O54: =IF($C54="", "", data!P55-D54) -> -0.0222434369 | P54: =IF($C54="", "", data!Q55-E54) -> 0.05924527376 | Q54: =IF($C54="", "", data!R55-F54) -> -0.007744318208 | R54: =IF($C54="", "", data!S55-G54) -> -0.01765511504 | S54: =IF($C54="", "", data!T55-H54) -> 0.01307758255 | T54: =IF($C54="", "", data!U55-I54) -> -0.03360534867 | U54: =IF($C54="", "", data!V55-J54) -> -0.01166672718 | V54: =IF($C54="", "", data!W55-K54) -> 0.04961077443 | W54: =IF($C54="", "", data!X55-L54) -> -0.0290186846 | Z54: 1.43680623e-10
B55: 50 | C55: =IF(TS!B54="", "", TS!B54) -> 2017-06-13 | D55: 4.526533896 | E55: 5.345378438 | F55: 6.430459849 | G55: 7.760944708 | H55: 6.135747327 | I55: 7.256440647 | J55: 6.553676959 | K55: 8.289879496 | L55: 6.87293868 | O55: =IF($C55="", "", data!P56-D55) -> -0.0215338958 | P55: =IF($C55="", "", data!Q56-E55) -> 0.06062156239 | Q55: =IF($C55="", "", data!R56-F55) -> -0.007459849126 | R55: =IF($C55="", "", data!S56-G55) -> -0.01494470757 | S55: =IF($C55="", "", data!T56-H55) -> 0.01225267268 | T55: =IF($C55="", "", data!U56-I55) -> -0.03444064695 | U55: =IF($C55="", "", data!V56-J55) -> -0.01467695917 | V55: =IF($C55="", "", data!W56-K55) -> 0.0491205036 | W55: =IF($C55="", "", data!X56-L55) -> -0.0289386801 | Z55: -5.634248623e-11
B56: 51 | C56: =IF(TS!B55="", "", TS!B55) -> 2017-06-12 | D56: 4.523930838 | E56: 5.316972062 | F56: 6.431464929 | G56: 7.760956628 | H56: 6.141118021 | I56: 7.243266642 | J56: 6.558346198 | K56: 8.199570384 | L56: 6.935374298 | O56: =IF($C56="", "", data!P57-D56) -> -0.02093083801 | P56: =IF($C56="", "", data!Q57-E56) -> 0.05802793828 | Q56: =IF($C56="", "", data!R57-F56) -> -0.008464928749 | R56: =IF($C56="", "", data!S57-G56) -> -0.007956628215 | S56: =IF($C56="", "", data!T57-H56) -> 0.009881978569 | T56: =IF($C56="", "", data!U57-I56) -> -0.03126664189 | U56: =IF($C56="", "", data!V57-J56) -> -0.01534619756 | V56: =IF($C56="", "", data!W57-K56) -> 0.04542961608 | W56: =IF($C56="", "", data!X57-L56) -> -0.02937429845 | Z56: 5.9776184e-11
B57: 52 | C57: =IF(TS!B56="", "", TS!B56) -> 2017-06-09 | D57: 4.533088126 | E57: 5.272628038 | F57: 6.436618026 | G57: 7.746045468 | H57: 5.948267238 | I57: 7.178595974 | J57: 6.400559691 | K57: 8.196861804 | L57: 6.723335634 | O57: =IF($C57="", "", data!P58-D57) -> -0.02208812598 | P57: =IF($C57="", "", data!Q58-E57) -> 0.05437196189 | Q57: =IF($C57="", "", data!R58-F57) -> -0.01261802646 | R57: =IF($C57="", "", data!S58-G57) -> -0.01104546829 | S57: =IF($C57="", "", data!T58-H57) -> 0.01873276209 | T57: =IF($C57="", "", data!U58-I57) -> -0.03459597433 | U57: =IF($C57="", "", data!V58-J57) -> -0.01055969061 | V57: =IF($C57="", "", data!W58-K57) -> 0.04413819585 | W57: =IF($C57="", "", data!X58-L57) -> -0.02633563408 | Z57: 7.957368098e-11
B58: 53 | C58: =IF(TS!B57="", "", TS!B57) -> 2017-06-08 | D58: 4.712098154 | E58: 5.28636418 | F58: 6.427319356 | G58: 7.767543737 | H58: 6.038266551 | I58: 7.177644565 | J58: 6.364813813 | K58: 8.195392146 | L58: 6.674557498 | O58: =IF($C58="", "", data!P59-D58) -> -0.02209815367 | P58: =IF($C58="", "", data!Q59-E58) -> 0.04463581995 | Q58: =IF($C58="", "", data!R59-F58) -> -0.007319355913 | R58: =IF($C58="", "", data!S59-G58) -> -0.0115437373 | S58: =IF($C58="", "", data!T59-H58) -> 0.01573344895 | T58: =IF($C58="", "", data!U59-I58) -> -0.03164456484 | U58: =IF($C58="", "", data!V59-J58) -> -0.003813813446 | V58: =IF($C58="", "", data!W59-K58) -> 0.03560785441 | W58: =IF($C58="", "", data!X59-L58) -> -0.01955749816 | Z58: -2.815792044e-11
B59: 54 | C59: =IF(TS!B58="", "", TS!B58) -> 2017-06-07 | D59: 4.708473085 | E59: 5.365477908 | F59: 6.418454393 | G59: 7.724109038 | H59: 5.97644216 | I59: 7.163546249 | J59: 6.331048886 | K59: 8.030704542 | L59: 6.718743738 | O59: =IF($C59="", "", data!P60-D59) -> -0.01747308545 | P59: =IF($C59="", "", data!Q60-E59) -> 0.03952209237 | Q59: =IF($C59="", "", data!R60-F59) -> -0.009454393043 | R59: =IF($C59="", "", data!S60-G59) -> -0.003109038163 | S59: =IF($C59="", "", data!T60-H59) -> 0.01455783985 | T59: =IF($C59="", "", data!U60-I59) -> -0.02754624923 | U59: =IF($C59="", "", data!V60-J59) -> -0.00504888622 | V59: =IF($C59="", "", data!W60-K59) -> 0.03029545764 | W59: =IF($C59="", "", data!X60-L59) -> -0.02174373774 | Z59: -9.947598301e-14
B60: 55 | C60: =IF(TS!B59="", "", TS!B59) -> 2017-06-06 | D60: 4.705495242 | E60: 5.271145752 | F60: 6.428334574 | G60: 7.523064452 | H60: 5.938985604 | I60: 6.986240025 | J60: 6.306814283 | K60: 7.922431399 | L60: 6.68348867 | O60: =IF($C60="", "", data!P61-D60) -> -0.01849524206 | P60: =IF($C60="", "", data!Q61-E60) -> 0.03685424846 | Q60: =IF($C60="", "", data!R61-F60) -> -0.00933457437 | R60: =IF($C60="", "", data!S61-G60) -> -0.008064451645 | S60: =IF($C60="", "", data!T61-H60) -> 0.01501439595 | T60: =IF($C60="", "", data!U61-I60) -> -0.02324002522 | U60: =IF($C60="", "", data!V61-J60) -> -0.003814282675 | V60: =IF($C60="", "", data!W61-K60) -> 0.02956860115 | W60: =IF($C60="", "", data!X61-L60) -> -0.01848866967 | Z60: -8.260503392e-11
B61: 56 | C61: =IF(TS!B60="", "", TS!B60) -> 2017-06-01 | D61: 4.661964746 | E61: 5.320851013 | F61: 6.314131157 | G61: 7.615636963 | H61: 5.731447988 | I61: 7.101935711 | J61: 6.204138489 | K61: 8.085134212 | L61: 6.583759721 | O61: =IF($C61="", "", data!P62-D61) -> -0.0199647458 | P61: =IF($C61="", "", data!Q62-E61) -> 0.0381489867 | Q61: =IF($C61="", "", data!R62-F61) -> -0.009131157288 | R61: =IF($C61="", "", data!S62-G61) -> -0.01363696305 | S61: =IF($C61="", "", data!T62-H61) -> 0.02355201217 | T61: =IF($C61="", "", data!U62-I61) -> -0.03193571058 | U61: =IF($C61="", "", data!V62-J61) -> -0.003138488733 | V61: =IF($C61="", "", data!W62-K61) -> 0.03786578794 | W61: =IF($C61="", "", data!X62-L61) -> -0.02175972129 | Z61: 6.937206365e-11
B62: 57 | C62: =IF(TS!B61="", "", TS!B61) -> 2017-05-31 | D62: 4.602329208 | E62: 5.365187576 | F62: 6.329549508 | G62: 7.670753099 | H62: 5.730741583 | I62: 7.106447608 | J62: 6.114015645 | K62: 8.112426874 | L62: 6.552548899 | O62: =IF($C62="", "", data!P63-D62) -> -0.01832920814 | P62: =IF($C62="", "", data!Q63-E62) -> 0.03981242436 | Q62: =IF($C62="", "", data!R63-F62) -> -0.012549508 | R62: =IF($C62="", "", data!S63-G62) -> -0.01275309941 | S62: =IF($C62="", "", data!T63-H62) -> 0.02325841672 | T62: =IF($C62="", "", data!U63-I62) -> -0.03544760785 | U62: =IF($C62="", "", data!V63-J62) -> -1.564474924e-05 | V62: =IF($C62="", "", data!W63-K62) -> 0.03957312587 | W62: =IF($C62="", "", data!X63-L62) -> -0.0235488989 | Z62: -8.967138143e-11
B63: 58 | C63: =IF(TS!B62="", "", TS!B62) -> 2017-05-30 | D63: 4.650650809 | E63: 5.382614246 | F63: 6.333006635 | G63: 7.775886661 | H63: 5.766537243 | I63: 7.108348561 | J63: 6.103149647 | K63: 8.178502688 | L63: 6.48630351 | O63: =IF($C63="", "", data!P64-D63) -> -0.01865080893 | P63: =IF($C63="", "", data!Q64-E63) -> 0.03938575424 | Q63: =IF($C63="", "", data!R64-F63) -> -0.01200663491 | R63: =IF($C63="", "", data!S64-G63) -> -0.01188666057 | S63: =IF($C63="", "", data!T64-H63) -> 0.02246275664 | T63: =IF($C63="", "", data!U64-I63) -> -0.03834856106 | U63: =IF($C63="", "", data!V64-J63) -> 0.001850352722 | V63: =IF($C63="", "", data!W64-K63) -> 0.03749731217 | W63: =IF($C63="", "", data!X64-L63) -> -0.0203035104 | Z63: -9.245848531e-11
B64: 59 | C64: =IF(TS!B63="", "", TS!B63) -> 2017-05-25 | D64: 4.614115792 | E64: 5.370926036 | F64: 6.331250823 | G64: 7.745148721 | H64: 5.797202072 | I64: 7.11190531 | J64: 6.281208021 | K64: 8.226185633 | L64: 6.564057592 | O64: =IF($C64="", "", data!P65-D64) -> -0.02011579176 | P64: =IF($C64="", "", data!Q65-E64) -> 0.04507396353 | Q64: =IF($C64="", "", data!R65-F64) -> -0.009250823226 | R64: =IF($C64="", "", data!S65-G64) -> -0.01614872074 | S64: =IF($C64="", "", data!T65-H64) -> 0.02479792837 | T64: =IF($C64="", "", data!U65-I64) -> -0.03790531033 | U64: =IF($C64="", "", data!V65-J64) -> -0.006208020735 | V64: =IF($C64="", "", data!W65-K64) -> 0.04181436682 | W64: =IF($C64="", "", data!X65-L64) -> -0.02205759196 | Z64: -1.873701194e-11
B65: 60 | C65: =IF(TS!B64="", "", TS!B64) -> 2017-05-24 | D65: 4.775506371 | E65: 5.477248392 | F65: 6.400494338 | G65: 7.782203875 | H65: 5.796108604 | I65: 7.218951398 | J65: 6.347406565 | K65: 8.308555913 | L65: 6.527524544 | O65: =IF($C65="", "", data!P66-D65) -> -0.02050637067 | P65: =IF($C65="", "", data!Q66-E65) -> 0.03875160771 | Q65: =IF($C65="", "", data!R66-F65) -> -0.00849433829 | R65: =IF($C65="", "", data!S66-G65) -> -0.01920387488 | S65: =IF($C65="", "", data!T66-H65) -> 0.02689139625 | T65: =IF($C65="", "", data!U66-I65) -> -0.03695139762 | U65: =IF($C65="", "", data!V66-J65) -> -0.005406565288 | V65: =IF($C65="", "", data!W66-K65) -> 0.04044408693 | W65: =IF($C65="", "", data!X66-L65) -> -0.01552454406 | Z65: 6.753708703e-11
B66: 61 | C66: =IF(TS!B65="", "", TS!B65) -> 2017-05-23 | D66: 4.737696003 | E66: 5.620036177 | F66: 6.525213706 | G66: 7.878308051 | H66: 5.833720082 | I66: 7.355205676 | J66: 6.361988553 | K66: 8.266986703 | L66: 6.615845049 | O66: =IF($C66="", "", data!P67-D66) -> -0.01569600298 | P66: =IF($C66="", "", data!Q67-E66) -> 0.03696382274 | Q66: =IF($C66="", "", data!R67-F66) -> -0.01521370577 | R66: =IF($C66="", "", data!S67-G66) -> -0.009308050962 | S66: =IF($C66="", "", data!T67-H66) -> 0.02627991825 | T66: =IF($C66="", "", data!U67-I66) -> -0.03520567611 | U66: =IF($C66="", "", data!V67-J66) -> -0.005988553029 | V66: =IF($C66="", "", data!W67-K66) -> 0.03801329747 | W66: =IF($C66="", "", data!X67-L66) -> -0.01984504948 | Z66: 1.288942286e-10
B67: 62 | C67: =IF(TS!B66="", "", TS!B66) -> 2017-05-22 | D67: 4.687940382 | E67: 5.391443516 | F67: 6.519079572 | G67: 7.484121684 | H67: 5.934377193 | I67: 6.886666332 | J67: 6.360666968 | K67: 7.863289517 | L67: 6.587414835 | O67: =IF($C67="", "", data!P68-D67) -> -0.01494038228 | P67: =IF($C67="", "", data!Q68-E67) -> 0.0365564838 | Q67: =IF($C67="", "", data!R68-F67) -> -0.01307957203 | R67: =IF($C67="", "", data!S68-G67) -> -0.007121683787 | S67: =IF($C67="", "", data!T68-H67) -> 0.01462280665 | T67: =IF($C67="", "", data!U68-I67) -> -0.02166633233 | U67: =IF($C67="", "", data!V68-J67) -> -0.006666967631 | V67: =IF($C67="", "", data!W68-K67) -> 0.02771048262 | W67: =IF($C67="", "", data!X68-L67) -> -0.01541483507 | Z67: -6.048939127e-11
B68: 63 | C68: =IF(TS!B67="", "", TS!B67) -> 2017-05-19 | D68: 4.716780785 | E68: 5.350277173 | F68: 6.552295893 | G68: 7.393954674 | H68: 6.002589469 | I68: 6.909751825 | J68: 6.354138054 | K68: 7.90647307 | L68: 6.593739056 | O68: =IF($C68="", "", data!P69-D68) -> -0.01678078504 | P68: =IF($C68="", "", data!Q69-E68) -> 0.03772282675 | Q68: =IF($C68="", "", data!R69-F68) -> -0.01229589343 | R68: =IF($C68="", "", data!S69-G68) -> -0.01295467398 | S68: =IF($C68="", "", data!T69-H68) -> 0.01341053123 | T68: =IF($C68="", "", data!U69-I68) -> -0.02075182531 | U68: =IF($C68="", "", data!V69-J68) -> -0.004138054134 | V68: =IF($C68="", "", data!W69-K68) -> 0.02952693015 | W68: =IF($C68="", "", data!X69-L68) -> -0.01373905634 | Z68: -1.132347549e-10
B69: 64 | C69: =IF(TS!B68="", "", TS!B68) -> 2017-05-16 | D69: 5.031886741 | E69: 5.744953621 | F69: 6.630943275 | G69: 8.526537573 | H69: 5.978026787 | I69: 8.355243381 | J69: 6.329406108 | K69: 9.06945177 | L69: 6.558550743 | O69: =IF($C69="", "", data!P70-D69) -> -0.02188674148 | P69: =IF($C69="", "", data!Q70-E69) -> 0.03704637861 | Q69: =IF($C69="", "", data!R70-F69) -> -0.0189432751 | R69: =IF($C69="", "", data!S70-G69) -> -0.02853757279 | S69: =IF($C69="", "", data!T70-H69) -> 0.02697321309 | T69: =IF($C69="", "", data!U70-I69) -> -0.04524338139 | U69: =IF($C69="", "", data!V70-J69) -> 0.003593891734 | V69: =IF($C69="", "", data!W70-K69) -> 0.06054823021 | W69: =IF($C69="", "", data!X70-L69) -> -0.01355074285 | Z69: 4.177902468e-11
B70: 65 | C70: =IF(TS!B69="", "", TS!B69) -> 2017-05-15 | D70: 5.018867738 | E70: 5.737338799 | F70: 6.685189971 | G70: 8.577328444 | H70: 5.938579833 | I70: 8.269144644 | J70: 6.255157504 | K70: 9.176064554 | L70: 6.544328512 | O70: =IF($C70="", "", data!P71-D70) -> -0.02686773842 | P70: =IF($C70="", "", data!Q71-E70) -> 0.03966120128 | Q70: =IF($C70="", "", data!R71-F70) -> -0.02218997069 | R70: =IF($C70="", "", data!S71-G70) -> -0.03232844383 | S70: =IF($C70="", "", data!T71-H70) -> 0.03142016659 | T70: =IF($C70="", "", data!U71-I70) -> -0.05914464438 | U70: =IF($C70="", "", data!V71-J70) -> 0.01084249596 | V70: =IF($C70="", "", data!W71-K70) -> 0.06993544557 | W70: =IF($C70="", "", data!X71-L70) -> -0.01132851212 | Z70: -2.176747671e-11
B71: 66 | C71: =IF(TS!B70="", "", TS!B70) -> 2017-05-12 | D71: 5.086189722 | E71: 5.699410239 | F71: 6.697068756 | G71: 8.417596421 | H71: 5.839247545 | I71: 8.301088286 | J71: 6.175845127 | K71: 9.113108592 | L71: 6.407445312 | O71: =IF($C71="", "", data!P72-D71) -> -0.02918972165 | P71: =IF($C71="", "", data!Q72-E71) -> 0.03258976106 | Q71: =IF($C71="", "", data!R72-F71) -> -0.02306875557 | R71: =IF($C71="", "", data!S72-G71) -> -0.03959642099 | S71: =IF($C71="", "", data!T72-H71) -> 0.02975245476 | T71: =IF($C71="", "", data!U72-I71) -> -0.04908828642 | U71: =IF($C71="", "", data!V72-J71) -> 0.01315487258 | V71: =IF($C71="", "", data!W72-K71) -> 0.06789140848 | W71: =IF($C71="", "", data!X72-L71) -> -0.0024453122 | Z71: =SUM(O71:X71) -> 6.237588224e-11
B72: =B71+1 -> 67 | C72: =IF(TS!B71="", "", TS!B71) -> 2017-05-11 | D72: 5.101784564 | E72: 5.740794474 | F72: 6.683708946 | G72: 8.506104601 | H72: 5.763157358 | I72: 8.241920032 | J72: 6.092218299 | K72: 9.075941816 | L72: 6.392369909 | O72: =IF($C72="", "", data!P73-D72) -> -0.02878456436 | P72: =IF($C72="", "", data!Q73-E72) -> 0.02920552645 | Q72: =IF($C72="", "", data!R73-F72) -> -0.02370894642 | R72: =IF($C72="", "", data!S73-G72) -> -0.02910460123 | S72: =IF($C72="", "", data!T73-H72) -> 0.02884264187 | T72: =IF($C72="", "", data!U73-I72) -> -0.05192003237 | U72: =IF($C72="", "", data!V73-J72) -> 0.01578170111 | V72: =IF($C72="", "", data!W73-K72) -> 0.06305818405 | W72: =IF($C72="", "", data!X73-L72) -> -0.003369908971 | Z72: =SUM(O72:X72) -> 1.271533989e-10
B73: 68 | C73: =IF(TS!B72="", "", TS!B72) -> 2017-05-10 | D73: 5.036374175 | E73: 5.799475645 | F73: 6.684255189 | G73: 8.689902072 | H73: 5.780857575 | I73: 8.463039271 | J73: 6.222150893 | K73: 9.352665399 | L73: 6.501279781 | O73: =IF($C73="", "", data!P74-D73) -> -0.03137417539 | P73: =IF($C73="", "", data!Q74-E73) -> 0.03752435458 | Q73: =IF($C73="", "", data!R74-F73) -> -0.02425518913 | R73: =IF($C73="", "", data!S74-G73) -> -0.04090207213 | S73: =IF($C73="", "", data!T74-H73) -> 0.03814242509 | T73: =IF($C73="", "", data!U74-I73) -> -0.06303927078 | U73: =IF($C73="", "", data!V74-J73) -> 0.0128491072 | V73: =IF($C73="", "", data!W74-K73) -> 0.0803346012 | W73: =IF($C73="", "", data!X74-L73) -> -0.009279780745 | Z73: -1.034710095e-10
B74: 69 | C74: =IF(TS!B73="", "", TS!B73) -> 2017-05-08 | D74: 4.935256741 | E74: 6.018954311 | F74: 6.671832734 | G74: 8.797542395 | H74: 5.926324207 | I74: 8.565879216 | J74: 6.31130532 | K74: 9.386967821 | L74: 6.594937255 | O74: =IF($C74="", "", data!P75-D74) -> -0.02025674089 | P74: =IF($C74="", "", data!Q75-E74) -> 0.0330456893 | Q74: =IF($C74="", "", data!R75-F74) -> -0.02383273424 | R74: =IF($C74="", "", data!S75-G74) -> -0.03654239517 | S74: =IF($C74="", "", data!T75-H74) -> 0.03967579266 | T74: =IF($C74="", "", data!U75-I74) -> -0.06287921594 | U74: =IF($C74="", "", data!V75-J74) -> 0.008694680488 | V74: =IF($C74="", "", data!W75-K74) -> 0.07903217887 | W74: =IF($C74="", "", data!X75-L74) -> -0.01693725502 | Z74: 5.165912143e-11
B75: 70 | C75: =IF(TS!B74="", "", TS!B74) -> 2017-05-05 | D75: 4.892695078 | E75: 6.032383943 | F75: 6.66161559 | G75: 8.928504114 | H75: 5.928226247 | I75: 8.576945653 | J75: 6.377534154 | K75: 9.449110983 | L75: 6.580984237 | O75: =IF($C75="", "", data!P76-D75) -> -0.01969507788 | P75: =IF($C75="", "", data!Q76-E75) -> 0.03461605674 | Q75: =IF($C75="", "", data!R76-F75) -> -0.02361558952 | R75: =IF($C75="", "", data!S76-G75) -> -0.02950411429 | S75: =IF($C75="", "", data!T76-H75) -> 0.04277375259 | T75: =IF($C75="", "", data!U76-I75) -> -0.07194565299 | U75: =IF($C75="", "", data!V76-J75) -> 0.003465845521 | V75: =IF($C75="", "", data!W76-K75) -> 0.07988901716 | W75: =IF($C75="", "", data!X76-L75) -> -0.01598423742 | Z75: -8.843592525e-11
B76: 71 | C76: =IF(TS!B75="", "", TS!B75) -> 2017-05-04 | D76: 4.922621814 | E76: 6.382337459 | F76: 6.661310495 | G76: 9.09337776 | H76: 5.902720268 | I76: 8.778761234 | J76: 6.380117106 | K76: 9.591574326 | L76: 6.580179538 | O76: =IF($C76="", "", data!P77-D76) -> -0.01762181362 | P76: =IF($C76="", "", data!Q77-E76) -> 0.008662540703 | Q76: =IF($C76="", "", data!R77-F76) -> -0.01931049544 | R76: =IF($C76="", "", data!S77-G76) -> -0.02937776047 | S76: =IF($C76="", "", data!T77-H76) -> 0.05127973215 | T76: =IF($C76="", "", data!U77-I76) -> -0.07176123421 | U76: =IF($C76="", "", data!V77-J76) -> 0.008882894401 | V76: =IF($C76="", "", data!W77-K76) -> 0.08042567401 | W76: =IF($C76="", "", data!X77-L76) -> -0.01117953755 | Z76: -5.171862938e-12
B77: 72 | C77: =IF(TS!B76="", "", TS!B76) -> 2017-05-03 | D77: 4.905980874 | E77: 6.18149475 | F77: 6.649115138 | G77: 8.713098625 | H77: 5.867180257 | I77: 8.159101846 | J77: 6.216420078 | K77: 9.267429125 | L77: 6.569179307 | O77: =IF($C77="", "", data!P78-D77) -> -0.02098087408 | P77: =IF($C77="", "", data!Q78-E77) -> 0.02150524983 | Q77: =IF($C77="", "", data!R78-F77) -> -0.01911513762 | R77: =IF($C77="", "", data!S78-G77) -> -0.03009862481 | S77: =IF($C77="", "", data!T78-H77) -> 0.04481974289 | T77: =IF($C77="", "", data!U78-I77) -> -0.07610184587 | U77: =IF($C77="", "", data!V78-J77) -> 0.01857992166 | V77: =IF($C77="", "", data!W78-K77) -> 0.07357087485 | W77: =IF($C77="", "", data!X78-L77) -> -0.0121793069 | Z77: -4.576072854e-11
B78: 73 | C78: =IF(TS!B77="", "", TS!B77) -> 2017-05-02 | D78: 5.063734897 | E78: 6.069548986 | F78: 6.756562264 | G78: 8.516248204 | H78: 5.538383203 | I78: 8.16536887 | J78: 6.030367069 | K78: 9.15370729 | L78: 6.380079217 | O78: =IF($C78="", "", data!P79-D78) -> -0.03273489722 | P78: =IF($C78="", "", data!Q79-E78) -> 0.02245101422 | Q78: =IF($C78="", "", data!R79-F78) -> -0.02556226422 | R78: =IF($C78="", "", data!S79-G78) -> -0.03424820363 | S78: =IF($C78="", "", data!T79-H78) -> 0.03461679711 | T78: =IF($C78="", "", data!U79-I78) -> -0.06036886951 | U78: =IF($C78="", "", data!V79-J78) -> 0.0246329307 | V78: =IF($C78="", "", data!W79-K78) -> 0.06929270994 | W78: =IF($C78="", "", data!X79-L78) -> 0.001920782734 | Z78: 1.316209364e-10
B79: 74 | C79: =IF(TS!B78="", "", TS!B78) -> 2017-05-01 | D79: 5.176048842 | E79: 6.109526283 | F79: 6.915634148 | G79: 8.333584362 | H79: 5.675849498 | I79: 8.135824648 | J79: 6.037355263 | K79: 9.054381681 | L79: 6.248795275 | O79: =IF($C79="", "", data!P80-D79) -> -0.03104884195 | P79: =IF($C79="", "", data!Q80-E79) -> 0.01947371676 | Q79: =IF($C79="", "", data!R80-F79) -> -0.02963414826 | R79: =IF($C79="", "", data!S80-G79) -> -0.03658436212 | S79: =IF($C79="", "", data!T80-H79) -> 0.02815050223 | T79: =IF($C79="", "", data!U80-I79) -> -0.04882464833 | U79: =IF($C79="", "", data!V80-J79) -> 0.02264473716 | V79: =IF($C79="", "", data!W80-K79) -> 0.0636183193 | W79: =IF($C79="", "", data!X80-L79) -> 0.01220472518 | Z79: -1.626432322e-11
B80: 75 | C80: =IF(TS!B79="", "", TS!B79) -> 2017-04-28 | D80: 5.190595253 | E80: 5.957315144 | F80: 7.055963555 | G80: 8.304496951 | H80: 5.648089811 | I80: 8.214125303 | J80: 6.086869362 | K80: 9.075774034 | L80: 6.302770587 | O80: =IF($C80="", "", data!P81-D80) -> -0.03459525307 | P80: =IF($C80="", "", data!Q81-E80) -> 0.02668485592 | Q80: =IF($C80="", "", data!R81-F80) -> -0.03496355542 | R80: =IF($C80="", "", data!S81-G80) -> -0.03849695108 | S80: =IF($C80="", "", data!T81-H80) -> 0.02691018902 | T80: =IF($C80="", "", data!U81-I80) -> -0.04412530278 | U80: =IF($C80="", "", data!V81-J80) -> 0.02213063825 | V80: =IF($C80="", "", data!W81-K80) -> 0.06522596593 | W80: =IF($C80="", "", data!X81-L80) -> 0.01122941297 | Z80: -2.687512435e-10
B81: 76 | C81: =IF(TS!B80="", "", TS!B80) -> 2017-04-27 | D81: 5.211942561 | E81: 5.9267071 | F81: 7.043945306 | G81: 8.265047412 | H81: 5.767290943 | I81: 8.265047412 | J81: 6.3658297 | K81: 8.965529038 | L81: 6.480660529 | O81: =IF($C81="", "", data!P82-D81) -> -0.02794256086 | P81: =IF($C81="", "", data!Q82-E81) -> 0.0282928997 | Q81: =IF($C81="", "", data!R82-F81) -> -0.03094530592 | R81: =IF($C81="", "", data!S82-G81) -> -0.03304741201 | S81: =IF($C81="", "", data!T82-H81) -> 0.0297090573 | T81: =IF($C81="", "", data!U82-I81) -> -0.03304741201 | U81: =IF($C81="", "", data!V82-J81) -> 0.009170300265 | V81: =IF($C81="", "", data!W82-K81) -> 0.05547096242 | W81: =IF($C81="", "", data!X82-L81) -> 0.002339471194 | Z81: 8.572431653e-11
B82: 77 | C82: =IF(TS!B81="", "", TS!B81) -> 2017-04-25 | D82: 5.206560782 | E82: 5.948073828 | F82: 6.828525639 | G82: 8.245170691 | H82: 5.706520945 | I82: 8.185419517 | J82: 6.09645907 | K82: 8.890985882 | L82: 6.312283648 | O82: =IF($C82="", "", data!P83-D82) -> -0.0255607818 | P82: =IF($C82="", "", data!Q83-E82) -> 0.0209261724 | Q82: =IF($C82="", "", data!R83-F82) -> -0.02552563889 | R82: =IF($C82="", "", data!S83-G82) -> -0.03117069071 | S82: =IF($C82="", "", data!T83-H82) -> 0.0234790549 | T82: =IF($C82="", "", data!U83-I82) -> -0.03541951703 | U82: =IF($C82="", "", data!V83-J82) -> 0.01554093045 | V82: =IF($C82="", "", data!W83-K82) -> 0.05301411843 | W82: =IF($C82="", "", data!X83-L82) -> 0.004716351889 | Z82: -3.645057589e-10
B83: 78 | C83: =IF(TS!B82="", "", TS!B82) -> 2017-04-24 | D83: 4.673576924 | E83: 6.0089532 | F83: 6.272952726 | G83: 8.308269992 | H83: 5.755453684 | I83: 8.214028617 | J83: 6.061477299 | K83: 8.933974026 | L83: 6.346313532 | O83: =IF($C83="", "", data!P84-D83) -> -0.01257692439 | P83: =IF($C83="", "", data!Q84-E83) -> 0.01404679988 | Q83: =IF($C83="", "", data!R84-F83) -> -0.008952725712 | R83: =IF($C83="", "", data!S84-G83) -> -0.04026999229 | S83: =IF($C83="", "", data!T84-H83) -> 0.03454631569 | T83: =IF($C83="", "", data!U84-I83) -> -0.05002861672 | U83: =IF($C83="", "", data!V84-J83) -> 0.00952270148 | V83: =IF($C83="", "", data!W84-K83) -> 0.06902597438 | W83: =IF($C83="", "", data!X84-L83) -> -0.01531353234 | Z83: -2.643130159e-11
B84: 79 | C84: =IF(TS!B83="", "", TS!B83) -> 2017-04-21 | D84: 4.679855573 | E84: 6.128476183 | F84: 6.294434411 | G84: 8.382388413 | H84: 5.804902327 | I84: 8.200121819 | J84: 6.174627245 | K84: 9.01128545 | L84: 6.445908579 | O84: =IF($C84="", "", data!P85-D84) -> -0.01285557327 | P84: =IF($C84="", "", data!Q85-E84) -> 0.01152381725 | Q84: =IF($C84="", "", data!R85-F84) -> -0.003434411495 | R84: =IF($C84="", "", data!S85-G84) -> -0.03938841338 | S84: =IF($C84="", "", data!T85-H84) -> 0.0390976735 | T84: =IF($C84="", "", data!U85-I84) -> -0.05712181851 | U84: =IF($C84="", "", data!V85-J84) -> 0.007372755302 | V84: =IF($C84="", "", data!W85-K84) -> 0.07171454968 | W84: =IF($C84="", "", data!X85-L84) -> -0.01690857905 | Z84: 1.132960392e-11
B85: 80 | C85: =IF(TS!B84="", "", TS!B84) -> 2017-04-20 | D85: 4.617349998 | E85: 6.327489726 | F85: 6.289836469 | G85: 8.48377404 | H85: 5.761194275 | I85: 8.385044566 | J85: 6.068271178 | K85: 9.128811458 | L85: 6.366228291 | O85: =IF($C85="", "", data!P86-D85) -> -0.01334999779 | P85: =IF($C85="", "", data!Q86-E85) -> -0.008489725896 | Q85: =IF($C85="", "", data!R86-F85) -> -0.004836468518 | R85: =IF($C85="", "", data!S86-G85) -> -0.04477403963 | S85: =IF($C85="", "", data!T86-H85) -> 0.0448057247 | T85: =IF($C85="", "", data!U86-I85) -> -0.056044566 | U85: =IF($C85="", "", data!V86-J85) -> 0.01672882232 | V85: =IF($C85="", "", data!W86-K85) -> 0.07818854222 | W85: =IF($C85="", "", data!X86-L85) -> -0.01222829147 | Z85: -6.217515391e-11
B86: 81 | C86: =IF(TS!B85="", "", TS!B85) -> 2017-04-19 | D86: 4.612643118 | E86: 6.255755788 | F86: 6.288164783 | G86: 8.749217666 | H86: 5.731659566 | I86: 8.413491926 | J86: 6.132855223 | K86: 9.345008588 | L86: 6.403203343 | O86: =IF($C86="", "", data!P87-D86) -> -0.01664311832 | P86: =IF($C86="", "", data!Q87-E86) -> 0.0002442118644 | Q86: =IF($C86="", "", data!R87-F86) -> -0.0031647835 | R86: =IF($C86="", "", data!S87-G86) -> -0.04021766584 | S86: =IF($C86="", "", data!T87-H86) -> 0.0523404344 | T86: =IF($C86="", "", data!U87-I86) -> -0.0804919255 | U86: =IF($C86="", "", data!V87-J86) -> 0.01314477744 | V86: =IF($C86="", "", data!W87-K86) -> 0.08999141222 | W86: =IF($C86="", "", data!X87-L86) -> -0.01520334278 | Z86: -2.5089264e-11
B87: 82 | C87: =IF(TS!B86="", "", TS!B86) -> 2017-04-18 | D87: 4.608622065 | E87: 6.069801744 | F87: 6.28380185 | G87: 8.393377792 | H87: 5.612797027 | I87: 8.177780146 | J87: 5.949262438 | K87: 9.244449698 | L87: 6.297107239 | O87: =IF($C87="", "", data!P88-D87) -> -0.02362206542 | P87: =IF($C87="", "", data!Q88-E87) -> 0.0121982557 | Q87: =IF($C87="", "", data!R88-F87) -> -0.008801849735 | R87: =IF($C87="", "", data!S88-G87) -> -0.06337779237 | S87: =IF($C87="", "", data!T88-H87) -> 0.0522029731 | T87: =IF($C87="", "", data!U88-I87) -> -0.08178014598 | U87: =IF($C87="", "", data!V88-J87) -> 0.02373756188 | V87: =IF($C87="", "", data!W88-K87) -> 0.09955030173 | W87: =IF($C87="", "", data!X88-L87) -> -0.01010723891 | Z87: -6.829203869e-12
B88: 83 | C88: =IF(TS!B87="", "", TS!B87) -> 2017-04-13 | D88: 4.556127379 | E88: 5.758810599 | F88: 6.305844205 | G88: 8.159659554 | H88: 5.540479799 | I88: 8.051428538 | J88: 5.895374476 | K88: 8.927213886 | L88: 6.240061565 | O88: =IF($C88="", "", data!P89-D88) -> -0.02112737948 | P88: =IF($C88="", "", data!Q89-E88) -> 0.02718940103 | Q88: =IF($C88="", "", data!R89-F88) -> -0.02084420452 | R88: =IF($C88="", "", data!S89-G88) -> -0.05165955388 | S88: =IF($C88="", "", data!T89-H88) -> 0.04352020135 | T88: =IF($C88="", "", data!U89-I88) -> -0.06142853768 | U88: =IF($C88="", "", data!V89-J88) -> 0.01562552367 | V88: =IF($C88="", "", data!W89-K88) -> 0.08378611426 | W88: =IF($C88="", "", data!X89-L88) -> -0.01506156478 | Z88: -2.914646302e-11
B89: 84 | C89: =IF(TS!B88="", "", TS!B88) -> 2017-04-12 | D89: 4.550509616 | E89: 5.785865485 | F89: 6.302375313 | G89: 8.163815117 | H89: 5.538193198 | I89: 7.873680302 | J89: 5.894078596 | K89: 8.926610332 | L89: 6.239872041 | O89: =IF($C89="", "", data!P90-D89) -> -0.02250961587 | P89: =IF($C89="", "", data!Q90-E89) -> 0.02713451478 | Q89: =IF($C89="", "", data!R90-F89) -> -0.01837531348 | R89: =IF($C89="", "", data!S90-G89) -> -0.04981511684 | S89: =IF($C89="", "", data!T90-H89) -> 0.0458068018 | T89: =IF($C89="", "", data!U90-I89) -> -0.07168030205 | U89: =IF($C89="", "", data!V90-J89) -> 0.01792140449 | V89: =IF($C89="", "", data!W90-K89) -> 0.08438966794 | W89: =IF($C89="", "", data!X90-L89) -> -0.01287204075 | Z89: 1.128874771e-11
B90: 85 | C90: =IF(TS!B89="", "", TS!B89) -> 2017-04-11 | D90: 4.732366958 | E90: 5.737486473 | F90: 6.247498094 | G90: 8.083563348 | H90: 5.592454893 | I90: 7.814942837 | J90: 5.780182719 | K90: 8.812749528 | L90: 6.21175515 | O90: =IF($C90="", "", data!P91-D90) -> -0.02336695824 | P90: =IF($C90="", "", data!Q91-E90) -> 0.0245135267 | Q90: =IF($C90="", "", data!R91-F90) -> -0.01249809366 | R90: =IF($C90="", "", data!S91-G90) -> -0.0435633481 | S90: =IF($C90="", "", data!T91-H90) -> 0.03254510717 | T90: =IF($C90="", "", data!U91-I90) -> -0.06194283708 | U90: =IF($C90="", "", data!V91-J90) -> 0.02181728134 | V90: =IF($C90="", "", data!W91-K90) -> 0.07225047166 | W90: =IF($C90="", "", data!X91-L90) -> -0.009755149914 | Z90: -1.202131727e-10
B91: 86 | C91: =IF(TS!B90="", "", TS!B90) -> 2017-04-10 | D91: 4.745013424 | E91: 5.61403546 | F91: 6.117180888 | G91: 7.866135589 | H91: 5.462144129 | I91: 7.724235834 | J91: 5.685635213 | K91: 8.622804364 | L91: 6.053815099 | O91: =IF($C91="", "", data!P92-D91) -> -0.02401342372 | P91: =IF($C91="", "", data!Q92-E91) -> 0.02196454007 | Q91: =IF($C91="", "", data!R92-F91) -> -0.009180888409 | R91: =IF($C91="", "", data!S92-G91) -> -0.04313558928 | S91: =IF($C91="", "", data!T92-H91) -> 0.02785587068 | T91: =IF($C91="", "", data!U92-I91) -> -0.05223583376 | U91: =IF($C91="", "", data!V92-J91) -> 0.01836478711 | V91: =IF($C91="", "", data!W92-K91) -> 0.06519563636 | W91: =IF($C91="", "", data!X92-L91) -> -0.004815099078 | Z91: -3.658318093e-11
B92: 87 | C92: =IF(TS!B91="", "", TS!B91) -> 2017-04-07 | D92: 4.791897149 | E92: 5.621861186 | F92: 6.35483256 | G92: 7.849521087 | H92: 5.410397182 | I92: 7.723729019 | J92: 5.679311686 | K92: 8.638577512 | L92: 6.037872619 | O92: =IF($C92="", "", data!P93-D92) -> -0.02889714931 | P92: =IF($C92="", "", data!Q93-E92) -> 0.02413881389 | Q92: =IF($C92="", "", data!R93-F92) -> -0.01983255961 | R92: =IF($C92="", "", data!S93-G92) -> -0.04252108652 | S92: =IF($C92="", "", data!T93-H92) -> 0.02960281787 | T92: =IF($C92="", "", data!U93-I92) -> -0.04972901852 | U92: =IF($C92="", "", data!V93-J92) -> 0.0216883139 | V92: =IF($C92="", "", data!W93-K92) -> 0.06442248761 | W92: =IF($C92="", "", data!X93-L92) -> 0.001127380713 | Z92: 2.049471703e-11
B93: 88 | C93: =IF(TS!B92="", "", TS!B92) -> 2017-04-06 | D93: 4.91877429 | E93: 5.503275989 | F93: 6.343977676 | G93: 7.655808092 | H93: 5.174579963 | I93: 7.651015509 | J93: 5.582943666 | K93: 8.467846081 | L93: 5.931778734 | O93: =IF($C93="", "", data!P94-D93) -> -0.02977429042 | P93: =IF($C93="", "", data!Q94-E93) -> 0.02272401117 | Q93: =IF($C93="", "", data!R94-F93) -> -0.01197767647 | R93: =IF($C93="", "", data!S94-G93) -> -0.03680809158 | S93: =IF($C93="", "", data!T94-H93) -> 0.01042003739 | T93: =IF($C93="", "", data!U94-I93) -> -0.03701550904 | U93: =IF($C93="", "", data!V94-J93) -> 0.0220563345 | V93: =IF($C93="", "", data!W94-K93) -> 0.0501539187 | W93: =IF($C93="", "", data!X94-L93) -> 0.01022126569 | Z93: -8.492229142e-11
B94: 89 | C94: =IF(TS!B93="", "", TS!B93) -> 2017-04-05 | D94: 5.039922445 | E94: 5.378108353 | F94: 6.372913497 | G94: 7.653019514 | H94: 5.269453375 | I94: 7.644317298 | J94: 5.583861339 | K94: 8.463435088 | L94: 5.897969091 | O94: =IF($C94="", "", data!P95-D94) -> -0.02992244485 | P94: =IF($C94="", "", data!Q95-E94) -> 0.01489164736 | Q94: =IF($C94="", "", data!R95-F94) -> -0.005913497137 | R94: =IF($C94="", "", data!S95-G94) -> -0.03301951395 | S94: =IF($C94="", "", data!T95-H94) -> 0.00654662453 | T94: =IF($C94="", "", data!U95-I94) -> -0.0333172979 | U94: =IF($C94="", "", data!V95-J94) -> 0.02113866062 | V94: =IF($C94="", "", data!W95-K94) -> 0.04356491209 | W94: =IF($C94="", "", data!X95-L94) -> 0.01603090915 | Z94: -6.651212914e-11
B95: 90 | C95: =IF(TS!B94="", "", TS!B94) -> 2017-04-04 | D95: 4.891093775 | E95: 5.435797854 | F95: 6.360695862 | G95: 7.654169771 | H95: 5.175188224 | I95: 7.642685472 | J95: 5.545126346 | K95: 8.46514276 | L95: 5.819099937 | O95: =IF($C95="", "", data!P96-D95) -> -0.0320937748 | P95: =IF($C95="", "", data!Q96-E95) -> 0.02220214567 | Q95: =IF($C95="", "", data!R96-F95) -> -0.01469586156 | R95: =IF($C95="", "", data!S96-G95) -> -0.03716977051 | S95: =IF($C95="", "", data!T96-H95) -> 0.01181177598 | T95: =IF($C95="", "", data!U96-I95) -> -0.03768547212 | U95: =IF($C95="", "", data!V96-J95) -> 0.02187365444 | V95: =IF($C95="", "", data!W96-K95) -> 0.05185723995 | W95: =IF($C95="", "", data!X96-L95) -> 0.01390006297 | Z95: 2.686206813e-11
B96: 91 | C96: =IF(TS!B95="", "", TS!B95) -> 2017-04-03 | D96: 4.884114369 | E96: 5.35607959 | F96: 6.358536402 | G96: 7.695973607 | H96: 5.080969925 | I96: 7.608639385 | J96: 5.521751518 | K96: 8.358855837 | L96: 5.830079366 | O96: =IF($C96="", "", data!P97-D96) -> -0.02711436897 | P96: =IF($C96="", "", data!Q97-E96) -> 0.02092041014 | Q96: =IF($C96="", "", data!R97-F96) -> -0.01553640204 | R96: =IF($C96="", "", data!S97-G96) -> -0.02897360704 | S96: =IF($C96="", "", data!T97-H96) -> 0.005030074502 | T96: =IF($C96="", "", data!U97-I96) -> -0.03363938489 | U96: =IF($C96="", "", data!V97-J96) -> 0.02124848208 | V96: =IF($C96="", "", data!W97-K96) -> 0.04614416288 | W96: =IF($C96="", "", data!X97-L96) -> 0.01192063351 | Z96: 1.768301061e-10
B97: 92 | C97: =IF(TS!B96="", "", TS!B96) -> 2017-03-31 | D97: 4.971306037 | E97: 5.3597758 | F97: 6.352035127 | G97: 7.558605551 | H97: 5.123239663 | I97: 7.604870186 | J97: 5.521586117 | K97: 8.362068639 | L97: 5.80451288 | O97: =IF($C97="", "", data!P98-D97) -> -0.02630603663 | P97: =IF($C97="", "", data!Q98-E97) -> 0.0182241998 | Q97: =IF($C97="", "", data!R98-F97) -> -0.009035126546 | R97: =IF($C97="", "", data!S98-G97) -> -0.03260555122 | S97: =IF($C97="", "", data!T98-H97) -> -0.0002396628356 | T97: =IF($C97="", "", data!U98-I97) -> -0.03087018595 | U97: =IF($C97="", "", data!V98-J97) -> 0.02141388273 | V97: =IF($C97="", "", data!W98-K97) -> 0.04293136053 | W97: =IF($C97="", "", data!X98-L97) -> 0.01648712013 | Z97: 2.377298358e-11
B98: 93 | C98: =IF(TS!B97="", "", TS!B97) -> 2017-03-30 | D98: 4.973461492 | E98: 5.387149563 | F98: 6.420961076 | G98: 7.64278383 | H98: 5.170582314 | I98: 7.738088536 | J98: 5.52277282 | K98: 8.406458529 | L98: 5.743741838 | O98: =IF($C98="", "", data!P99-D98) -> -0.02846149176 | P98: =IF($C98="", "", data!Q99-E98) -> 0.01785043668 | Q98: =IF($C98="", "", data!R99-F98) -> -0.01396107627 | R98: =IF($C98="", "", data!S99-G98) -> -0.03278383037 | S98: =IF($C98="", "", data!T99-H98) -> 0.003417685666 | T98: =IF($C98="", "", data!U99-I98) -> -0.02808853623 | U98: =IF($C98="", "", data!V99-J98) -> 0.02022717972 | V98: =IF($C98="", "", data!W99-K98) -> 0.04454147117 | W98: =IF($C98="", "", data!X99-L98) -> 0.01725816151 | Z98: 1.139994765e-10
B99: 94 | C99: =IF(TS!B98="", "", TS!B98) -> 2017-03-29 | D99: 5.004274842 | E99: 5.7762067 | F99: 6.471830946 | G99: 7.834148538 | H99: 5.240350737 | I99: 7.936251978 | J99: 5.576798163 | K99: 8.644325229 | L99: 5.824812867 | O99: =IF($C99="", "", data!P100-D99) -> -0.02927484228 | P99: =IF($C99="", "", data!Q100-E99) -> 0.01879330038 | Q99: =IF($C99="", "", data!R100-F99) -> -0.01683094612 | R99: =IF($C99="", "", data!S100-G99) -> -0.0401485383 | S99: =IF($C99="", "", data!T100-H99) -> 0.008649262906 | T99: =IF($C99="", "", data!U100-I99) -> -0.03425197785 | U99: =IF($C99="", "", data!V100-J99) -> 0.02220183701 | V99: =IF($C99="", "", data!W100-K99) -> 0.05367477084 | W99: =IF($C99="", "", data!X100-L99) -> 0.01718713335 | Z99: -6.190070678e-11
B100: 95 | C100: =IF(TS!B99="", "", TS!B99) -> 2017-03-28 | D100: 5.030252896 | E100: 5.833353822 | F100: 6.389157762 | G100: 7.929975184 | H100: 5.312456285 | I100: 7.949707857 | J100: 5.656835522 | K100: 8.656506495 | L100: 5.941754176 | O100: =IF($C100="", "", data!P101-D100) -> -0.02625289573 | P100: =IF($C100="", "", data!Q101-E100) -> 0.01564617823 | Q100: =IF($C100="", "", data!R101-F100) -> -0.01315776244 | R100: =IF($C100="", "", data!S101-G100) -> -0.036975184 | S100: =IF($C100="", "", data!T101-H100) -> 0.01254371507 | T100: =IF($C100="", "", data!U101-I100) -> -0.03570785707 | U100: =IF($C100="", "", data!V101-J100) -> 0.02016447783 | V100: =IF($C100="", "", data!W101-K100) -> 0.05249350454 | W100: =IF($C100="", "", data!X101-L100) -> 0.01124582354 | Z100: -3.008615579e-11
B101: 96 | C101: =IF(TS!B100="", "", TS!B100) -> 2017-03-27 | D101: 5.210851647 | E101: 5.90628215 | F101: 6.611200685 | G101: 8.161112394 | H101: 5.432028179 | I101: 8.081431867 | J101: 5.778016484 | K101: 8.939869781 | L101: 6.070206813 | O101: =IF($C101="", "", data!P102-D101) -> -0.03085164722 | P101: =IF($C101="", "", data!Q102-E101) -> 0.02171784971 | Q101: =IF($C101="", "", data!R102-F101) -> -0.01220068451 | R101: =IF($C101="", "", data!S102-G101) -> -0.0391123938 | S101: =IF($C101="", "", data!T102-H101) -> 0.006971821244 | T101: =IF($C101="", "", data!U102-I101) -> -0.04343186658 | U101: =IF($C101="", "", data!V102-J101) -> 0.02298351555 | V101: =IF($C101="", "", data!W102-K101) -> 0.05713021884 | W101: =IF($C101="", "", data!X102-L101) -> 0.01679318688 | Z101: 1.019282436e-10
B102: 97 | C102: =IF(TS!B101="", "", TS!B101) -> 2017-03-24 | D102: 5.205138156 | E102: 5.88533068 | F102: 6.564999526 | G102: 8.152648253 | H102: 5.408691658 | I102: 8.072952183 | J102: 5.758754468 | K102: 8.790516538 | L102: 6.010968538 | O102: =IF($C102="", "", data!P103-D102) -> -0.02513815626 | P102: =IF($C102="", "", data!Q103-E102) -> 0.01766932032 | Q102: =IF($C102="", "", data!R103-F102) -> -0.01399952603 | R102: =IF($C102="", "", data!S103-G102) -> -0.03064825347 | S102: =IF($C102="", "", data!T103-H102) -> 0.005308341772 | T102: =IF($C102="", "", data!U103-I102) -> -0.03595218315 | U102: =IF($C102="", "", data!V103-J102) -> 0.01924553242 | V102: =IF($C102="", "", data!W103-K102) -> 0.04948346237 | W102: =IF($C102="", "", data!X103-L102) -> 0.01403146212 | Z102: 9.123013456e-11
B103: 98 | C103: =IF(TS!B102="", "", TS!B102) -> 2017-03-23 | D103: 5.004420669 | E103: 6.15659509 | F103: 6.433812663 | G103: 8.173936376 | H103: 5.39988798 | I103: 8.081482141 | J103: 5.784804712 | K103: 8.875006583 | L103: 6.318053787 | O103: =IF($C103="", "", data!P104-D103) -> -0.0284206693 | P103: =IF($C103="", "", data!Q104-E103) -> 0.008404909854 | Q103: =IF($C103="", "", data!R104-F103) -> -0.009812663293 | R103: =IF($C103="", "", data!S104-G103) -> -0.03793637572 | S103: =IF($C103="", "", data!T104-H103) -> 0.02711202037 | T103: =IF($C103="", "", data!U104-I103) -> -0.04448214103 | U103: =IF($C103="", "", data!V104-J103) -> 0.02719528822 | V103: =IF($C103="", "", data!W104-K103) -> 0.05999341747 | W103: =IF($C103="", "", data!X104-L103) -> -0.002053786578 | Z103: -4.349409721e-12
D104: 5.235856007 | E104: 6.205471237 | F104: 6.40654894 | G104: 8.165349056 | H104: 5.409655383 | I104: 8.111071407 | J104: 5.787488679 | K104: 9.009013905 | L104: 6.121545386
D105: 5.291150817 | E105: 5.934909462 | F105: 6.470312612 | G105: 8.05721519 | H105: 5.371362338 | I105: 7.829877114 | J105: 5.678344685 | K105: 8.883933404 | L105: 6.065894377
D106: 5.286332043 | E106: 5.730093206 | F106: 6.536755957 | G106: 7.769767515 | H106: 5.292974231 | I106: 7.750147963 | J106: 5.613178099 | K106: 8.687657788 | L106: 5.858093198
D107: 5.178346841 | E107: 5.730011747 | F107: 6.759194201 | G107: 7.794358738 | H107: 5.31455441 | I107: 7.640946528 | J107: 5.686498042 | K107: 8.61418347 | L107: 5.971906024
D108: 5.232577446 | E108: 5.735266226 | F108: 6.6471667 | G108: 8.024958783 | H108: 5.44536792 | I108: 8.166974849 | J108: 5.97607511 | K108: 8.754299046 | L108: 6.12531392
D109: 5.089377844 | E109: 5.946229722 | F109: 6.438545428 | G109: 8.231668218 | H109: 5.516640008 | I109: 8.276011118 | J109: 5.940994681 | K109: 8.954341851 | L109: 6.218191131
D110: 5.084209401 | E110: 5.740919357 | F110: 6.409321836 | G110: 8.168389597 | H110: 5.398268622 | I110: 8.096842031 | J110: 5.889688957 | K110: 8.637774402 | L110: 6.136585797
D111: 4.852565604 | E111: 5.853289241 | F111: 6.221383834 | G111: 8.064514208 | H111: 5.386725149 | I111: 8.098142586 | J111: 5.85860491 | K111: 8.628895593 | L111: 5.959878876
D112: 4.857524968 | E112: 5.873248418 | F112: 6.131827948 | G112: 8.118896524 | H112: 5.483366392 | I112: 8.113369546 | J112: 5.959820626 | K112: 8.851145893 | L112: 6.172799686
D113: 4.829284996 | E113: 5.744274508 | F113: 6.137648984 | G113: 7.979301965 | H113: 5.42264628 | I113: 8.128973745 | J113: 5.845075035 | K113: 8.736222174 | L113: 6.079572313
D114: 4.920629664 | E114: 5.540330907 | F114: 6.102260331 | G114: 7.843423262 | H114: 5.234941193 | I114: 7.855640086 | J114: 5.738707746 | K114: 8.599324268 | L114: 5.988742543
D115: 4.752686344 | E115: 5.488755235 | F115: 6.043235958 | G115: 7.692576959 | H115: 5.152872374 | I115: 7.644272373 | J115: 5.660355114 | K115: 8.500869126 | L115: 5.866376517
D116: 4.807678033 | E116: 5.39100588 | F116: 6.026756625 | G116: 7.619340757 | H116: 5.042026187 | I116: 7.636413625 | J116: 5.569606005 | K116: 8.413319851 | L116: 5.749853036
D117: 4.808091579 | E117: 5.4176478 | F117: 6.044057057 | G117: 7.604611175 | H117: 5.031103617 | I117: 7.634944353 | J117: 5.513429152 | K117: 8.391325724 | L117: 5.739789542
D118: 4.805027856 | E118: 5.54681476 | F118: 6.04564887 | G118: 7.659372127 | H118: 5.006131709 | I118: 7.687641041 | J118: 5.558181884 | K118: 8.413966453 | L118: 5.750215299
D119: 4.780114601 | E119: 5.448377081 | F119: 6.049372954 | G119: 7.728355851 | H119: 5.169084379 | I119: 7.764725282 | J119: 5.605424963 | K119: 8.434937279 | L119: 5.868607611
D120: 4.86169421 | E120: 5.455049019 | F120: 5.936051124 | G120: 7.737752348 | H120: 5.210948946 | I120: 7.77313602 | J120: 5.63171671 | K120: 8.393254376 | L120: 5.848397246
D121: 4.868435031 | E121: 5.405568865 | F121: 5.999739163 | G121: 7.748200619 | H121: 5.223164898 | I121: 7.908809567 | J121: 5.582315502 | K121: 8.548105648 | L121: 5.834660707
D122: 4.870222536 | E122: 5.409625052 | F122: 6.032267185 | G122: 7.745875525 | H122: 5.318450356 | I122: 7.841612527 | J122: 5.673180903 | K122: 8.546285505 | L122: 5.87548041
D123: 4.861886555 | E123: 5.537503815 | F123: 6.068417605 | G123: 7.846153267 | H123: 5.38087719 | I123: 7.873812047 | J123: 5.709906918 | K123: 8.439175932 | L123: 5.964266671
D124: 5.002009666 | E124: 5.71833768 | F124: 5.998642947 | G124: 7.954345427 | H124: 5.397113136 | I124: 7.853047007 | J124: 5.766002331 | K124: 8.530919969 | L124: 5.958581837
D125: 4.976495573 | E125: 5.692062698 | F125: 6.015079675 | G125: 7.990173966 | H125: 5.395000092 | I125: 7.951213797 | J125: 5.84626606 | K125: 8.652615319 | L125: 5.88409282
D126: 4.976340199 | E126: 5.875920111 | F126: 5.998859951 | G126: 8.107624914 | H126: 5.441713962 | I126: 8.165330292 | J126: 5.79702334 | K126: 8.78897729 | L126: 6.021209941
D127: 4.947418847 | E127: 5.797280854 | F127: 5.950934448 | G127: 8.164531108 | H127: 5.566495335 | I127: 8.169097837 | J127: 5.926451402 | K127: 8.832620054 | L127: 6.064170116
D128: 4.974003525 | E128: 6.082165793 | F128: 5.943613589 | G128: 8.162131593 | H128: 5.690621108 | I128: 8.14093148 | J128: 6.026623377 | K128: 8.846185718 | L128: 6.253723816
D129: 4.876287793 | E129: 5.566656532 | F129: 5.98108649 | G129: 7.690189536 | H129: 5.400493751 | I129: 7.5001631 | J129: 5.839609095 | K129: 8.577897114 | L129: 6.059616588
D130: 4.794377383 | E130: 5.570602082 | F130: 6.001893875 | G130: 7.607598475 | H130: 5.274852097 | I130: 7.49652423 | J130: 5.690176486 | K130: 8.505989565 | L130: 6.019985808
D131: 4.849599511 | E131: 5.598194367 | F131: 5.984852826 | G131: 7.581498613 | H131: 5.388354452 | I131: 7.495134805 | J131: 5.690325772 | K131: 8.519460492 | L131: 5.997579164
D132: 4.820807386 | E132: 5.600227561 | F132: 5.972118987 | G132: 7.554424902 | H132: 5.400181303 | I132: 7.494420818 | J132: 5.680227811 | K132: 8.484389032 | L132: 5.9562022
D133: 4.846504256 | E133: 5.550162188 | F133: 6.003161311 | G133: 7.52428977 | H133: 5.438389268 | I133: 7.529126449 | J133: 5.795213705 | K133: 8.452481671 | L133: 6.029671381
D134: 4.872294981 | E134: 5.602594511 | F134: 6.019387894 | G134: 7.562481164 | H134: 5.464940421 | I134: 7.540322837 | J134: 5.79589869 | K134: 8.430278769 | L134: 6.008800734
D135: 4.846667313 | E135: 5.457912473 | F135: 5.959179594 | G135: 7.599895324 | H135: 5.402485611 | I135: 7.575080967 | J135: 5.832602552 | K135: 8.385368578 | L135: 6.042807588
D136: 4.846051069 | E136: 5.48295757 | F136: 6.023448921 | G136: 7.546650323 | H136: 5.40215492 | I136: 7.63722187 | J136: 5.820753799 | K136: 8.374245437 | L136: 6.042516091
D137: 4.846263926 | E137: 5.48677829 | F137: 5.994588536 | G137: 7.505143922 | H137: 5.355723525 | I137: 7.658973638 | J137: 5.684642758 | K137: 8.319468271 | L137: 5.991417135
D138: 4.848178121 | E138: 5.268660373 | F138: 6.040372342 | G138: 7.542063396 | H138: 5.417293461 | I138: 7.619001617 | J138: 5.69484592 | K138: 8.298042271 | L138: 6.043542501
D139: 5.14040883 | E139: 5.336228706 | F139: 6.050721306 | G139: 7.591987921 | H139: 5.585541361 | I139: 7.843401877 | J139: 5.886804621 | K139: 8.30973411 | L139: 6.109171268
D140: 5.142258607 | E140: 5.314544793 | F140: 6.047857303 | G140: 7.676057687 | H140: 5.595321241 | I140: 7.850242972 | J140: 5.919044306 | K140: 8.430413587 | L140: 6.170259506
D141: 5.065711115 | E141: 5.380990726 | F141: 6.051542087 | G141: 7.760858574 | H141: 5.519889016 | I141: 7.866721729 | J141: 5.874128085 | K141: 8.492799181 | L141: 6.130359487
D142: 5.063254186 | E142: 5.381630733 | F142: 6.054096347 | G142: 7.825053255 | H142: 5.532076807 | I142: 7.915825795 | J142: 5.921167798 | K142: 8.461832008 | L142: 6.154063071
D143: 4.95734451 | E143: 5.331234197 | F143: 6.040451854 | G143: 7.848563492 | H143: 5.628567046 | I143: 8.037264667 | J143: 5.932606831 | K143: 8.579876755 | L143: 6.188090649
D144: 4.981022577 | E144: 5.428279099 | F144: 6.012297002 | G144: 8.060489641 | H144: 5.631351752 | I144: 8.116987663 | J144: 5.936078546 | K144: 8.595181654 | L144: 6.180312065
D145: 5.088935476 | E145: 5.342189061 | F145: 6.042290319 | G145: 8.087608035 | H145: 5.620676058 | I145: 8.156225968 | J145: 5.898454101 | K145: 8.631972288 | L145: 6.123648694
D146: 5.140873406 | E146: 5.438162771 | F146: 6.105594484 | G146: 8.163730156 | H146: 5.622487158 | I146: 8.155533097 | J146: 5.968968862 | K146: 8.602355626 | L146: 6.08029444
D147: 5.166257675 | E147: 5.467918471 | F147: 6.092506437 | G147: 8.068849459 | H147: 5.622934636 | I147: 8.209963342 | J147: 5.968781148 | K147: 8.5364146 | L147: 6.069374232
D148: 5.193932312 | E148: 5.470053378 | F148: 6.090476633 | G148: 8.05469811 | H148: 5.635963139 | I148: 8.17105337 | J148: 5.967154544 | K148: 8.54674833 | L148: 6.120920183
D149: 5.189987086 | E149: 5.379251688 | F149: 6.07709448 | G149: 8.026540087 | H149: 5.648097772 | I149: 8.229502264 | J149: 5.968272723 | K149: 8.473005039 | L149: 6.101248862
D150: 5.191037201 | E150: 5.565950695 | F150: 6.124910376 | G150: 8.041102224 | H150: 5.635671913 | I150: 8.242971551 | J150: 5.967763949 | K150: 8.494862333 | L150: 6.100729758
D151: 5.351864646 | E151: 5.596004423 | F151: 6.150365122 | G151: 8.001251642 | H151: 5.652258265 | I151: 8.293896122 | J151: 6.033203859 | K151: 8.51967739 | L151: 6.127478531
D152: 5.272018514 | E152: 5.782757206 | F152: 6.246930982 | G152: 8.18821338 | H152: 5.796933076 | I152: 8.462576874 | J152: 6.090128451 | K152: 8.752799899 | L152: 6.222641618
D153: 5.328678566 | E153: 5.761443989 | F153: 6.324811952 | G153: 8.370616962 | H153: 5.709981546 | I153: 8.565061214 | J153: 6.04144651 | K153: 8.923290798 | L153: 6.187668462
D154: 5.325391418 | E154: 5.738960158 | F154: 6.247534687 | G154: 8.455832151 | H154: 5.734978087 | I154: 8.509664994 | J154: 6.054471664 | K154: 8.846950487 | L154: 6.297216355
D155: 5.348682528 | E155: 5.861682809 | F155: 6.343698002 | G155: 8.496386963 | H155: 5.796938706 | I155: 8.584625937 | J155: 6.053244445 | K155: 8.840308286 | L155: 6.285432324
D156: 5.456700471 | E156: 5.912241896 | F156: 6.371493195 | G156: 8.459828476 | H156: 5.811557124 | I156: 8.613111802 | J156: 6.051547942 | K156: 8.906436849 | L156: 6.281082243
D157: 5.480986937 | E157: 5.986934462 | F157: 6.215290255 | G157: 8.500238905 | H157: 5.801148685 | I157: 8.639230174 | J157: 6.053498844 | K157: 8.90830257 | L157: 6.283369168
D158: 5.342947251 | E158: 6.162998029 | F158: 6.31348139 | G158: 8.643290794 | H158: 5.844080323 | I158: 8.626498995 | J158: 6.062118345 | K158: 8.909180331 | L158: 6.295404543
D159: 5.369288704 | E159: 6.213497394 | F159: 6.376737078 | G159: 8.641490122 | H159: 5.831038177 | I159: 8.636185283 | J159: 6.048826825 | K159: 8.878098171 | L159: 6.292838245
D160: 5.31960687 | E160: 6.28837139 | F160: 6.279862523 | G160: 8.650677958 | H160: 5.802997693 | I160: 8.632877701 | J160: 6.082289407 | K160: 9.038753301 | L160: 6.291563156
D161: 5.317722703 | E161: 6.365422397 | F161: 6.278922393 | G161: 8.783726388 | H161: 5.929938483 | I161: 8.63866493 | J161: 6.068356164 | K161: 9.076192074 | L161: 6.313054468
D162: 5.26879943 | E162: 6.042390986 | F162: 6.365620176 | G162: 8.525374242 | H162: 5.643885264 | I162: 8.620351258 | J162: 5.912192617 | K162: 8.924318165 | L162: 6.136067862
D163: 5.298525755 | E163: 6.090353182 | F163: 6.553767738 | G163: 8.513995945 | H163: 5.655893309 | I163: 8.621526372 | J163: 5.920403078 | K163: 8.988724372 | L163: 6.077810249
D164: 5.300135819 | E164: 6.186325114 | F164: 6.679448994 | G164: 8.484916312 | H164: 5.630267595 | I164: 8.630577542 | J164: 5.906294621 | K164: 8.966987482 | L164: 6.138046521
D165: 5.578379307 | E165: 6.225921043 | F165: 6.890395901 | G165: 8.615029764 | H165: 5.5483858 | I165: 8.734760855 | J165: 5.970069339 | K165: 9.198583429 | L165: 6.210474563
D166: 5.63727293 | E166: 6.42400364 | F166: 6.901979507 | G166: 8.634554253 | H166: 5.72244717 | I166: 8.715072915 | J166: 6.039790359 | K166: 9.111327652 | L166: 6.171551574
D167: 5.609246819 | E167: 6.675500002 | F167: 6.921099584 | G167: 9.04111744 | H167: 6.124233051 | I167: 9.113093437 | J167: 6.473641365 | K167: 9.49079553 | L167: 6.504272773
D168: 5.935289112 | E168: 7.222196761 | F168: 6.897434097 | G168: 9.350732872 | H168: 6.383460385 | I168: 9.208686655 | J168: 6.545439721 | K168: 9.911178777 | L168: 6.729581618
D169: 6.020793113 | E169: 6.632138112 | F169: 6.923165416 | G169: 8.768181378 | H169: 6.244901071 | I169: 8.903625047 | J169: 6.422235334 | K169: 9.75002964 | L169: 6.704930889
D170: 6.108456881 | E170: 6.381269672 | F170: 6.930662368 | G170: 8.612110299 | H170: 6.223969034 | I170: 8.626348063 | J170: 6.330361965 | K170: 9.118715807 | L170: 6.565105911
D171: 6.124301618 | E171: 6.263396605 | F171: 6.927522205 | G171: 8.45579779 | H171: 6.056262117 | I171: 8.472135505 | J171: 6.186622625 | K171: 9.013413342 | L171: 6.417548197
D172: 6.097293618 | E172: 6.308545488 | F172: 7.02247173 | G172: 8.425339078 | H172: 6.054461166 | I172: 8.482021388 | J172: 6.185006252 | K172: 8.978773086 | L172: 6.377088197
D173: 6.062039005 | E173: 6.354716786 | F173: 7.032443199 | G173: 8.494562918 | H173: 5.895426595 | I173: 8.521893654 | J173: 6.136449782 | K173: 8.952416808 | L173: 6.316051253
D174: 6.142381319 | E174: 6.403449762 | F174: 6.978158741 | G174: 8.494603941 | H174: 6.019961959 | I174: 8.428497613 | J174: 6.280384033 | K174: 9.010048798 | L174: 6.358513833
D175: 6.244551684 | E175: 6.569559182 | F175: 6.94544943 | G175: 8.463413711 | H175: 6.069001795 | I175: 8.31776791 | J175: 6.272847901 | K175: 8.953548497 | L175: 6.36085989
D176: 6.448313355 | E176: 6.667367765 | F176: 7.025685007 | G176: 8.582809342 | H176: 6.155002917 | I176: 8.802861074 | J176: 6.298163948 | K176: 9.13098542 | L176: 6.402811174
D177: 6.472945208 | E177: 6.738293705 | F177: 7.132941059 | G177: 8.494853822 | H177: 6.206010029 | I177: 8.596848089 | J177: 6.342952106 | K177: 9.093363649 | L177: 6.543792333
D178: 6.469058319 | E178: 6.478978632 | F178: 7.108034411 | G178: 8.393023786 | H178: 6.066136437 | I178: 8.534697232 | J178: 6.229489629 | K178: 8.873329613 | L178: 6.390251941
D179: 6.468848965 | E179: 6.573583514 | F179: 7.05628037 | G179: 8.393218069 | H179: 6.152078284 | I179: 8.534847889 | J179: 6.254171036 | K179: 8.908627001 | L179: 6.382344873
D180: 6.176840822 | E180: 6.668677268 | F180: 7.061084901 | G180: 8.342819677 | H180: 5.931748722 | I180: 8.535410587 | J180: 6.242930073 | K180: 8.971286213 | L180: 6.355201737
D181: 5.860321486 | E181: 7.042272822 | F181: 6.9686823 | G181: 8.801359166 | H181: 6.291522526 | I181: 8.697348837 | J181: 6.260054714 | K181: 9.224389202 | L181: 6.486048947
D182: 5.847496695 | E182: 6.614102704 | F182: 6.882516504 | G182: 8.235241038 | H182: 5.813636737 | I182: 8.232316799 | J182: 5.887228559 | K182: 9.000792151 | L182: 6.155668814
D183: 5.830623562 | E183: 6.552960161 | F183: 6.911930465 | G183: 8.191142908 | H183: 5.607769846 | I183: 8.519266155 | J183: 5.693858885 | K183: 8.698903196 | L183: 5.931544822
D184: 5.829720765 | E184: 6.647995747 | F184: 7.039152287 | G184: 8.463301997 | H184: 5.601440911 | I184: 8.557107612 | J184: 5.762853608 | K184: 8.899210002 | L184: 5.987217069
D185: 5.785061008 | E185: 6.674244808 | F185: 6.990365834 | G185: 8.440661436 | H185: 5.679412449 | I185: 8.506521502 | J185: 5.846513118 | K185: 8.745339791 | L185: 6.038880054
D186: 6.059732149 | E186: 7.430550044 | F186: 7.020349259 | G186: 8.663138026 | H186: 5.839178634 | I186: 8.93423416 | J186: 6.082631085 | K186: 9.183139782 | L186: 6.215046861
D187: 5.529554329 | E187: 7.453175362 | F187: 6.994120239 | G187: 8.850366896 | H187: 5.916433557 | I187: 8.932808345 | J187: 6.201544592 | K187: 9.155052278 | L187: 6.333944401
D188: 5.529320474 | E188: 7.482667732 | F188: 6.946618722 | G188: 9.233367247 | H188: 5.950683678 | I188: 9.084961984 | J188: 6.200406526 | K188: 9.03646629 | L188: 6.417507348
D189: 5.491832541 | E189: 6.708035915 | F189: 6.98051424 | G189: 8.080092144 | H189: 5.778880224 | I189: 8.035654561 | J189: 6.055188878 | K189: 8.47574345 | L189: 6.190058046
D190: 5.484835653 | E190: 6.045139868 | F190: 6.828494562 | G190: 8.087675292 | H190: 5.547282601 | I190: 7.842329467 | J190: 6.003649132 | K190: 8.354813289 | L190: 6.133780136
D191: 5.483061791 | E191: 5.86522044 | F191: 6.873746368 | G191: 7.816077865 | H191: 5.547336599 | I191: 7.763072431 | J191: 5.821685801 | K191: 8.05209605 | L191: 6.095702655
D192: 5.478903253 | E192: 5.863338926 | F192: 6.795925281 | G192: 7.714877635 | H192: 5.444452542 | I192: 7.763498914 | J192: 5.57053092 | K192: 8.092993726 | L192: 5.953478804
D193: 5.205269229 | E193: 5.591665933 | F193: 6.799313683 | G193: 7.334697508 | H193: 5.183793191 | I193: 7.415669108 | J193: 5.437390619 | K193: 7.838895065 | L193: 5.670305665
D194: 5.005798421 | E194: 5.3527042 | F194: 6.80042487 | G194: 7.135922389 | H194: 5.059959783 | I194: 7.158879069 | J194: 5.437199834 | K194: 7.531046197 | L194: 5.628065238
D195: 5.026779063 | E195: 5.287509105 | F195: 6.798863588 | G195: 7.02257714 | H195: 4.993688833 | I195: 7.154815162 | J195: 5.374472033 | K195: 7.459687524 | L195: 5.628607551
D196: 5.025428802 | E196: 5.378046284 | F196: 6.798737929 | G196: 6.996161741 | H196: 4.991923122 | I196: 7.199611633 | J196: 5.365055395 | K196: 7.369495499 | L196: 5.650539595
D197: 5.04610152 | E197: 5.443537465 | F197: 6.700740546 | G197: 7.139425739 | H197: 4.904741107 | I197: 7.303173974 | J197: 5.383158771 | K197: 7.561714476 | L197: 5.649406401
D198: 6.006539962 | E198: 5.511520343 | F198: 7.029011219 | G198: 7.279655264 | H198: 4.974855486 | I198: 7.357171577 | J198: 5.373382719 | K198: 7.685498991 | L198: 5.67636444
D199: 6.526870363 | E199: 5.602144952 | F199: 7.486225198 | G199: 7.281386738 | H199: 5.128452322 | I199: 7.382051026 | J199: 5.458638331 | K199: 7.733358016 | L199: 5.780873055
D200: 6.949406707 | E200: 5.601223042 | F200: 7.78481569 | G200: 7.387578212 | H200: 5.120208726 | I200: 7.412570385 | J200: 5.498443098 | K200: 7.840390187 | L200: 5.769363953
D201: 7.054026492 | E201: 5.648531512 | F201: 7.783413489 | G201: 7.38832022 | H201: 5.118149135 | I201: 7.474274983 | J201: 5.561485144 | K201: 7.839708488 | L201: 5.771090538
... 4 more rows

Sheet res
B2: TAB: COVARIANCE MATRIX OF TERM-STRUCTURE RESIDUALS
C5: # | D5: 1 | E5: =D5+1 -> 2 | F5: =E5+1 -> 3 | G5: 4 | H5: 5 | I5: 6 | J5: 7 | K5: 8 | L5: 9 | M5: =L5+1 -> 10
C6: maturity | D6: =D9 -> 1.888 | E6: =E9 -> 2.186 | F6: 4.145 | G6: 5.192 | H6: 5.397 | I6: 5.773 | J6: 6.444 | K6: 7.195 | L6: 7.4 | M6: 0
C7: stdev | D7: =SQRT(OFFSET($C$9, D5, D5)) -> 3.334122277 | E7: =SQRT(OFFSET($C$9, E5, E5)) -> 2.324370159 | F7: 0.5729750375 | G7: 0.5568140467 | H7: 0.3335688832 | I7: 0.6916812984 | J7: 0.3798788094 | K7: 0.5895780264 | L7: 0.3970220561 | M7: 0
B9: # | C9: maturity | D9: =calc!C5 -> 1.888 | E9: =calc!D5 -> 2.186 | F9: =calc!E5 -> 4.145 | G9: =calc!F5 -> 5.192 | H9: =calc!G5 -> 5.397 | I9: =calc!H5 -> 5.773 | J9: =calc!I5 -> 6.444 | K9: =calc!J5 -> 7.195 | L9: =calc!K5 -> 7.4 | M9: =calc!L5 -> 0
B10: 1 | C10: =OFFSET($C$9, 0, B10) -> 1.888 | D10: =_xll.AC.finance.irb.ts._get(calc!C10, config!D12, 1) -> 11.11637136 | E10: 7.495085643 | F10: 1.198206426 | G10: -1.218686697 | H10: -0.1759786904 | I10: -1.692597065 | J10: -0.09276641429 | K10: -1.425257919 | L10: 0.0384544431
B11: =B10+1 -> 2 | C11: 2.186 | D11: 7.495085643 | E11: 5.402696634 | F11: 0.6239567659 | G11: -0.6247398787 | H11: -0.1642344172 | I11: -0.9533645031 | J11: -0.149193184 | K11: -0.7691169114 | L11: -0.06958428933
B12: 3 | C12: 4.145 | D12: 1.198206426 | E12: 0.6239567659 | F12: 0.3283003936 | G12: -0.2270582731 | H12: 0.03695350087 | I12: -0.3036123594 | J12: 0.07564493481 | K12: -0.2664329093 | L12: 0.098436574
B13: 4 | C13: 5.192 | D13: -1.218686697 | E13: -0.6247398787 | F13: -0.2270582731 | G13: 0.3100418826 | H13: -0.001101605619 | I13: 0.3578025123 | J13: -0.04110185446 | K13: 0.3108063108 | L13: -0.06645968626
B14: 5 | C14: 5.397 | D14: -0.1759786904 | E14: -0.1642344172 | F14: 0.03695350087 | G14: -0.001101605619 | H14: 0.1112681999 | I14: -0.04531088107 | J14: 0.1195579205 | K14: -0.01319691868 | L14: 0.1206955306
B15: 6 | C15: 5.773 | D15: -1.692597065 | E15: -0.9533645031 | F15: -0.3036123594 | G15: 0.3578025123 | H15: -0.04531088107 | I15: 0.4784230185 | J15: -0.09531236615 | K15: 0.375833699 | L15: -0.1326620867
B16: 7 | C16: 6.444 | D16: -0.09276641429 | E16: -0.149193184 | F16: 0.07564493481 | G16: -0.04110185446 | H16: 0.1195579205 | I16: -0.09531236615 | J16: 0.1443079098 | K16: -0.05143162732 | L16: 0.1471840309
B17: 8 | C17: 7.195 | D17: -1.425257919 | E17: -0.7691169114 | F17: -0.2664329093 | G17: 0.3108063108 | H17: -0.01319691868 | I17: 0.375833699 | J17: -0.05143162732 | K17: 0.3476022492 | L17: -0.07798881907
B18: 9 | C18: 7.4 | D18: 0.0384544431 | E18: -0.06958428933 | F18: 0.098436574 | G18: -0.06645968626 | H18: 0.1206955306 | I18: -0.1326620867 | J18: 0.1471840309 | K18: -0.07798881907 | L18: 0.157626513
B19: 10 | C19: 0

Sheet config
B2: TAB: CONFIGURATION FILE | E2: Calculation enabled | G2: TRUE
B5: Test connection | C5: =_xll.AC.test.connection() -> host: home-pc; user: Konstantin Rybakov; key: null
B8: Term structure estimation methods | D8: Term structure output keys | G8: Alpha (α) range
B9: Diebold-Li | D9: TS-coeffs | E9: Array of term structure regression coefficients | G9: minimum | H9: 0.1
B10: Fabozzi | D10: TS-yields-fitted | E10: Fitted term structure yields | G10: maximum | H10: 1
B11: Nelson-Siegel | D11: TS-R2 | E11: Mapping sample index => R2 (term structure ols) | G11: delta | H11: 0.05
B12: Ridge-OLS | D12: TS-cov (H) | E12: Term structure residuals covariance matrix (matrix H)
B15: Array formula cell address | C15: number of rows | D15: number of cols | E15: Description
B16: =addressFla(calc!S16) -> 'calc'!$S$16 | C16: =calc!T7 -> 200 | D16: 2 | E16: Function R2(α*)
B17: =addressFla(TS!C5) -> 'TS'!$C$5 | C17: =C16 -> 200 | D17: 4 | E17: Term structure regression model coefficients
B18: =addressFla(fitted!D6) -> 'fitted'!$D$6 | C18: =C17 -> 200 | D18: =calc!T6 -> 9 | E18: Term structure fitted yields
B19: =addressFla(res!D10) -> 'res'!$D$10 | C19: =D19 -> 9 | D19: =D18 -> 9 | E19: Term structure fitted yields

Sheet guide
B2: Package: IRB.TS Available functions for term structure estimation: CalculatorNelsonSiegel calc = calcTS(Map<Double, Double> sample, String method) where sample is the mapping t => y[t] of maturity term into related yield rate and method parameter is the method used to estimate the term structure. The list of methods includes: Diebold-Li Fabozzi Nelson-Siegel Ridge-OLS double[][] (double[]) CalculatorNelsonSiegel calc, String key) where key represents the key for a specific retrieved field. The following keys can be used: 1. TS-coeffs: coefficients of the term structure (as a list (α, β0, β1, β2); 2. TS-yields-fitted: fitted term structure values; 3. TS-R2: the values R2(α) for a grid of α values;
